Workbook

Sheet Pre-app Cover
A13: MULTIFAMILY HOUSING
A15: 2023-2024 FINANCING AND
A17: LIHTC PRE-APPLICATION
I48: Effective: June 28, 2022

Sheet Cover (hidden)
A13: MULTIFAMILY HOUSING
A15: 2023-2024 FINANCING AND
A17: LIHTC APPLICATION
I48: ='Pre-app Cover'!I48 -> Effective: June 28, 2022

Sheet Fee Schedule
A1: FEE SCHEDULE
A3: Below is an overview of required MaineHousing Application/LIHTC fees:
B6: A) | C6: Site Review and Evaluation
D8: $2000 per pre-application, submitted with pre-application
D9: materials as specified in Appendix B of the QAP
D10: Due on or before 7/7/2022 for 2023 9% Credits
D11: Due on or before 7/3/2022 for 2024 9% Credits
D12: No deadline for Tax-exempt pre-applications
B14: B) | C14: Multifamily Application Fee
C15: (Taxable Debt, Tax-exempt Debt and/or Subsidy)
D17: $1,000 per application
D18: Due at time of application
D19: plus
D20: $2,000 Commitment Fee
D21: Due at Construction Loan Closing
D22: plus
D23: 2% of the interest bearing debt or the tax-exempt bond
D24: portion of the construction loan, whichever is greater
D25: Due at Construction Loan Closing
B28: C) | C28: Low Income Housing Tax Credit Fees
D30: Application for LIHTC
D31: $2,500 per application
D32: Due at time of application
D33: For 2023 9% Credits must be postmarked by 9/22/2022
D34: For 2024 9% Credits must be postmarked by 9/21/2023
D36: Allocation Fee
D37: 7.5% of Annual Credit Dollar Amount.
D38: Due at Request for Allocation
D41: Monitoring
D42: $1000 one time fee per qualified low income unit
D43: Due Prior to Issuance of Form 8609

Sheet Certification (hidden)
A1: MAINE STATE HOUSING AUTHORITY
A2: MULTIFAMILY HOUSING FINANCING APPLICATION
G3: ='Project Information'!D4 -> Project Name
A4: THE APPLICATION MUST BE COMPLETE.
B6: The Application is broken down and organized by the following sections, each designated by a tab:
B8: • | C8: Threshold Documentation | G8: • | H8: Utility Allowance
B9: • | C9: Scoring Documentation | G9: • | H9: Project Income
B10: • | C10: Applicant Information | G10: • | H10: Operating Budget & Addtnl Operating Exp Info
B11: • | C11: Conflict of Interest | G11: • | H11: Construction Costs
B12: • | C12: Tax Credit Compliance | G12: • | H12: Project Cost and Basis & Addtnl Prj Cost Info
B13: • | C13: Project Information & Addtnl Prj Info | G13: • | H13: Tax Credit Calculations
B14: • | C14: Building Summary | G14: • | H14: Sources
B15: • | C15: Building Tabulations | G15: • | H15: NPV-PV Calculations, if ncessary
B16: • | C16: Current Rent Roll, if ncessary | H16: (for Below Market Funding scoring)
B17: • | C17: Proposed Rent Roll, if ncessary | G17: • | H17: Project Completion Schedule
B19: Capitalized terms used in the Application are defined in the 2023-2024 Qualified Allocation Plan.
B21: You must complete all of the information under each tab, unless otherwise indicated, and submit all documentation required under the Threshold Submissions Tab to be eligible for low-income housing tax credits and financing from MaineHousing.
B22: You must complete all of the information and submit all documentation required under the Scoring Submissions Tab with respect to a scoring criteria to be eligible for the points under the scoring criteria.
B24: AUTHORIZATION
B26: By electronically submitting this application to MaineHousing, the applicant authorizes MaineHousing to:
B27: • | C27: verify the accuracy and completeness of any financial information or other information provided in the application or the documentation submitted with the application;
B28: • | C28: investigate the credit, financial condition, professional capacity, business standing and employment of the applicant, any principal of the applicant or principal thereof or any member of the applicant’s Development Team;
B29: • | C29: issue an inducement resolution or take any other actions that constitute “official action” for purposes of qualifying the project described in the application for tax-exempt bonds; and
B30: • | C30: disclose any and all information provided by the applicant or in connection with the application as MaineHousing deems necessary to achieve the foregoing and otherwise evaluate the application, including without limitation discussing this application with any lender, municipal official, vendor or other party with an interest in the project described in the Application, or as required by or allowed under applicable state and federal law.
M34: =G3 -> Project Name
C35: CERTIFICATION
B37: By electronically submitting this Application to MaineHousing, the Applicant hereby certifies and represents that:
B38: • | C38: The submission of this Application is fully authorized by or on behalf of the Applicant;
B39: • | C39: The representations, information and documentation provided in or submitted with this Application are true, accurate and complete;
B40: • | C40: The Applicant, any principal or affiliate thereof, and any entity controlled by the Applicant, principal or affiliate thereof are not insolvent or the subject of any proceeding or arrangement for relief from creditors, including without limitation bankruptcy, and have not in the last 6 months been declared in default or been 60 days or more delinquent or, if so, have an approved payment or workout plan in place and in good standing;
B41: • | C41: The Applicant, any principal or affiliate thereof, and any entity controlled by the Applicant, principal or affiliate thereof have never been the owner of any MaineHousing-financed property on which MaineHousing has foreclosed a mortgage interest, or MaineHousing has issued a written waiver thereof for justifiable public policy reasons set forth in the waiver;
B42: • | C42: The Applicant, any principal or affiliate thereof, and any entity controlled by the Applicant, principal or affiliate thereof, are not presently debarred, suspended, proposed for debarment or excluded from participation in any federal or state programs;
B43: • | C43: A preference in the occupancy of the project described in the Application will be given to persons who are currently on a public housing or Section 8 waiting list, or no preference will be given because the project described in the Application is or will be financed by Rural Development or receives rental assistance under the Section 8 Project-Based Rental Assistance Program;
B44: • | C44: The Applicant is familiar with and agrees to comply with all provisions and requirements under MaineHousing’s Qualified Allocation Plan, MaineHousing’s Rental Loan Program (if applying for financing thereunder) and Section 42 of the Internal Revenue Code of 1986 and all associated regulations and guidance as same may be amended; and
B45: • | C45: The Applicant is familiar with and agrees to comply with and to design, construct and operate the project described in the Application in accordance with Title VIII of the Civil Rights Act of 1968, as amended, and HUD’s regulations at 24 C.F.R. Part 100-115 (Federal Fair Housing Act), Section 504 of the Rehabilitation Act of 1973 and HUD's housing regulations at 24 C.F.R. Part 8, Title II and Title III of the Americans with Disabilities Act of 1990 and the 2010 Standards of Accessible Design, the Maine Human Rights Act, and all other applicable federal and State laws pertaining to fair housing, equal opportunity and accessibility, and all regulations and guidance associated with the foregoing, as any of the foregoing may be amended.
B46: • | C46: The Applicant agrees to include MaineHousing in all correspondence with all parties that will or may potentially provide funding for the development and operation of the project described in the Application, including but not limited to equity investors, construction lenders, permanent lenders, service providers and providers of project-based rental assistance and other operating subsidy.
B47: THE APPLICATION WILL NOT BE ACCEPTED, APPROVED OR PROCESSED IF ANY OF THE FOREGOING REPRESENTATIONS OR CERTIFICATIONS IS OR BECOMES INCORRECT OR UNTRUE ON OR AFTER THE SUBMISSION OF THE APPLICATION.

Sheet Threshold Documentation
A1: MaineHousing | D1: ='Project Information'!D4 -> Project Name
A2: THRESHOLD CATEGORIES - required documentation checklist
A3: Instructions: For each category, the specified document(s) MUST be submitted and/or the specified tab(s) MUST be completed. For documents uploaded to Sharefile, you MUST use the Document Number and Name as the name of the file submitted. All of the white boxes are drop downs. Please choose accordingly.
A4: Document Number and Name | B4: Document(s) uploaded to Sharefile? | C4: Application Tab(s) completed? | D4: Submission requirements
A5: 5A. Affordability
A6: 5A1. Compliance with Section 42 and QAP | D6: Complete the Project Information tab and Project Income tab
A7: 5A2. Waives Right to present Qualified Contract | B7: N/A | C7: N/A
A8: 5A3. Letter of Intent from Investor | D8: See Appendix E of QAP
A9: 5A4. Letter of Intent from Investor (Non-Profit) | D9: See Appendix E of QAP
A10: 5B. Section 811 | B10: N/A | C10: N/A | D10: See Certification tab
A11: 5C. Maximum Total Development Cost | D11: Complete the Project Cost and Basis tab
A12: 5D. Acquisiton/Rehab of Existing Housing | D12: Complete the Project Information tab
A13: 5D1. Capital Needs Assessment | D13: Capital Needs Assessment in accordance with the requirements in the Qualified Allocation Plan
D14: Complete Project Cost and Basis tab
D15: Include any acquired project reserves as a source of funds in the Sources tab
A16: 5D2. Minimum Rehab | D16: Complete Construction Costs Tab
A17: 5D3. Tenant Relocation/Displacement | D17: Complete Project Cost and Basis tab
D18: If the project is existing affordable housing, check the Preservation Set-Aside box in the Project Information tab.
A19: 5D4. Affordability Covenants | D19: Complete copy (including all amendments) of any existing affordability covenants that apply to the project.
A20: 5D5. Rental Assistance Contract(s) | D20: Complete copy (including all amendments) of any rental assistance contract(s) and a written description of the status of any upcoming renewals or extensions
A21: 5E. Development and Management Experience and Capacity | D21: Complete the Applicant Information tab. Note: The Applicant must be the Owner, or the Project developer if the Owner is not legally formed.
A22: 5E1. Owner Tax ID Number | D22: IRS Tax ID (EIN) Number Form for the Owner (unless the Owner has not been legally formed at the time of Application)
A23: 5E2. Organizational Chart | D23: An organizational chart or a narrative describing the proposed organizational structure of the Owner
A24: 5E3. Owner Organizational Documents | D24: Organizational documents for the Owner (unless the Owner has not been legally formed at the time of Application). The required organizational documents by type of entity are set forth below in the Organizational Documents by Entity Type table
A25: 5E4. Principal Organizational Documents | D25: Organizational documents for all Principals of the Owner (even if the Owner has not been legally formed at the time of Application), including all general partner(s), manager(s) or managing member(s) of the Owner, and all principals of the general partner(s), manager(s) or managing member(s) of the Owner. The required organizational documents by type of entity are set forth below in the Organizational Documents by Entity Type table
D26: Organizational Documents by Entity Type
D27: Limited Partnership - A complete copy (including all amendments) of the limited partnership agreement and the Certificate of Limited Partnership from the state in which it is formed
D28: Limited Liability Company - A complete copy (including all amendments) of the operating agreement and the Articles of Organization from the state in which it is formed.
D29: Corporation - A complete copy (including all amendments) of the by-laws and the Articles of Incorporation from the state in which it is formed, and a clerk's certificate identifying all current directors and officers or members for member-run non-profit corporations
D30: General Partnership - A complete copy (including all amendments) of the partnership agreement and a certificate identifying all current partners
D31: Public or Tribal Housing Authority - A complete copy (including all amendments) of the charter or resolution establishing the housing authority
A32: 5E5. Owner Certificate of Good Standing | D32: Certificate of good standing or legal existence for the Owner (unless the Owner has not been legally formed at the time of Application) from the state in which the entity is legally formed.
A33: 5E6. Certificate(s) of Good Standing for all Principal(s) | D33: Certificate of good standing or legal existence for all Principals of the Owner (even if the Owner has not been legally formed at the time of Application) from the state in which the entity(ies) is(are) legally formed.
A34: 5E7. Financial Statements for all Principal(s) | D34: Financial Statements for all Principals of the Owner, preferrably audited by an independent accounting firm.
A35: 5E8. Team Members | D35: Indentify the Development Team in the Applicant Information tab
A36: 5E9. Project Developer Tax ID Number | D36: IRS Tax ID (EIN) Number Form for the Project developer
A37: 5E10. Project Developer Organizational Documents | D37: Organizational documents for the Project developer. The required organizational documents by type of entity are set forth in the Organizational Documents by Entity Type table.
A38: 5E11. Project Developer Certificate of Good Standing | D38: Certificate of good standing or legal existence for the Project Developer from the state in which the entity is legally formed.
A39: 5E12. Financial Statements of the Developer | D39: Financial Statements for Developer, if different from the Principals of the Owner, preferrably audited by an independent accounting firm.
A40: 5E13. Development Team Resumes | D40: Resumes for all members of the Development Team identified in the Applicant Information tab
A41: 5F. Site Control | D41: Complete the Project Information tab
A42: 5F1. Site Control Documents | D42: Complete copy (including all amendments and extensions) of all forms of site control that apply to the Project
A43: 5F2. Seller Authority | D43: If seller is not an individual, Evidence of authority of seller to transfer the property described in the site control documents (e.g. corporate resolution or consent of all partners or members required under seller's organizational documents)
A44: 5F3. Restrictive Covenants | D44: Submit a complete copy of all restrictive covenants (including all amendments) on the Project, not already submitted under Section 5.D.2. above
A45: 5G. Growth Management Law | D45: If the municipality in which the Project is located has adopted a comprehensive plan or growth management plan that is consistent with the State’s Growth Management Law, submit the following documentation:
A46: 5G1. Letter from Town Official | D46: (1) A letter from the town manager or the city planning director of the municipality in which the Project is located (1) identifying the municipality’s comprehensive plan or growth management plan and the date of its adoption by the municipality and (2) verifying that the plan was duly adopted by the municipality, the plan is consistent with the State’s Growth Management Law and the Project is located in a growth area designated in the plan, and
A47: 5G2. Copy of the Plan | D47: (2) A copy of the front page and index of the municipality’s comprehensive plan or growth management plan and all portions of the plan defining and describing the designated growth areas in the municipality and any maps showing the designated growth areas
D48: If the municipality in which the Project is located has not adopted a comprehensive plan or growth management plan that is consistent with the State’s Growth Management Law, submit one or more of the following:
A49: 5G3. Other Documentation | D49: Letter from the chief official of the municipality’s sewer district verifying the Project will be served by a public sewer system with existing capacity to serve the Project; or Verification from the market study analyst or other acceptable evidence that the Project will be located in a Census-designated Place in the latest Federal Decennial Census; or Letter from the town manager or the city planning director of the municipality in which the Project is located verifying that the Project will be located in a compact area of an urban compact municipality.
A50: 5H. Project Feasibility | D50: Complete the Project Income tab and the Utility Allowance tab
D51: Complete the Operating Budget tab
D52: Complete the Construction Costs tab, the Project Costs & Basis tab and the Tax Credit Calculation tab
D53: Complete the Sources tab
A54: 5H1. Construction Lender Documents | D54: Current letter of interest, intent, term sheet or a commitment from a construction lender to provide construction financing tor the Project that includes the loan amount, the interest rate, the term, the repayment terms, any points, any fees (e.g. commitment, origination, etc.) and any unique conditions or requirements
A55: 5H2. LIHTC Syndication Letter | D55: Current letter of interest or intent from an acceptable tax credit investor(s) or syndicator(s) to purchase an ownership interest in the Owner in connection with the Credit that includes the pricing, amount, terms and conditions of the purchase
A56: 5H3. Historic Credit Syndication Letter | D56: Current letter of interest or intent from an acceptable tax credit investor(s) or syndicator(s) to purchase an ownership interest in the Owner in connection with any federal and state historic rehabilitation tax credits that includes the pricing, amount, terms and conditions in connection with the purchase and identification of the Special Limited Partner for the SHTC
A57: 5H4. Permanent Financing Commitment(s) | D57: Current letter of award or commitment letter from all non-MaineHousing permanent funding sources that includes the amount of the funding, the interest rate, the term, the repayment terms, any points, any fees (e.g. commitment, origination, etc.) and any unique conditions or requirements
A58: 5H5. Description of Permanent Financing not yet committed | D58: If no letter of award or commitment of any proposed permanent financing has been issued at the time of the Application, submit a description of the permanent financing including (1) the funding source, (2) the application date and the anticipated date that awards will be decided, and (3) the terms of the funding, including the amount, the interest rate, the term, the repayment terms, any points, any fees (e.g. commitment, origination, etc.) and any unique conditions or requirements
A59: 5H6. Rental Assistance Transition Plan | D59: If the project-based rental assistance may terminate or is subject to renewal during the tax credit period (i.e. 15 years), submit (1) a written explanation of the impact on the continued operation of the Project after the termination or non-renewal, and (2) a pro forma operating statement for a period of 5 years after the possible termination or non-renewal of the contract that shows the impact of transitioning from the contract rent(s) to the applicable tax credit rent(s).
A60: 5H7. History of Use and Ownership | D60: If you are applying for low-income housing tax credits for the acquisition of an existing building(s), submit: (1) a detailed history of the use and ownership of each building for at least the last 10 years, including the use(s) of each building, the placed in service date(s) of each building and the name of the seller and prior owner(s) of each building, and (2) if the seller is related to the Owner of the Project, identify all entities and individuals that own an interest in the seller and own/will own an interest in the Owner and their respective ownership interests.
D61: If the Application includes a request for Credit for a community service facility, submit all of the following:
A62: 5H8. Description of Community Service Facility | D62: (1) Narrative describing the facility, including:
D63: (a) The location of the facility within the project (must be located on the same tract of land as one of the buildings that is a part of the project); (b) the square footage; (c) the population that will be served by the facility (must serve primarily individuals with income at or below 60% AMI); (d) the services that will be offered at the facility (must improve the quality of life of and be appropriate and helpful to 60% AMI residents in the community); (e) Any fees that will be charged for services are affordable to persons with income at or below 60% AMI or be free; (f) the person or entity who will operate the facility; (g) the operating budget for the facility; and (h) all source(s) of funding for the facility
A64: 5H9. Accountants Opinion | D64: (2) Opinion from the Project’s accountant that the adjusted basis of the building in which the community service facility is located does not exceed the sum of (a) 25% of so much of the eligible basis of the Project of which it is a part as does not exceed $15,000,000 and (b) 10% of so much of the said eligible basis of the Project as exceeds $15,000,000, and
D65: (3) If selected, the Market Study, when commissioned, must conclude that (a) the community service facility will be used to provide services that improve the quality of life for 60% AMI residents in the community, and (b) the services provided are appropriate and helpful to the 60% AMI residents in the community
A66: 5I/J. Project Design and Amenities 5I. Architectural Plans | D66: The schematic to-scale plans that were submitted as part of the Pre-application process are sufficient for the full application unless changes have been made to the plans.
D67: If changes have been made, resubmit the plans that have changed for subsequent review Ensure that electrial raceways/conduits to satisy 5I1 (future level 2 eletric vehicle chargers) and 5I2 (future EV solar panels are clealy labeled
D68: Complete Building Summary tab
A69: 5J1. Architect Tabulations | D69: Complete Building Tabulations tab
A70: 5J2. Offsite Community Room/Laundry | D70: If proposing to use an existing Community Room and/or Laundry Facilities, submit a letter from the owner of the existing community room and/or laundry facilities that the facilities will be available to the tenants of the Project at no cost and on the same terms and conditions as the tenants of the existing housing project served by the amenities, and design documents that show that the existing community room and/or laundry facilities are or will be, with modifications, properly sized and have sufficient capacity to serve all of the tenants of the Project and the existing project.
A71: 5J3. Offsite Areas of Activity | D71: If no areas of activity are located on the Project site, submit (1) a map(s) or other evidence clearly showing the location and distance of the area(s) of activity within ½ mile of the Project site,
D72: and (2) Certification from the Applicant that the identified area(s) of activity will be free of charge to the tenants of the Project and no membership is required to the facilities or equipment.
D73: Complete Project Completion Schedule tab
A74: 5K. Resident Service Coordination 5K1. Service Plan | D74: Detailed service plan which describes all of the supportive services that will be offered, if there are any eligibility requirements, when and how often the services will be offered and where the services will be offered to the tenants of the Project in accordance with the requirements of the Qualified Allocation Plan
A75: 5K2. Service Provider Commitment | D75: Commitment from all service providers who will offer the services described in the service plan, including the Project’s resident service coordinator(s) and other service providers directly offering services to the tenants
A76: 5K3. Service Provider Resume(s) | D76: Resume describing the experience and training of the Project’s resident service coordinator(s) and all service providers that will offer the services described in the service plan
D77: Include the cost of the Resident Services Coordinator and any other costs to the Project in the Operating Budget tab
A78: 5K4. Service Funding Commitment | D78: If funding for resident services is from an external source, submit a commitment of funding from the source
A79: 5L. Smoke Free Housing 5L1. Smoke Free Occupancy Policy | D79: Written occupancy policy for the Project prohibiting smoking in all units and common areas of the Project;
A80: 5L2. Smoke Free Lease Provisions | D80: Written lease provision or addendum to the lease agreement for the Project implementing the policy prohibiting smoking in all units and common areas of the Project
D81: Provisions in the service plan submitted in 5K1 above to make educational materials on tobacco treatment programs, including the phone number for the statewide Maine Tobacco Helpline, available to tenants in the Project and to offer or refer tenants to smoking cessation programs.
A82: 5M. Waiting List Preference | B82: N/A | C82: N/A | D82: See Certification tab

Sheet Scoring Documentation (hidden)
A1: MaineHousing | F1: ='Project Information'!D4 -> Project Name
A2: SCORING CATEGORIES - required documentation checklist
A3: Instructions: For each category/criteria, the specified document(s) must be submitted and/or specified tab(s) must be completed to be eligible for the points under the scroing category/criteria. For documents uploaded to Sharefile, you MUST use the Document Number and Name as the name of the file submitted.
A4: Document Number and Name | B4: Document(s) uploaded to Sharefile? | C4: Application Tab Completed? | D4: N/A or not seeking points | E4: Submission Requirements | F4: Points Available | G4: Self- score | H4: MH- score
A5: 6A - Re-use of Existing Housing, Structures or Sites 6A1 Narrative | E5: Narrative describing the eligiblity of the Project for the points. If the Project involves the re-use of existing housing, the narrative must describe how existing tenant(s) will be protected from displacement and increases in rent of 10% or more, and submit | F5: 4
E6: Current rent roll as of the date of the Application , either by
A7: 6A2 Current Rent Roll | E7: Completing Current Rent Roll tab, or
E8: By providing the same information as required by Current Rent Roll tab in electronic format, including the Certification of the Seller
E9: and by completing the Proposed Rent Roll tab
A10: 6B- Historic Rehabilitation 6B National Park Service Approval | E10: Part I approval signed by the National Park Service indicating that the building(s) that will be rehabilitated as part of the Project is a certified historic structure(s) that (i) is listed individually in the National Register of Historic Places, (ii) is eligible for listing in the National Register of Historic Places, or (iii) contributes to the historic significance of an historic district listed on the National Register of Historic Places or a State or local historic district certified by the Secretary of the Interior | F10: 4
A11: 6C - Preference for Special Needs Populations 6C1 (1) Population and Services | E11: Narrative describing the population being served, the types of services being offered and agreement to maintain a waiting list for persons for whom the set aside is provided, and | F11: 6
A12: 6C1 (2) Service Provider Commitment | E12: a written commitment or letter of support from the service provider that will offer the services
A13: 6D - National Housing Trust Fund | B13: N/A | C13: N/A | E13: Adding one point to the Self-score column to commits the Applicant to accept all funding from the National Housing Trust Fund awarded by MaineHousing for the Project and to comply with all applicable requirements of the funding. | F13: 1
A14: 6E - Family Housing | E14: Project Income tab and Design drawings submitted under Section 5I. specifically showing the number of 2BR and 3BR units planned | F14: up to 6 | G14: ='MH Underwriting'!AA150 -> 0 | H14: ='MH Underwriting'!AA150 -> 0
A15: 6F - Readiness | E15: If the Project (and any Related Development) requires municipal land use approvals, submit: | F15: 8
A16: 6F1 Confirmation of Municipal Approvals | E16: 1) A legal opinion, certification from a design professional or letter from the appropriate municipal official or body (such as a planning board or planning director or other official or body with authority on land use matters) confirming that (1) the Project (and any Related Development) has all necessary municipal approvals, (2) the type of project approved (elderly, family or other), (3) the total number of units by bedroom-type, (4) the expiration date of the approvals/the approvals are in effect, (5) all appeal periods have expired and (6) no appeals have been filed or any appeals filed have been fully resolved; and
A17: 6F2 Municipal Approvals | E17: 2) A complete copy of all municipal approvals
A18: 6F3 Confirmation of No Municipal Approvals Required | E18: If no municipal land use approval are required for the Project (and any Related Development), submit a legal opinion, certification from a design professional or letter from the appropriate municipal official or body (such as a planning board or planning director or other official or body with authority on land use matters) confirming that no municipal land use approvals are required for the project (and any Related Development) and explaining why no approvals are required
E19: If the Project (and any Related Development) requires State land use approvals (such as site plan, subdivision, stormwater or wetlands approvals), submit:
A20: 6F4 Confirmation of State Approvals | E20: 1) A legal opinion or certification from a design professional confirming that (1) the Project (and any Related Development) has all necessary State approvals, (2) the expiration date of the approvals/the approvals are in effect, (3) all appeal periods have expired and (4) no appeals have been filed or any appeals filed have been fully resolved; and
A21: 6F5 Copy of all State Approvals | E21: 2) A complete copy of all State approvals
A22: 6F6 Confirmation of No State Approvals Required | E22: If no State approvals are required, submit a legal opinion or certification from a design professional confirming that no State approvals are required for the project (and any Related Development) and explaining why no approvals are required
A23: 6G - Accessibility | B23: N/A | C23: N/A | E23: Show all accessible units (UFAS, ADAAG and Type A units) required by state and federal law and all additional 2009 ANSI Type A units on the schematic to-scale plans submitted under Threshold Criteria 5I | F23: up to 12
A24: 6H - Acquisition Cost | E24: Complete Project Cost and Basis tab | F24: up to 4 | G24: ='Below Mrk Funding & Acq Cost'!F51 -> 0 | H24: ='Below Mrk Funding & Acq Cost'!F51 -> 0
A25: 6I - Property Tax Relief 6K1 Municipal Tax Relief Agreement | E25: A complete copy of the commitment from or agreement with the municipality specifically describing the tax relief arrangement. | F25: up to 3
A26: 6K2 Municipal Vote | E26: The vote or resolution of the governing body of the municipality adopting the tax relief arrangement
A27: 6K3 MaineHousing TIF Approval or DECD TIF Approval | E27: Evidence of approval of other governing entities, such as Certificate of Approval from MaineHousing for an Affordable Housing TIF, or Approval letter from Maine Department of Economic and Community Development for a commercial TIF
A28: 6K4 Beneficiary Tax Relief Agreement | E28: If the municipal tax relief arrangement is not directly with the Project, if the Project is part of a larger tax relief arrangement with a municipality or if the tax relief arrangement is not directly with the municipality, submit a complete copy of the commitment from or the agreement between the beneficiary of the tax relief arrangement and the Owner, specifically describing how the tax relief arrangement will benefit the project
A29: 6L - Housing Need | B29: N/A | C29: N/A | E29: No submission requirement | F29: up to 10
A30: 6K - Community Revitilization | E30: If the Project is located in an area designated by HUD or Rural Development as an Empowerment Zone, a Renewal or Enterprise Community or a Neighborhood Revitalization Strategy Area, submit | F30: 2
A31: 6K1 Verification of Area Designation | E31: Third-party verification that the area is currently designated by HUD or Rural Development as an Empowerment Zone, a Renewal or Enterprise Community or a Neighborhood Revitalization Strategy Area; and
A32: 6K2 Map of Designated Area | E32: Map clearly showing the Project site is located in the designated area
E33: If the Project is part of a municipal community revitalization plan, submit
A34: 6K3 Community Revitalization Plan | E34: Complete copy of the community revitalization plan;
A35: 6K4 Municipal Vote | E35: Copy of the resolution or vote of the governing body of the municipality in which the project is located formally adopting the plan;
A36: 6K5 Map of Target Area | E36: Map of the targeted area clearly showing the Project site is located in the targeted area; and
A37: 6K6 Letter From Municipal Official | E37: Letter from the appropriate municipal official or body which: 1) Describes the process of developing the plan, including the planning effort and public input, 2) Confirms that the plan is still in effect, 3) Confirms the project site is located in the targeted area, and 4) Confirms the project is part of current and ongoing revitalization efforts identified in the plan because it is a specifically identified goal or action or contributes to the goal of rehabilitating or developing housing, including multi-family rental housing
A38: 6K7 Preservation/Diversity Bonus | E38: Check Preservation Set-aside on Project Information Tab or complete the Project Income Tab with the appropriate number of market rate units | F38: 1
A39: 6L - Smart Growth | E39: For the purposes in this category all maps used to demonstrate acceptable distances must be generated by readily available internet services or commercial software, preferably Mapquest, Google Maps (free to user version), MSN Livesearch or Google Earth (subscription service), that clearly shows:
E40: 1) the specific address for the entrance to the Project, (Point A) and the designated destinations as described below (Point B); 2) the distance between Point A and Point B in miles or fractions thereof and 3) the exact route from Point A to Point B used in determining the distance which must be a Safe Walking Distance and should not cut across parking lots.
E41: For Fixed-Route Public Transportation, submit | F41: 5
A42: 6L1 Fixed Route Schedule and Map | E42: The schedule and map for the Fixed-route Public Transportation; and a map from the entrance to the Project, (Point A) to the designated pick-up location for the Fixed-Route Public Transportation (Point B)
E43: For Demand Response Transportation, submit | F43: 5
A44: 6L2 Demand Response | E44: The schedule for the Demand Response Transportation service, a brochure, letter or other documentation from the Demand Response Transportation service specifically identifying the eligibility criteria for the Demand Response Transportation service, and a letter from the Demand Response Transportation service confirming that it will provide services to the Project and that all residents of the Project will be served.
E45: For proximity to at least 3 important destinations, submit | F45: 5
A46: 6L3 Maps to Each Destination | E46: A Map for each destination from the entrance to the Project, (Point A) to each destination (Point B)
E47: If relying on a destination that is not identified as destination important to daily living in the Qualified Allocation Plan, then submit a detailed explanation justifying why the destination is important to the daily living of the residents of the project
A48: 6M - Development Capacity | E48: No submission requirement if the Applicant or any Principal or Affiliate of either previously completed the development of multifamily rental housing funded by MaineHousing. MaineHousing will rely on its own records to assess experience. | F48: up to 5
A49: 6M Non-MaineHousing Development Certification | E49: If the Applicant or any Principal or Affiliates of either has no experience developing multifamily rental housing funded by MaineHousing, submit
E50: A description of all LIHTC Projects completed by Applicant or any Principal or Affiliate of either, including the name, location, number of units and Placed In Service date for each LIHTC Project, and an explanation of the relationship between the owner of each LIHTC Project and the Applicant or any Principal or Affiliate of either.
E51: A description of all multifamily rental housing completed by Applicant or any Principal or Affiliate of either, including the name, location, number of units and completion date for each multifamily rental housing project, and an explanation of the relationship between the owner of each multifamily rental housing project and the Applicant or any Principal or Affiliate of either.
E52: A description of all Affordable Housing managed by Applicant or any Principal or Affiliate of either, including the name, location, number of units and the type of Affordable Housing for each project, and an explanation of the relationship between the manager of the Affordable Housing and the Applicant or any Principal or Affiliate of either.
E53: A copy of the executed contract with a qualified consultant. If the consultant has not developed and completed any LIHTC Projects in the State, then also include a description of all LIHTC Projects completed by the consultant, including the name, location, number of units and Placed In Service date for each LIHTC Project.
A54: 6N - Owner Performance | B54: N/A | C54: N/A | E54: No submission requirement. MaineHousing will rely on its records to determine the experience and success of the applicant, its Principals and affiliates. | F54: up to 5
A55: 6O - Management Experience
A56: 6O1 Management Agreement | E56: Commitment from or agreement with the proposed management company | F56: up to 5
A57: 6O2 Staff Resumes | E57: Resumes of all staff of the management company that will be involved in the management of the Project, including a description of each staff person’s experience managing LIHTC projects
E58: Description of all LIHTC Projects that the management company currently manages or plans to manage, including the name, location and number of units in each LIHTC Project, and the resumes of all staff of the management company with low-income housing tax credit training in the last 3 years.
A59: 6O3 LIHTC Training Certification(s) | E59: Most recent certificates or other evidence of low-income housing tax credit training by the staff of the management company that will be involved in the management of the Project
A60: 6P - Management Performance | B60: N/A | C60: N/A | E60: No submission requirement. MaineHousing will rely on its records to determine the experience and success of management companies with properties in MaineHousing's portfolio | F60: up to 3
F61: Total Score | G61: =SUM(G1:G60) -> 0 | H61: =SUM(H1:H60) -> 0
A62: 6Q - Tie-Breaker 6Q Tenant Ownership Plan | E62: Narrative describing how the transfer to the residents will occur, the price or process for determining the purchase price, what financial assistance will be available for the residents and how the affordability will be maintained. | F62: Secondary Tie-breaker after use of MH resources

Sheet Below Mrk Funding & Acq Cost (hidden)
A1: MaineHousing | I1: ='Project Information'!D4 -> Project Name
A3: Project Name: | C3: ='MH Underwriting'!D1 -> Project Name
A4: Location: | C4: ='MH Underwriting'!D2 -> Town
A6: Below Market Capital
E8: $100,000 up to 3% = 1 pt
E9: > 3% up to 6% = 2 pts
E10: > 6% up to 9% = 3 pts
E11: > 9% up to 12% = 4 pts
E12: > 12% up to 15% = 5 pts
E13: > 15% = 6 pts
A15: NPV of Sources
A17: Below Mrk Amortizing Loans | I17: ='NPV-PV calculations'!E632 -> 0
A18: Below Mrk Accruing Loans | I18: ='NPV-PV calculations'!H24+'NPV-PV calculations'!K24 -> 0
A19: 0% Deferred Loans | I19: ='NPV-PV calculations'!H632+'NPV-PV calculations'!K632 -> 0
A20: Grants | I20: =Sources!C15+Sources!C49 -> 0
A22: Total | I22: =SUM(I15:I21) -> 0
A24: Total Project Costs | I24: ='TDC per Unit'!F39+'TDC per Unit'!F36 -> 0
C26: Below Market Capital % | F26: =IF(I24=0,0,I22/I24) -> 0
E28: Points | F28: =IF(I22<100000,0,IF(F26>0.03,IF(F26>0.06,IF(F26>0.09,IF(F26>0.12,IF(F26>0.15,6,5),4),3),2),1)) -> 0
A32: Acquisition Cost
E34: 0 to 1% = 4 pts | H34: =SUM(G42:G44) -> 14000 | I34: =H34*0.01 -> 140
E35: > 1% up to 25% = 3 pts | H35: =H34 -> 14000 | I35: =H35*0.25 -> 3500
E36: 25% to 50% = 2 pts | H36: =H35 -> 14000 | I36: =H36*0.5 -> 7000
E37: > 50% to 75% = 1 pt | H37: =H36 -> 14000 | I37: =H37*0.75 -> 10500
E38: > 75% = 0 pts | H38: =H37 -> 14000
A40: Per unit Benchmarks
A42: New Construction | D42: 14000 | G42: =IF($D$47=A42,D42,0) -> 14000
A43: Acquisition/Rehab | D43: 47000 | G43: =IF($D$47=A43,D43,0) -> 0
A44: Adaptive Reuse | D44: 12000 | G44: =IF($D$47=A44,D44,0) -> 0
A47: Project Type | D47: =IF('TDC per Unit'!I15>0, "Adaptive Reuse",IF('TDC per Unit'!I17>0,"Acquisition/Rehab","New Construction")) -> New Construction | F47: Cost per Unit | I47: =IF(D49=0,0,D48/D49) -> 0
A48: Acquisition Cost | D48: ='Tax Credit Calc'!D89+'Tax Credit Calc'!D90+'Tax Credit Calc'!D93 -> 0
A49: Number of Units | D49: ='TDC per Unit'!F40 -> 0 | F49: Benchmark Comparison | I49: =I47/SUM(G42:G44) -> 0
E51: Points | F51: =IF(D49=0,0,IF(I49<=1%,4,IF(I49<25%,3,IF(I49<=50%,2,IF(I49<=75%,1,0))))) -> 0

Sheet Applicant Information
A1: MaineHousing | M1: ='Project Information'!D4 -> Project Name
A3: APPLICANT INFORMATION
B4: Name of Applicant
B6: Taxpayer ID Number or Social Security Number
B8: Contact Person & Title
B10: Mailing Address
B14: Telephone Number | J14: FAX Number
B16: Email Address
E18: Drop Down Menus
E19: Limited Partnership
E20: Qualified Non-Profit
E21: Limited Liability Corp.
E22: Corporation
E23: Partnership | J23: Existing or To Be Formed
E24: Bond for Deed | J24: Existing
E25: Individual | J25: To Be Formed
B26: Form/Type of Ownership | E26: Limited Partnership | J26: Existing or To Be Formed
B30: Please Provide Detail for Proposed Owner Entity: | G30: Note: to get 0.01%, type 0.01
B31: Name of Participants | E31: Position | G31: % Interest | H31: Address
B36: Identity of Interest: | E36: [explain relationship between partners or principals in the ownership entity, any
E37: relationship between the owner and seller, the owner and contractor, the owner
E38: and management company, etc.]
B44: Development Team (please complete where applicable)
F45: Name | I45: Email | L45: Telephone
B47: Project Developer
B49: Architect
B51: Attorney
B53: Accountant
B55: Tax Professional
B57: General Contractor
B59: Construction Lender
B61: Development Consultant
B63: Service Provider
B65: Management Agent

Sheet Conflict of Interest (hidden)
A1: APPLICANT CONFLICT OF INTEREST DISCLOSURE FORM
A2: To ensure that we maintain the continued confidence of Maine people and our partners in carrying out our mission of providing affordable housing, our employees and commissioners and former employees and commissioners must avoid situations which are, or appear to be, at odds with their responsibility to MaineHousing. These situations can include obligations or commitments to other organizations or individuals or personal or financial relationships or interests.
A3: Maine law and, when federal funding is involved, federal regulations govern conflicts of interest. In general, these laws prohibit MaineHousing employees and commissioners from working on transactions with applicants with whom they have financial, business, professional, or personal relationships or other ties. In addition, these laws prohibit former MaineHousing employees and commissioners from working on certain transactions for up to two years after leaving MaineHousing.
A4: To help ensure the continuing integrity of MaineHousing’s business and compliance with these laws, applicants for loans or certain other assistance under MaineHousing’s programs must disclose any financial, business, professional, civic, charitable, family (or other personal) relationships, associations or connections that the applicant, its affiliates, employees of applicant who may work on the MaineHousing project, or any parties the applicant intends to hire to work on the MaineHousing project (whether employees, contractors or consultants) may currently have with MaineHousing or any MaineHousing employee or commissioner or may have had within the past two years. An applicant and its affiliates include:
A5: ▪ if the applicant is one or more individuals, all individuals;
A6: ▪ if the applicant is a business or nonprofit entity, that entity;
A7: ▪ the officers and board members of the applicant;
A8: ▪ employees of the applicant with decision-making authority, including an executive director, manager or someone
A9: in a similar position;
A10: ▪ if the applicant is a business corporation, any shareholder with a controlling interest;
A11: ▪ if the applicant is a partnership, the applicant’s partners;
A12: ▪ any other business partner or associate of the applicant involved in this MaineHousing project;
A13: ▪ if the applicant is a limited liability company, the members and managers;
A14: ▪ a family member (including husband, wife, child, brother, sister) or other person in a personal relationship;
A16: If you are unsure whether a relationship, association, or connection you have may constitute a conflict of interest, please consult with MaineHousing’s Manager of Internal Audit.
M17: ='Project Information'!D4 -> Project Name
A18: To the best of your knowledge:
M20: Yes/No drop down
M21: Yes
M22: No
A23: 1. Does the Applicant, any Principal or any Affiliate of either, or anyone who will be paid for work on the program have business ties, familial relationships, or other close personal relationships with a current MaineHousing employee or commissioner or with anyone who was a MaineHousing employee or commissioner within the past two years? | M23: Yes/No drop down
A25: PLEASE NOTE: If you answered yes to any of the above questions, please describe below.
A41: Continue on next page if needed
M42: =M17 -> Project Name

Sheet Tax Credit Compliance (hidden)
A1: MaineHousing | K1: ='Project Information'!D4 -> Project Name
A2: Tax Credit Experience Certification
A5: Select one of the three options below by choosing
A6: yes or no from the drop down menues
A9: Yes/No
A10: Yes
A11: No
A12: Yes/No | C12: The applicant and/or affiliates of the applicant have prior experience with Qualified Low Income Housing Projects:
C13: 1. None of which have been declared in default in the last five years, and.
C14: 2. (a) has not been issued an IRS Form 8823 in the last three years or (b) has been
C15: issued an IRS Form 8823 in the last three years, but was subsequently reported as
C16: "noncompliance corrected" within the specified time period for correction, and
C17: 3. Has not had an IRS audit finding resulting in a recapture event in the last three years.
A20: Yes/No | C20: The applicant and/or affiliates of the applicant have prior experience with Qualified Low Income Housing Projects:
C21: 1. One or more of which have been declared in default in the last five years, or
C22: 2. Has been issued an IRS Form 8823 in the last three years that was not subsequently
C23: reported as "noncompliance corrected" within the specified time period for correction, or
C24: 3. Has had an IRS audit finding resulting in a recapture event in the last three years.
C25: If yes to any of these three statements, please provide the details of the event(s) below, including date(s)
C26: of the occurance(s), state(s) in which the action(s) took place, the specific circumstances that caused the
C27: event(s), and whether the situation(s) is/are ongoing or the details of the final resolution(s) by the state(s).
A30: Yes/No | C30: The applicant and/or affiliates of the applicant does not have prior experience with Qualified Low Income Housing Projects.

Sheet Project Information
A1: MaineHousing | M1: ='Project Information'!D4 -> Project Name
R2: Bangor HMFA
A3: PROJECT/BUILDING INFORMATION
B4: Name of Project | D4: Project Name | I4: Is this for Tax-exempt debt? | L4: Yes/No Drop Down | Q4: Bangor | T4: Kenduskeag
B6: Address | J6: =IF(L6="Yes","State LIHTC?","") ->  | Q6: Brewer | T6: Milford
B8: Municipality | D8: Town | I8: Per unit Subsidy cap is | J8: =IF(D10="",0,IF(AND(L4="Yes",L6=""),IF('Tax Credit Calculations'!D6="No",IF(OR(D10="York",D10="Cumberland",D10="Sagadahoc"),78000+40000,IF(OR(D10="Androscoggin",D10="Hancock",D10="Kennebec",D10="Knox",D10="Lincoln",R18="Bangor HMFA"),102000+40000,120000+40000)),IF(OR(D10="York",D10="Cumberland",D10="Sagadahoc"),48000+40000,IF(OR(D10="Androscoggin",D10="Hancock",D10="Kennebec",D10="Knox",D10="Lincoln",R18="Bangor HMFA"),78000+40000,102000+40000))),IF(OR(D10="York",D10="Cumberland",D10="Sagadahoc"),20000+40000,IF(OR(D10="Androscoggin",D10="Hancock",D10="Kennebec",D10="Knox",D10="Lincoln",R18="Bangor HMFA"),25000+40000,30000+40000)))) -> 0 | L8: Project Subsidy cap is | M8: =IF(AND(L4="Yes",L6=0),IF(J8*'Tax Credit Calculations'!W31<=10000000,J8*'Tax Credit Calculations'!W31,10000000),IF(J8*'Tax Credit Calculations'!W31<=5000000,J8*'Tax Credit Calculations'!W31,5000000)) -> 0 | Q8: Eddington | T8: Old Town
B10: County | H10: Census Tract # | Q10: Glenburn | T10: Orono
B12: Chief Elected Official/Title | Q12: Hampden | T12: Orrington
C14: Mailing Address | Q14: Hermon | T14: Penobscot Indian Reservation
Q16: Holden | T16: Veazie
C18: Telephone | R18: =IF(OR(D8=Q4,D8=Q6,D8=Q8,D8=Q10,D8=Q12,D8=Q14,D8=Q16,D8=T4,D8=T6,D8=T8,D8=T10,D8=T12,D8=T14,D8=T16),R2,"") -> 
E20: Acquisition/Rehab | K20: =IF(D$26=E20,1,0) -> 0 | L20: =IF(K20=0,0,IF(I28=0,0,1)) -> 0
E21: Acquisition/Rehab With New Construction | K21: 0 | L21: =IF(K21=0,0,IF(OR(D28=0,I28=0),1,0)) -> 0
E22: Acquisition/Rehab With Adaptive Reuse/Conversion | K22: 0 | L22: =IF(K22=0,0,IF(OR(D28=0,I28=0),1,0)) -> 0
E23: Adaptive Reuse/Conversion | K23: 0 | L23: =IF(K23=0,0,IF(I28=0,0,1)) -> 0
E24: Adaptive Reuse/Conversion with New Construction | K24: 0 | L24: =IF(K24=0,0,IF(OR(D28=0,I28=0),1,0)) -> 0
E25: New Construction | K25: 1 | L25: =IF(K25=0,0,IF(D28=0,0,1)) -> 0
B26: Nature of Project | D26: New Construction | J26: This is a drop down menu
E28: =IF(D26="Acquisition/Rehab With Adaptive Reuse/Conversion","Number of Rehab Units","Number of Units in Existing Structures") -> Number of Units in Existing Structures | J28: =IF(D26="Acquisition/Rehab With Adaptive Reuse/Conversion","Number of New Units","Number of Units of N/C") -> Number of Units of N/C
B31: Does the project include at least 1 on-site parking space for each unit in the proposed development? | J31: Yes/No Drop Down
C32: If no, please describe in detail what parking arrangements are planned? For example, less than 1:1 parking or off-site parking such as surface parking being developed in conjunction with the project or leasing spaces in existing lots or garages, etc.
B34: =IF(D28+I28=0,"",IF(SUM(L20:L25)=0,"","WARNING: NUMBER OF UNITS INCONSISTENT WITH DROP DOWN MENU")) -> 
B36: Will any off-site improvements (e.g. public roads, sidewalks, water/sewer, etc.) be necessary? | J36: Yes/No Drop Down
C37: If yes, please describe?
B40: Are buildings being acquired from a related party? | J40: Yes/No Drop Down
B42: Is the site within an historic district or is the building on
J43: Yes/No Drop Down
J44: Yes
J45: No
B46: or eligible for placement on the National Historic Register? | J46: Yes/No Drop Down
B50: Type of Request: | D50: =IF(L4="Yes","With Federal subsidies","Without Federal subsidies") -> Without Federal subsidies | G50: Acquisition requires 10-year waiver ? | K50: Yes/No Drop Down
B52: All Benefit Pledges will be set forth in a document to be recorded in the local Registry of Deeds.
B54: MINIMUM SET-ASIDE
B55: Section 42 requires a MINIMUM SET-ASIDE ELECTION. Select only one of the following
B57: This is a drop down menu
B58: 20% of the units will be available to and occupied by households at or below 50% of the area median income
B59: Income Averaging with 80% AMI tenants included (discuss in more detail with MaineHousing before making this election)
B60: 40% of the units will be available to and occupied by households with incomes at or below 60% of the area median income
B61: 40% of the units will be available to and occupied by households with incomes at or below 60% of the area median income
B63: TENANT POPULATION
B64: This will be used when reviewing Selection Criteria for applicants to the 9% LIHTC round.
J66: Age limitation | L66: Elderly Definition
J67: 55+ or 62+ | L67: HUD or RD
J68: 55+ | L68: HUD
J69: 62+ | L69: RD
B71: Property will be restricted to elderly tenants | F71: Yes/No Drop Down | H71: =IF(F71="Yes","Select applicable limits","") -> 
B73: Property will be for families | F73: Yes/No Drop Down
B76: SET-ASIDES 9% LIHTC Round (Not applicable for Tax-exempt bond financed projects)
B77: Check one or more of the folowing set-asides in which you wish to participate.
B79: Non-profit Set-aside. | E79: Yes/No Drop Down
B81: Preservation Set-aside. | E81: Yes/No Drop Down
E84: Low Rise
E85: 2-3 story walk-up
E86: Garden
E87: Row/Townhouse
E88: Detached, Semi-Detached, Single Family
E89: High Rise (elevator)
B90: Structure Type | E90: Low Rise | I90: This is a drop down menu
E92: This is a drop down menu
E93: Bond for Deed
E94: Deed
E95: Puchase & Sale Agreement
E96: Option Agreement
E97: Capital Lease Agreement
B98: Site Control: | E98: This is a drop down menu | J98: (Expiration Date, if applicable)
E100: Date of Purchase | I100: Purchase Price
B102: Age of Building (approx.) | F102: Years
B104: Is the building owner-occupied? | J104: Yes/No Drop Down
B105: Does any portion of the building include commercial space? | J105: Yes/No Drop Down | L105: =IF(J105="Yes","How Many?","") ->  | M105: =IF(J105="Yes","","N/A") -> N/A
B106: Are there any restrictive convenants, easements or conditions attached to the property? | J106: Yes/No Drop Down
B107: If yes, list and attach documents (if available)
B110: Does this project involve any relocation of tenants, whether temporary or permanent? | J110: Yes/No Drop Down
B111: If yes, please describe the proposed relocation assistance to be provided (note: MaineHousing or the Federal Relocation Policy will need to be followed):
B115: How many buildings will be acquired for the project? | H115: For each building that is being acquired, complete the information on the following tab of this application
B117: Number of Stories
B119: Number of existing parking spaces
H120: Attach a Current and Proposed Rent Roll. Samples are included, but these forms are not required so long as the submission includes all the data indentified on the samples
B121: Number of existing market rental units?
B123: Number of existing low income rental units?
B125: Are any of these low-income rental units likely to be converted to non-low income occupancy | J125: Yes/No Drop Down
B126: if the Low Income Housing Tax Credit is not made available?
C128: If yes, please describe how and why:

Sheet Additional Prj Information
A1: MaineHousing | J1: ='Project Information'!D4 -> Project Name
C4: For each building that is being acquired, complete the following information
C6: Address of Bldg | E6: Date last | F6: Date of most | H6: Proposed | I6: # Years between
C7: Street #/Map Lot | E7: placed | F7: recent non-qualified | H7: Acquire | I7: original date placed
B8: Bldg # | E8: in service | F8: sub improvement* | H8: Date | I8: in service and acq
B9: 1
B10: =B9+1 -> 2
B11: =B10+1 -> 3
B12: 4
B13: =B12+1 -> 5
C14: * Defined at Section 42(d)(2)
A16: Insert as many lines as necessary

Sheet Building Summary
A1: MaineHousing | J1: ='Project Information'!D4 -> Project Name
A3: Building Tabulations
A5: Note: When completing this form, it will be necessary for the architect identified on the Applicant Information tab to provide you with this information on a building by building basis from the plans that they are preparing. You may print the next page and provide it (or e-mail it) to the Architect for them to complete. Use this page for the aggregate the totals from each of the buildings in the project submitted by the Architect.
B8: Number of Building Tabulation Sheets
B10: Number of
B11: Building (s) | F11: Total # Units
B14: Total Dwellings | G14: sq. ft.
B16: Tenant Storage | G16: sq. ft.
B18: Office | G18: sq. ft.
B20: Social Area | G20: sq. ft.
B22: Community Laundry | G22: sq. ft.
B24: Community Kitchen | G24: sq. ft.
B26: Community Bathroom(s) | G26: sq. ft.
B28: Project Storage | G28: sq. ft.
B30: Project Maintenance | G30: sq. ft.
B32: Circulation | G32: sq. ft.
B34: Other (Describe) | G34: sq. ft.
B36: Total | F36: =F14+F16+F18+F20+F22+F24+F26+F28+F30+F32+F34 -> 0 | G36: sq. ft.

Sheet Building Tabulations (hidden)
A1: MaineHousing | K1: ='Project Information'!D4 -> Project Name
A4: Building Tabulations
A6: Note: Repeat this page for each building in the project
J9: This is a drop down menu
A10: Building # | D10: Total # Units
J12: Yes
J13: No
A14: Are all the units in this building identical in square footage and configuration? | J14: No
A15: =IF(J14="No", "Complete the unit tabulations below","") -> Complete the unit tabulations below
B17: Total Dwellings | G17: sq. ft.
B19: Tenant Storage | G19: sq. ft.
B21: Office | G21: sq. ft.
B23: Social Area | G23: sq. ft.
B25: Community Laundry | G25: sq. ft.
B27: Community Kitchen | G27: sq. ft.
B29: Community Bathroom(s) | G29: sq. ft.
B31: Project Storage | G31: sq. ft.
B33: Project Maintenance | G33: sq. ft.
B35: Circulation | G35: sq. ft.
B37: Other (Describe) | G37: 207
B39: Total | F39: =F17+F19+F21+F23+F25+F27+F29+F31+F33+F35+F37 -> 0 | G39: sq. ft.
A42: Unit Tabulations
A44: =IF(J14="yes","Unit Tabulation is unnecessary since unit sq ft = Total Dwellings / # of units","Note: add as many lines as necessary to identify all the unit types in the building") -> Note: add as many lines as necessary to identify all the unit types in the building
A47: Building # | B47: =B10 -> 0 | D47: Total # Units | E47: =E10 -> 0
C49: Unit Type | F49: Total # Units | H49: Unit Sq. Ft. | J49: Total Res. Sq. Ft.
B51: Type | C51: =C50+1 -> 1 | J51: =F51*H51 -> 0
B52: Type | C52: 2 | J52: =F52*H52 -> 0
B53: Type | C53: 3 | J53: 0
B54: Type | C54: 4 | J54: 0
B55: Type | C55: 5 | J55: 0
B56: Type | C56: 6 | J56: 0
B57: Type | C57: 7 | J57: 0
B58: Type | C58: 8 | J58: 0
B59: Type | C59: 9 | J59: 0
B61: TOTALS | F61: =SUM(F50:F60) -> 0 | J61: =SUM(J50:J60) -> 0

Sheet Current Rent Roll (hidden)
B1: MaineHousing | S1: ='Project Information'!D4 -> Project Name
B3: CURRENT RENT ROLL
B4: This sample form is not required so long as the actual submission includes all data indentified here and includes the certification from the seller
B5: Note: if using this form, you may add as many lines as necessary, print and provide (or e-mail) to the seller of the property to complete
B6: Apt. # | D6: Tenant Name | H6: Family Size | J6: Gross Annual Income | L6: # of Bedrooms | N6: Rent | O6: Tenant Receives Rental Assistance? Yes or No | R6: If yes, Decsribe Type of Assistance*
B49: =IF(COUNTA(B8:B48)=0,"",COUNTA(B8:B48)) ->  | D49: Total # of units | Q49: * Examples: | R49: Section 8 Voucher
R50: Project Based Section 8
B51: CERTIFICATIONS | R51: RD Rental Assistance
B52: I hereby certify that I have not required any tenant to move except for cause, such as for violation of the lease or local law, during the 12 months | R52: Other
B53: previous to the date of this Application. I acknowledge that I may be asked to assist in the gathering of employment verification information.
E55: Signature of Owner:
E58: Mailing Address:
E61: Building Address:

Sheet Proposed Rent Roll (hidden)
B1: MaineHousing | J1: ='Project Information'!D4 -> Project Name
B3: PROPOSED INCOME TARGETING AND RENTS (Units Must Match Current Rent Roll)
B4: Apt. # | D4: Income Target 50/60/Mkt | F4: Present Rent | H4: Proposed Rent | J4: % Increase > 10%
J6: =IF(OR(F6=0,H6=0),"",IF(H6/F6<1.1,"",H6/F6-1)) -> 
J7: =IF(OR(F7=0,H7=0),"",IF(H7/F7<1.1,"",H7/F7-1)) -> 
B47: =IF(COUNTA(B6:B46)=0,"",COUNTA(B6:B46)) ->  | D47: Total Rent | F47: =IF(COUNT(F6:F46)=0,"",SUM(F6:F46)) ->  | H47: =IF(COUNT(H6:H46)=0,"",SUM(H6:H46)) ->  | J47: =IF(F47="","",H47/F47-1) -> 
I49: =IF(J49="","","# of Units with Substantial Rent Increases") ->  | J49: =IF(COUNT(J6:J45)=0,"",COUNT(J6:J45)) -> 

Sheet Utility Allowance
B1: MaineHousing | S1: ='Project Information'!D4 -> Project Name
B3: UTILITY ALLOWANCE CALCULATIONS
H5: Allowance by bedroom size
B7: Utility | D7: Fuel | F7: Paid By | H7: OBR | J7: 1BR | L7: 2BR | N7: 3BR | P7: 4BR
E9: Drop Down Menus
D11: Oil
D12: Propane
D13: Natural Gas
D14: Electric
D15: Electric-Heat Pumps | F15: Owner
D16: N/A | F16: Tenant
B17: Heating | F17: Owner
B19: Hot Water | F19: Owner
B21: Cooking | F21: Tenant
B23: Lighting | F23: Tenant
B25: Water | D25: N/A | F25: Owner
B27: Sewer | D27: N/A | F27: Owner
B29: Trash | D29: N/A | F29: Owner
B31: Air Cond. | F31: Owner
F33: Total Utility Allowance for Unit | H33: =SUM(H17:H31) -> 0 | J33: =SUM(J17:J31) -> 0 | L33: =SUM(L17:L31) -> 0 | N33: =SUM(N17:N31) -> 0 | P33: =SUM(P17:P31) -> 0
B36: Attach a narrative which describes the method used to calculate the Utility Allowances. If applicant is also applying for Low Income Housing Tax Credits, demonstrate compliance with IRS regulations for determining utility allowances.
I38: LIHTC Allocating Agency Utility
B39: Yes/No
B40: Yes
B41: No
B42: Yes/No | D42: LIHTC Allocating Agency Utility Estimate | I42: Estimates can be found at
I43: the following web link (left click):
B44: Yes/No | D44: Energy Consumption Model (Engineer model) | I44: http://www.mainehousing.org/partners/partner-type/asset-management
B46: Yes/No | D46: UA through Rural Development (RD assisted units) | I46: under Rent & Income Charts
J47: =IF(B42="No","Include documentation from the appropriate Authority","") -> 
B48: Yes/No | D48: Section 8 UA through local housing authority (PBV units)
B50: Yes/No | D50: HUD approved UA (project based rental assitance units)
B52: Yes/No | D52: Other Specify:

Sheet Project Income
A1: MaineHousing | O1: ='Project Information'!D4 -> Project Name
G4: Maximum | H4: Less | I4: Maximum | K4: Proposed*
E5: # of | G5: Allowable | H5: Utility | I5: Rent to | K5: Rent to | M5: Total Monthly | O5: Total Annual
A6: Type | C6: AMI | E6: units | G6: LIHTC Rent | H6: Allowance | I6: Tenants | K6: Tenants | M6: Rental Income | O6: Rental Income
A8: 0 BR | C8: 0.5 | H8: ='Utility Allowance'!H33 -> 0 | I8: =IF(G8=0,0,G8-H8) -> 0 | M8: =IF(E8="","",MIN(I8,I10,K8)*E8) ->  | O8: =IF(E8="","",M8*12) -> 
C9: 0.6 | H9: =H8 -> 0 | I9: =IF(G9=0,0,G9-H9) -> 0 | M9: =IF(E9="","",MIN(I9,I10,K9)*E9) ->  | O9: =IF(E9="","",M9*12) -> 
C10: Mrk. | G10: Market Rent (from Market Study) | I10: 0 | M10: =IF(E10="","",MIN(I10,K10)*E10) ->  | O10: =IF(E10="","",M10*12) -> 
A12: 1 BR | C12: 0.5 | H12: ='Utility Allowance'!J33 -> 0 | I12: =IF(G12=0,0,G12-H12) -> 0 | M12: =IF(E12="","",MIN(I12,I14,K12)*E12) ->  | O12: =IF(E12="","",M12*12) -> 
C13: 0.6 | H13: =H12 -> 0 | I13: =IF(G13=0,0,G13-H13) -> 0 | M13: =IF(E13="","",MIN(I13,I14,K13)*E13) ->  | O13: =IF(E13="","",M13*12) -> 
C14: Mrk. | G14: Market Rent (from Market Study) | I14: 0 | M14: =IF(E14="","",MIN(I14,K14)*E14) ->  | O14: =IF(E14="","",M14*12) -> 
A16: 2 BR | C16: 0.5 | H16: ='Utility Allowance'!L33 -> 0 | I16: =IF(G16=0,0,G16-H16) -> 0 | M16: =IF(E16="","",MIN(I16,I18,K16)*E16) ->  | O16: =IF(E16="","",M16*12) -> 
C17: 0.6 | H17: =H16 -> 0 | I17: =IF(G17=0,0,G17-H17) -> 0 | M17: =IF(E17="","",MIN(I17,I18,K17)*E17) ->  | O17: =IF(E17="","",M17*12) -> 
C18: Mrk. | G18: Market Rent (from Market Study) | I18: 0 | M18: =IF(E18="","",MIN(I18,K18)*E18) ->  | O18: =IF(E18="","",M18*12) -> 
A20: 3 BR | C20: 0.5 | H20: ='Utility Allowance'!N33 -> 0 | I20: =IF(G20=0,0,G20-H20) -> 0 | M20: =IF(E20="","",MIN(I20,I22,K20)*E20) ->  | O20: =IF(E20="","",M20*12) -> 
C21: 0.6 | H21: =H20 -> 0 | I21: =IF(G21=0,0,G21-H21) -> 0 | M21: =IF(E21="","",MIN(I21,I22,K21)*E21) ->  | O21: =IF(E21="","",M21*12) -> 
C22: Mrk. | G22: Market Rent (from Market Study) | I22: 0 | M22: =IF(E22="","",MIN(I22,K22)*E22) ->  | O22: =IF(E22="","",M22*12) -> 
A24: 4 BR | C24: 0.5 | H24: ='Utility Allowance'!P33 -> 0 | I24: =IF(G24=0,0,G24-H24) -> 0 | M24: =IF(E24="","",MIN(I24,I26,K24)*E24) ->  | O24: =IF(E24="","",M24*12) -> 
C25: 0.6 | H25: =H24 -> 0 | I25: =IF(G25=0,0,G25-H25) -> 0 | M25: =IF(E25="","",MIN(I25,I26,K25)*E25) ->  | O25: =IF(E25="","",M25*12) -> 
C26: Mrk. | G26: Market Rent (from Market Study) | I26: 0 | M26: =IF(E26="","",MIN(I26,K26)*E26) ->  | O26: =IF(E26="","",M26*12) -> 
A28: Total # units | E28: =IF(SUM(E8:E26)=0,0,SUM(E8:E26)) -> 0 | K28: Gross Rental Income | M28: =+IF(E28="","",SUM(M7:M27)) -> 0 | O28: =+IF(E28="","",SUM(O7:O27)) -> 0
A29: =IF(E28='Project Information'!D28+'Project Information'!I28,"","WARNING: TOTAL UNITS DO NOT MATCH PROJECT INFORMATION TAB") -> 
A30: Income from laundry | O30: =IF(M30=0,"",M30*12) -> 
A31: Other Income: | E31: If monthly amount is affected by Vacancy Loss | O31: =IF(M31=0,"",M31*12) -> 
O32: =IF(M32=0,"",M32*12) -> 
A34: Total schedule income | M34: =+IF(E28="","",SUM(M28:M32)) -> 0 | O34: =+IF(E28="","",SUM(O28:O32)) -> 0
A35: Projected vacancy rent loss ** | G35: 0.05 | M35: =IF(G35="","",M34*-G35) -> 0 | O35: =+IF(G35="","",O34*-G35) -> 0
A37: Other Income: | E37: Only if not affected by Vacancy Loss such as TIF income | O37: =IF(M37=0,0,M37*12) -> 0
A39: Gross Effective Income | M39: =IF(M35="","",M34+M35+M37) -> 0 | O39: =IF(O35="","",O34+O35+O37) -> 0
A41: * Rents restricted per MaineHousing rent chart or current rent from rent roll, whichever is less adjusted for utility allowances
B42: Tax Credit Rents can be found at the following web link (left click):
B43: http://www.mainehousing.org/charts/rent-income-charts
A44: ** MaineHousing may increase or decrease to reflect area market conditions.
B46: =IF(E28=0,"",IF((E8+E9+E12+E13+E16+E17+E20+E21+E24+E25)/E28<0.4,"WARNING: INSUFFICIENT NUMBER OF LIHTC UNITS TO MEET MINIMUM CREDIT ELECTION","")) -> 
B47: =IF(E28=0,"",IF('Project Information'!L4="Yes","",IF((E8+E12+E16+E20+E24)/(E8+E9+E12+E13+E16+E17+E20+E21+E25)<0.6,"WARNING: INSUFFICIENT NUMBER OF 50% AMI UNITS TO MEET QAP THRESHOLD CRITERIA",""))) -> 

Sheet Operating Budget
A1: MaineHousing | E1: ='Project Information'!D4 -> Project Name
B3: ANNUAL OPERATING BUDGET
C5: Prior Year's Actual | E5: Projected
C6: (If Existing Project) | E6: Annual Budget
B7: Administrative Expenses
B9: Management Fees | H9: ='MH Underwriting'!O203 -> 
B11: Management Charges
B13: Marketing Expenses
B15: Legal Expenses
B17: Auditing Expenses
B19: Other Administrative Expenses | C19: ='Additional Op Ex Information'!E13 -> 0 | E19: ='Additional Op Ex Information'!G13 -> 0 | G19: Provide detail for Other Admin Expenses on next tab
B21: TOTAL ADMINISTRATIVE EXPENSES | C21: =SUM(C9:C19) -> 0 | E21: =SUM(E9:E19) -> 0
B22: Operating Expenses
B24: Janitorial Payroll
B26: Janitorial Supplies and Equipment
B28: Janitorial Contractual Services
B30: Fuel and Gas
B32: Electricity
B34: Water and Sewer
B36: Garbage and Trash Removal
B38: Vehicle and Equipment Expenses
B40: Other Operating Expenses | C40: ='Additional Op Ex Information'!E22 -> 0 | E40: ='Additional Op Ex Information'!G22 -> 0 | G40: Provide detail for Other Operating Expenses on next tab
B42: TOTAL OPERATING EXPENSES | C42: =SUM(C24:C40) -> 0 | E42: =SUM(E24:E40) -> 0
B43: Maintenance Expenses
B45: Grounds Maintenance Payroll
B47: Grounds Tools and Supplies
B49: Grounds Contractual Services
B51: Miscellaneous Ground Maintenance | C51: ='Additional Op Ex Information'!E31 -> 0 | E51: ='Additional Op Ex Information'!G31 -> 0 | G51: Provide detail for Misc Grounds Maintenance on next tab
B53: Sub-total Grounds Expenses | C53: =SUM(C45:C52) -> 0 | E53: =SUM(E45:E52) -> 0
B55: Building Maintenance Payroll
B57: Building Tools and Supplies
B59: Building Contractual Services
B61: Building Systems Maintenance
B63: Miscellaneous Building Maintenance | C63: ='Additional Op Ex Information'!E40 -> 0 | E63: ='Additional Op Ex Information'!G40 -> 0 | G63: Provide detail for Misc Building Maintenance on next tab
B65: Sub-total Building Expenses | C65: =SUM(C55:C64) -> 0 | E65: =SUM(E55:E64) -> 0
B67: TOTAL MAINTENANCE EXPENSES | C67: =C53+C65 -> 0 | E67: =E53+E65 -> 0
B68: General Expenses:
B70: Property Taxes
B72: Property and Liability Insurance
B74: Resident Service Coordinator
B76: Other General Expenses | C76: ='Additional Op Ex Information'!E49 -> 0 | E76: ='Additional Op Ex Information'!G49 -> 0 | G76: Provide detail for Other General Expenses on next tab
B78: TOTAL GENERAL EXPENSES | C78: =SUM(C70:C76) -> 0 | E78: =SUM(E70:E76) -> 0
B80: Replacement Reserve | E80: ='Project Income'!E28*450 -> 0
B82: Total Commercial Expense | H82: =IF('Project Income'!E28=0,"",IF(E80/'Project Income'!E28<450,"WARNING: REPLACEMENT RESERVE FUNDING LESS THAN MAINEHOUSING GUIDELINES","")) -> 
B84: TOTAL BUDGETED EXPENSE | C84: =C21+C42+C67+C78+C80+C82 -> 0 | E84: =E21+E42+E67+E78+E80+E82 -> 0

Sheet Additional Op Ex Information
A1: MaineHousing | L1: ='Project Information'!D4 -> Project Name
E3: Prior Year's Actual | G3: Projected
A4: Insert as many lines as necessary | E4: (If Existing Project) | G4: Annual Budget
I5: Notes:
B7: Other Administrative Expenses
B8: 1
B9: 2
B10: 3
B11: 4
B12: 5
C13: Total Other Administrative Expenses | E13: =SUM(E7:E12) -> 0 | G13: =SUM(G7:G12) -> 0
B16: Other Operating Expenses
B17: 1
B18: 2
B19: 3
B20: 4
B21: 5
C22: Total Other Operating Expenses | E22: =SUM(E16:E21) -> 0 | G22: =SUM(G16:G21) -> 0
B25: Miscellaneous Ground Maintenance
B26: 1
B27: 2
B28: 3
B29: 4
B30: 5
C31: Total Miscellaneous Ground Maintenance | E31: =SUM(E25:E30) -> 0 | G31: =SUM(G25:G30) -> 0
B34: Miscellaneous Building Maintenance
B35: 1
B36: 2
B37: 3
B38: 4
B39: 5
C40: Total Miscellaneous Building Maintenance | E40: =SUM(E34:E39) -> 0 | G40: =SUM(G34:G39) -> 0
B43: Other General Expenses
B44: 1
B45: 2
B46: 3
B47: 4
B48: 5
C49: Total Other General Expenses | E49: =SUM(E43:E48) -> 0 | G49: =SUM(G43:G48) -> 0

Sheet Construction Costs
A1: MaineHousing | U1: ='Project Information'!D4 -> Project Name
E3: Total Cost
A5: 1 | B5: Site Costs:
B7: Earth Works | J7: Please explain Unusual site condition
B9: Site Utilities
B11: Lawns/Plantings
B13: Road/Walks
B15: Site Improvement
B17: Unusual Site Condition
B19: TOTAL SITE COST | E19: =E7+E9+E11+E13+E15+E17 -> 0 | J19: NOTES for Construction Costs and Project Costs and Basis: --Builder overhead and profit MUST be identified --Use of any "other" category must be accompanied by specific details on the next page of this application. This page can be expanded to accomodate as many line items as necessary. --Acquisition costs must be supported by site control documentation and is subject to verification by an "As Is" appraisal --Professional services such as legal or accounting which are performed by employees of the development entity should be documented in writing if they are to be allocated to any line item other than Developer Fee -- Developer Fee & Consultants Fees: Consultants Fees do not include fees paid for services such as environmental studies, market studies, soils analysis, etc. Consultant fees do include fees for services normally conducted by the Developer such as obtaining site control, financing, regulatory approvals, and negotiating the syndication, among others. -- Developer overhead and profit MUST be separately identified
A21: 2 | B21: Structures:
B23: Main Buildings
B25: Accessory Structures
B27: TOTAL STRUCTURE | E27: =E23+E25 -> 0
A29: 3 | B29: General Requirements:
B31: Supervision
B33: Field Engineering
B35: Field Office
B37: Temp. Facilities
B39: Temp Utilities
B41: Cleaning/Rubbish
B43: Permits
B45: TOTAL GEN REQMTS | E45: =E31+E33+E35+E37+E39+E41+E43 -> 0
J46: Please explain any other unique construction characteristics
A48: 4 | B48: TOTAL BUILDER OH & PROFIT
A50: 5 | B50: TOTAL BOND PREMIUM | W50: =IF('Project Information'!D26="Acquisition/Rehab",IF(('Project Costs & Basis'!E9-E52)/'Project Income'!E28<30000,"WARNING: HARD CONSTRUCTION COSTS BELOW MINIMUM REQUIREMENT",""),"") -> 
A52: 6 | B52: CONSTRUCTION CONTINGENCY
E55: =IF('Project Information'!D26="New Construction",IF(E52+0.49<SUM(E50,E48,E45,E27,E19)*0.05,"WARNING: CONTINGENY IS LESS THAN THE 5% RECOMMENDED BY MAINEHOUSING",""),IF(E52<SUM(E50,E48,E45,E27,E19)*0.1,"WARNING: CONTINGENY IS LESS THAN THE 10% RECOMMENDED BY MAINEHOUSING","")) -> 
E56: =IF(E55="","","PLEASE PROVIDE AN EXPLANATION FOR USING A LOWER CONTINGENCY") -> 

Sheet Project Costs & Basis
A1: MaineHousing | Y1: ='Project Information'!D4 -> Project Name
P2: Eligible Basis Calculations
E3: Project Costs and Eligible Basis | P3: Include Only Residential
P4: Depreciable Costs for:
H5: Residential | J5: Commercial
E6: Total Cost | H6: Depreciable | J6: Depreciable | L6: Amortizable | N6: Non-Amort | Q6: Acq Credit | S6: Const/Reh
A9: 7 | B9: TOTAL CONSTRUCTION: | E9: ='Construction Costs'!E19+'Construction Costs'!E27+'Construction Costs'!E45+'Construction Costs'!E48+'Construction Costs'!E50+'Construction Costs'!E52 -> 0 | H9: =E9-J9-L9-N9 -> 0 | S9: =H9 -> 0
A11: 8 | B11: SOFT COSTS: | V11: Notes:
B13: Permits | E13: =SUM(H13:N13) -> 0 | S13: =H13-Q13 -> 0
B15: Survey & Engineering | E15: =SUM(H15:N15) -> 0 | S15: =H15-Q15 -> 0
B17: Architect/Design & Inspec | E17: =SUM(H17:N17) -> 0 | S17: =H17-Q17 -> 0
B19: Project Legal | E19: =SUM(H19:N19) -> 0 | S19: =H19-Q19 -> 0
B21: Title & Recording | E21: =SUM(H21:N21) -> 0 | S21: =H21-Q21 -> 0
B23: Project Audit/Accounting | E23: =SUM(H23:N23) -> 0 | S23: =H23-Q23 -> 0
B25: Const. Period Taxes | E25: =SUM(H25:N25) -> 0 | S25: =H25-Q25 -> 0
B27: Const. Period Insurance | E27: =SUM(H27:N27) -> 0 | S27: =H27-Q27 -> 0
B29: Other | E29: ='Additional Prj Cost Information'!E11 -> 0 | H29: ='Additional Prj Cost Information'!E11-J29-L29-N29 -> 0 | S29: =H29-Q29 -> 0 | V29: Provide detail for Other Costs on next tab
B31: TOTAL SOFT COSTS: | E31: =(E13+E15+E17+E19+E21+E23+E25+E27+E29) -> 0
A33: 9 | B33: FINANCING FEES:
B34: Note: MaineHousing Fees will calculate automatically when loans on the Sources tab are completed | V34: =IF('Project Information'!L4="Yes","Opinions on whether fees associated with the MH construction loan can be included in eligible basis vary. You should consult with your tax professional.","") ->  | AA34: =IF(V34="","","If want to include fee in basis, choose Yes from the Drop Down below") -> 
AA35: =IF($V$34="","","Yes") -> 
AA36: =IF($V$34="","","No") -> 
B38: Const Loan Orig. Fee | E38: =SUM(H38:N38) -> 0 | S38: =H38-Q38 -> 0
B40: Const Loan Interest | E40: =SUM(H40:N40) -> 0 | S40: =H40-Q40 -> 0
B42: =IF('Project Information'!L4="Yes"," MaineHousing Loan Fees"," MaineHousing Permanent Loan Fees") -> MaineHousing Permanent Loan Fees | E42: =SUM(H42:N42) -> 0 | L42: =IF(Sources!C32+Sources!C39>0,IF('Project Information'!L4="Yes",1000+2000+'MH Underwriting'!U82*0.02,1000+2000+Sources!C39*0.02),"") ->  | S42: =IF(Sources!C32+Sources!C39=0,0,IF(AA38="Yes",'MH Underwriting'!U82*0.02,0)) -> 0
B44: Conventional Lender Permanent Loan Fees | E44: =SUM(H44:N44) -> 0 | S44: 0
B46: Other | E46: ='Additional Prj Cost Information'!E20 -> 0 | H46: ='Additional Prj Cost Information'!E20-J46-L46-N46 -> 0 | S46: =H46-Q46 -> 0 | V46: Provide detail for Other Costs on next tab
B48: TOTAL FINANCING FEES | E48: =(E38+E40+E42+E44+E46) -> 0
A50: 10 | B50: MISCELLANEOUS COSTS & EXPENSES:
B51: Note: LIHTC Fees will recalculate automatically as the application is completed
B53: Market Study | E53: =SUM(H53:N53) -> 0 | S53: =H53-Q53 -> 0
B55: Property Appraisal | E55: =SUM(H55:N55) -> 0 | S55: =H55-Q55 -> 0
B57: Environmental Study | E57: =SUM(H57:N57) -> 0 | S57: =H57-Q57 -> 0
B59: LIHTC Process & Monitoring Fees | E59: =SUM(H59:N59) -> 0 | L59: =IF('Project Income'!E28=0,"",2000+2500+('Tax Credit Calculations'!Q40+'Tax Credit Calculations'!S40)*0.075+'Tax Credit Calculations'!W31*1000) ->  | S59: 0
B61: Relocation | E61: =SUM(H61:N61) -> 0 | S61: =H61-Q61 -> 0
B63: F, F, & E | E63: =SUM(H63:N63) -> 0 | S63: =H63-Q63 -> 0
B65: Other | E65: ='Additional Prj Cost Information'!E29 -> 0 | H65: ='Additional Prj Cost Information'!E29-J65-L65-N65 -> 0 | S65: =H65-Q65 -> 0 | V65: Provide detail for Other Costs on next tab
B67: TOTAL MISCELLANEOUS | E67: =E53+E55+E57+E59+E61+E63+E65 -> 0
A70: 11 | B70: ACQUISITION:
B71: Note: Value of Buildings acquired to be razed and the cost of such demolition should be included as Land. The Net Present Value of lease payments made for any Land or Land and Buildings that are obtained through a long term capital lease should be included as Other.
B73: Structure | E73: =SUM(H73:N73) -> 0 | Q73: =H73 -> 0
B75: Land | E75: =SUM(H75:N75) -> 0
B77: Existing Reserve Account Balances | E77: =SUM(H77:N77) -> 0
B79: Legal associated w/ acquisition | E79: =SUM(H79:N79) -> 0 | Q79: =H79 -> 0
B81: Other | E81: =SUM(H81:N81) -> 0 | H81: ='Additional Prj Cost Information'!E36-J81-L81-N81 -> 0 | Q81: =H81 -> 0 | V81: Provide detail for Other Costs on next tab
B83: TOTAL ACQUISITION | E83: =(E73+E75+E77+E79+E81) -> 0
A85: 12 | B85: RESERVES
B86: Note: Reserve amounts will calculate according to MaineHousing guidelines, if a different amount is used, higher or lower, please provide an explanation
B88: Operating Deficit Escrow | E88: =SUM(H88:N88) -> 0 | N88: =('Operating Budget'!E84+Sources!F58)/2 -> 0
B90: Replacement Reserve | E90: =SUM(H90:N90) -> 0 | N90: =(E9-'Construction Costs'!E52-'Construction Costs'!E19+E73)*0.01 -> 0
B92: Tax & Insurance Escrow | E92: =SUM(H92:N92) -> 0 | N92: ='Operating Budget'!E70/2+'Operating Budget'!E72/6+'Operating Budget'!E72 -> 0
B94: Working Capital | E94: =SUM(H94:N94) -> 0 | N94: =IF('Project Income'!E28<50,'Project Income'!E28*1000,50000) -> 0
B96: Other | E96: ='Additional Prj Cost Information'!E44 -> 0 | N96: =E96 -> 0 | V96: Provide detail for Other Costs on next tab
B98: TOTAL RESERVES: | E98: =(E88+E90+E92+E94+E96) -> 0
A100: 13 | B100: SYNDICATION:
B102: Organizational (Partnership) | E102: =SUM(H102:N102) -> 0
B104: Bridge Loan Fees & Expenses | E104: =SUM(H104:N104) -> 0
B106: Tax Opinion | E106: =SUM(H106:N106) -> 0
B108: Accounting | E108: =SUM(H108:N108) -> 0
B110: Legal | E110: =SUM(H110:N110) -> 0
B112: TOTAL SYNDICATION | E112: =(E102+E104+E106+E108+E110) -> 0
A114: 14 | B114: DEVELOPER FEE:
B116: Consultant Fees | E116: =SUM(H116:N116) -> 0 | S116: =H116-Q116 -> 0
B118: Developer Overhead | E118: =SUM(H118:N118) -> 0 | S118: =H118-Q118 -> 0
B120: Developer Profit | E120: =SUM(H120:N120) -> 0 | S120: =H120-Q120 -> 0
B122: TOTAL DEVELOPER FEE | E122: =(E116+E118+E120) -> 0 | H122: =SUM(H9:H120) -> 0 | J122: =SUM(J9:J120) -> 0 | L122: =SUM(L9:L120) -> 0 | N122: =SUM(N9:N120) -> 0
A125: TOTAL PROJECT COSTS | E125: =E9+E31+E48+E67+E83+E98+E112+E122 -> 0 | Q125: =SUM(Q7:Q122) -> 0 | S125: =SUM(S7:S122) -> 0
G127: ='MH Underwriting'!U62 ->  | L127: ='MH Underwriting'!U64 ->  | N127: ='MH Underwriting'!U66 -> 

Sheet Additional Prj Cost Information
A1: MaineHousing | J1: ='Project Information'!D4 -> Project Name
A3: Insert as many lines as necessary | G3: Notes:
B5: OTHER SOFT COSTS:
B6: 1
B7: 2
B8: 3
B9: 4
B10: 5
C11: TOTAL OTHER SOFT COSTS: | E11: =SUM(E5:E10) -> 0
B14: FINANCING FEES:
B15: 1
B16: 2
B17: 3
B18: 4
B19: 5
C20: TOTAL FINANCING FEES | E20: =SUM(E14:E19) -> 0
B23: MISCELLANEOUS COSTS & EXPENSES:
B24: 1
B25: 2
B26: 3
B27: 4
B28: 5
C29: TOTAL MISCELLANEOUS | E29: =SUM(E23:E28) -> 0
B32: ACQUISITION
B33: 1
B34: 2
B35: 3
C36: TOTAL ACQUISITION | E36: =SUM(E32:E35) -> 0
B38: RESERVES
B39: 1
B40: 2
B41: 3
B42: 4
B43: 5
C44: TOTAL RESERVES: | E44: =SUM(E38:E43) -> 0
B47: NON-HTC ELIGIBLE COSTS
B48: 1
B49: 2
B50: 3
B51: 4
B52: 5
C53: TOTAL NON-HTC ELIGIBLE COSTS | E53: =SUM(E47:E52) -> 0

Sheet TDC per Unit (hidden)
A1: MaineHousing | K1: ='Project Information'!D4 -> Project Name
A3: Project Name: | C3: ='MH Underwriting'!D1 -> Project Name
A4: Location: | C4: ='MH Underwriting'!D2 -> Town
A6: Total Development Cost Index
K8: Drop Down
K9: Yes
K10: No
B11: Project Configuration | F11: ='Project Information'!D26 -> New Construction | I11: Passive House | K11: Drop Down
B15: Adaptive Reuse/Conversion | I15: =IF(B15=$F$11,1,IF($F$11="Adaptive Reuse/Conversion with New Construction",'Project Information'!D28/('Project Information'!I28+'Project Information'!D28),0)) -> 0
B16: New Construction | I16: =IF(B16=$F$11, 1,IF($F$11="Acquisition/Rehab With New Construction",'Project Information'!I28/('Project Information'!I28+'Project Information'!D28),IF($F$11="Adaptive Reuse/Conversion with New Construction",'Project Information'!I28/('Project Information'!I28+'Project Information'!D28),0))) -> 1
B17: Acquisition/Rehab | I17: =IF(B17=$F$11, 1,IF($F$11="Acquisition/Rehab With New Construction",'Project Information'!D28/('Project Information'!I28+'Project Information'!D28),0)) -> 0
B19: Per unit Caps
B21: Adaptive Reuse | H21: =IF($K$11="Yes",337500*1.03,337500) -> 337500
B22: New Construction | H22: =IF($K$11="Yes",318750*1.03,318750) -> 318750
B23: Acquisition/Rehab | H23: =IF($K$11="Yes",206250*1.03,206250) -> 206250
A27: Total Project Cost | F27: ='MH Underwriting'!N68 -> 0
A30: Excluded Costs
A31: MaineHousing Fees | F31: ='MH Underwriting'!F44+'MH Underwriting'!F36 -> 0
A32: Operating Deficit Escrow | F32: ='MH Underwriting'!F57 -> 0
A33: Commercial Costs | F33: ='MH Underwriting'!J68 -> 0
A34: Excess Developer Fee | F34: =IF('MH Underwriting'!T64>'MH Underwriting'!T63,'MH Underwriting'!T64-'MH Underwriting'!T63,0) -> 0
A36: Total | F36: =SUM(F31:F34) -> 0
A39: Total Eligible Development Cost | F39: ='MH Underwriting'!N68-F36 -> 0
A40: Number of Units | F40: ='MH Underwriting'!F5 -> 0
A41: Total Number of Bedrooms | F41: ='MH Underwriting'!B150+'MH Underwriting'!B155+'MH Underwriting'!B160*2+'MH Underwriting'!B165*3+'MH Underwriting'!B170*4 -> 0
A43: TDC/Unit | F43: =IF(F40=0,0,F39/F40) -> 0
A44: TDC/BR | F44: =IF(F41=0,0,F39/F41) -> 0
A46: TDC Index | F46: =(F43*2+F44)/3 -> 0 | H46: Project Cap | K46: =I16*H22+I17*H23+I15*H21 -> 318750
A49: =IF(F46>K46,"WARNING: COSTS ARE TOO HIGH, PROJECT IS NOT ELIGIBLE","") -> 

Sheet Tax Credit Calculations
A1: MaineHousing | Y1: ='Project Information'!D4 -> Project Name
A3: Historic Tax Credits (HTC) | Q3: Eligible Basis | S3: Eligible Basis
D4: Yes
D5: No
B6: HTC Eligible ? | D6: No | Q6: Acquisition | S6: Const/Rehab
D7: This is a drop down menu
G8: Eligible Basis before adjustments | Q8: ='Project Costs & Basis'!Q125 -> 0 | S8: ='Project Costs & Basis'!S125 -> 0
A9: Total Development Cost | D9: =IF(D6="Yes",'Project Costs & Basis'!E125,"") ->  | H9: LESS: portion of Federal grant
H10: used to finance qualifying
A11: Less: | H11: development costs
B12: Acquisition Costs | D12: =IF(D9="","",'Project Costs & Basis'!E83) ->  | H12: Source:
H13: LESS: amount of nonqualified
H14: non-recourse debt
H15: LESS: either nonqualifying units of
H16: higher quality OR nonqualifying
H17: excess cost of higher quality units
H18: LESS: Historic Tax Credit | V18: =IF(D6="yes","Historic Tax Credit Amount will need to be adjusted manually each time the LIHTC amount changes","") -> 
B19: Other | D19: =IF(D9="","",'Additional Prj Cost Information'!E53) ->  | H19: (Residential Portion only) | U19: =IF(V18="","","=") -> 
B20: Provide detail for Other Costs on previous tab | H20: PLUS: portion of basis for
H21: homeless support services | V21: =IF(V18="","","Begin by entering the amount from cell D29 applicable to the residential portion") -> 
A22: Historic Eligible Basis | D22: =IF(D9="","",D9-SUM(D12:D19)) -> 
V23: For Tax-exempt Financing
G24: Adjusted Eligible Basis | Q24: =Q8-Q12-Q14-Q17-Q19+Q21 -> 0 | S24: =S8-S12-S14-S17-S19+S21 -> 0 | V24: DDA's and QCT's can be found
A25: Federal Historic Tax Credit | H25: If improvements are eligible for 130% | V25: at the following web link (left click):
H26: high cost or difficult development area | V26: https://www.novoco.com/resource-centers/affordable-housing-tax-credits/data-tools/fair-market-rents/fair-market-rents/qualified-census-tracts-qcts-and-difficult-development-areas-ddas
B27: multiply by | D27: 0.2 | H27: adjustment, AND developer wishes to | Q27: 1 | S27: 1.3
H28: request such adjustment, insert value. | W28: Applicable Fraction
A29: Total Federal HTC | D29: =IF(D9="",0,D22*D27) -> 0 | E29: =IF(V18="","","=") ->  | V29: Total # | W29: Total # | X29: Gross Res | Y29: Gross L.I.
G30: Total Eligible Basis | Q30: =Q24*Q27 -> 0 | S30: =S24*S27 -> 0 | V30: Res Units | W30: L.I Units | X30: Unit Sq.Ft. | Y30: Unit Sq.Ft.*
A31: Multiply by NET equity | V31: ='Project Income'!E28 -> 0 | W31: =V31-'Project Income'!E10-'Project Income'!E14-'Project Income'!E18-'Project Income'!E22-'Project Income'!E26 -> 0 | X31: ='Building Summary'!F14 -> 0 | Y31: =X31 -> 0
A32: per $1 of Credit | D32: 0.87 | G32: Multiply by applicable fraction | Q32: =MIN(V32,X32) -> 0 | S32: =Q32 -> 0 | V32: =IF(V31=0,0,W31/V31) -> 0 | X32: =IF(X31=0,0,Y31/X31) -> 0
W33: Total Prj. Sq. Ft. | X33: ='Building Summary'!F36 -> 0
A34: Equity Investment | D34: =D29*D32*Y48 -> 0 | V34: * if not 100% L.I., work w/ Archictect determine Sq. Ft. in Market Units
G35: Qualified Basis | Q35: =Q30*Q32 -> 0 | S35: =S30*S32 -> 0
V36: Tax Credit Percentages can be found
A37: State Historic Tax Credit | G37: Multiply by est'd Tax Credit Percentage | Q37: 0.04 | S37: =IF('Project Information'!L4="Yes",Q37,9%) -> 0.09 | V37: at the following web link (left click):
V38: https://www.novoco.com/resource-centers/affordable-housing-tax-credits/data-tools/fair-market-rents/fair-market-rents/tax-credit-percentages-2020
B39: multiply by 25% or 35% | D39: 0.35
G40: Annual LIH Tax Credits | Q40: =Q35*Q37 -> 0 | S40: =S35*S37-Y45 -> 0
A41: Total State Historic Tax Credit | D41: =IF(D9="",0,D22*D39) -> 0
G42: Total LIH Tax Credits - 10 years | Q42: =Q40*10 -> 0 | S42: =S40*10 -> 0 | V42: Reduction in Maximum LIHTC Allocation resulting from excess sources and/or investor requirements
A43: Multiply by NET equity
A44: per $1 of Credit | D44: 0.88
G45: Multiply by NET equity per $1 of Credit | Q45: =S45 -> 0.87 | S45: 0.87
A46: Equity Investment | D46: =D41*D44 -> 0
G48: TOTAL LIHTC EQUITY | Q48: =Q42*Q45*Y48 -> 0 | S48: =S42*S45*Y48 -> 0 | V48: LIHTC Ltd. Partner Percentage | Y48: 0.9999
A49: TOTAL HTC EQUITY | D49: =D34+D46 -> 0
G50: TOTAL EQUITY INVESTMENT | Q50: =D49+Q48+S48 -> 0
R52: =IF(Q40+S40>'Tax Credit Calc'!I25, "WARNING: LITHC EXCEEDS QAP CAP BY","") -> 
Q53: =IF(R52="","",Q40+S40-'Tax Credit Calc'!I25) -> 

Sheet Sources
A1: MaineHousing | I1: ='Project Information'!D4 -> Project Name
D2: Sources of Funding
E5: AMORT-
E6: IZATION | F6: MONTHLY | G6: SPECIAL TERMS/CONDITIONS
B7: LENDER | C7: AMOUNT | D7: RATE | E7: TERM (YRS) | F7: PAYMENT | G7: (deferrals, balloons, adjustable rate, etc.)
A9: CONSTRUCTION SOURCES OF FUNDS
A10: MaineHousing
B11: 0% Deferrred Loan during construction: 50% of requested subsidy for 9% LIHTC Credits Any subsidy for Tax-exempt Applications during construction is at MaineHousing's discretion | C11: =IF('Project Information'!L4="No",C32,0) -> 0 | D11: 0 | E11: 31 | F11: 0 | G11: 0% Deferred Payment Loan
A12: Equity Available during Construction (Aggregate multiple contributions)
B13: Syndicator's Name
A14: Grants Available during Construction
B15: Grant*
A16: Other Permanent Loans Available during Construction, if any
B17: City FEDHOME* | E17: 30 | F17: =IF(C17<1,0,PMT(D17/12,E17*12,C17)*-1) -> 0 | G17: First Installment
B18: AHP Capital Advance* | E18: 30 | F18: 0 | G18: Deferred loan from GP - 100% during Construction
B19: TIF Loan* | E19: 30 | F19: =IF(C19<1,0,PMT(D19/12,E19*12,C19)*-1) -> 0 | G19: 100% at PLC
A20: Conventional Construction Loan
E21: 1
A22: General Partner Loan, if necessary
B25: TOTAL DURING CONSTRUCTION | C25: =SUM(C11:C23) -> 0 | E25: * prefilled sources are for demonstration purposed only and can be replaced by actual funding sources
A28: SOURCES OF FUNDS AT PLC/STABILIZATION
A29: Note: it is not necessary to repeat Permanent Source Advanced during Construction
A31: MaineHousing
B32: 0% Deferred Loan: 9% LIHTC applicants input 50% of the requested subsidy, remaining 50% is completed automatically Tax-exempt applicants input 100% of the subsidy | D32: 0 | E32: 30 | F32: 0 | G32: Deferred Payment
G33: Drop Down Menu
G34: Straight 30 year Amortization
G35: 40 year Amortization with Ballon at end of 30 years
G36: Interest only for 15 yrs., then 30 year Am with Balloon
G37: Interest only for 15 yrs., then 40 year Am with Balloon
G38: Interest Only for 30 Years
B39: Interest Bearing Loan | D39: =IF('Project Information'!L4="Yes",0.055,0.06) -> 0.06 | E39: =IF(OR(G39=G35,G39=G37),40,30) -> 30 | F39: =IF(OR(G39=G38,G39=G37,G39=G36),C39*D39/12,PMT(D39/12,E39*12,C39)*-1) -> 0 | G39: Interest Only for 30 Years
A40: Conventional First Mortgage in lieu of MaineHousing (RD, HUD, FHLB) at PLC
B41: AHP Subsidized Advance | E41: 30 | F41: =IF(C41<1,0,PMT(D41/12,E41*12,C41)*-1) -> 0
A42: Other Loans at PLC
B43: =IF(B17="","",B17) -> City FEDHOME* | E43: 30 | F43: =IF(C43<1,0,PMT(D43/12,E43*12,C43)*-1) -> 0 | G43: Final Installment
B44: =IF(B18="","",B18) -> AHP Capital Advance* | E44: 30 | F44: =IF(C44<1,0,PMT(D44/12,E44*12,C44)*-1) -> 0 | G44: 100% at CLC
B45: =IF(B19="","",B19) -> TIF Loan* | E45: 30 | F45: =IF(C45<1,0,PMT(D45/12,E45*12,C45)*-1) -> 0 | G45: 100% at PLC
E46: 30 | F46: =IF(C46<1,0,PMT(D46/12,E46*12,C46)*-1) -> 0
E47: 30 | F47: 0
A48: Grants
B49: =IF(B15="","",B15) -> Grant*
A50: Equity and Other Unsecured Debts
B51: General Partner (or Affiliate) Loan | G51: Payable from Surplus Cash
B52: Deferred Developer Fee | G52: Payable from Surplus Cash
B53: =IF(B13="","",B13) -> Syndicator's Name | C53: =IF('Tax Credit Calculations'!Q50=0,"",100+'Tax Credit Calculations'!Q50-C13) ->  | G53: Equity @ Completion/Stabiliztion
B55: TOTAL AT PLC/STABILIZATION | C55: =SUM(C32:C53) -> 0 | F55: =SUM(F32:F53)+SUM(F17:F19) -> 0 | H55: =IF(C32+C39=0,"",IF('MH Underwriting'!U81<55%,"POTENTIAL 50% PROBLEM, DISCUSS WITH MAINEHOUSING","")) -> 
B56: Multiply by 12 months | F56: X 12
B58: TOTAL ANNUAL DEBT SERVICE | F58: =F55*12 -> 0
H59: =IF(F60="","",IF(G60>0,"TO ELIMINATE SURPLUS: REDUCE MAINEHOUSING SUBSIDY LOAN FIRST, THEN ADJUST LIHTC, IF NECESSARY","")) -> 
B60: TOTAL PERMANENT SOURCES | C60: =C55+SUM(C11:C19)+C23 -> 0 | F60: =IF(C60<'Project Costs & Basis'!E125-0.5,"FUNDING GAP OF",IF(C60>'Project Costs & Basis'!E125+0.5,"FUNDING SURPLUS OF","")) ->  | G60: =IF(C60<'Project Costs & Basis'!E125-0.5,C60-'Project Costs & Basis'!E125,IF(C60>'Project Costs & Basis'!E125+0.5,C60-'Project Costs & Basis'!E125,"")) -> 
B61: =IF('Project Information'!L4="No",IF('Tax Credit Calculations'!D6="No",IF(C11+C32<=5000000,IF(C11+C32<='Project Information'!M8,"","REQUESTING TOO MUCH SUBSIDY"),"REQUESTING TOO MUCH SUBSIDY"),"NOT ELIGIBLE FOR SUBSIDY"),IF('Tax Credit Calculations'!D6="No",IF(C11+C32<=10000000,IF(C11+C32<='Project Information'!M8,"","REQUESTING TOO MUCH SUBSIDY"),"REQUESTING TOO MUCH SUBSIDY"),IF(C11+C32<=10000000,IF(C11+C32<='Project Information'!M8,"","REQUESTING TOO MUCH SUBSIDY"),"REQUESTING TOO MUCH SUBSIDY"))) ->  | E61: =IF(B61="","",IF('Tax Credit Calculations'!D6="Yes","","PROGRAM CAP IS")) ->  | F61: =IF(E61="","",'Project Information'!M8) -> 

Sheet NPV-PV calculations (hidden)
A1: Project Name: | C1: ='Project Information'!D4 -> Project Name
A2: Location: | C2: ='Project Information'!D8 -> Town
A4: For each Source of Funds on the previous Tab that qualifies as Below Market Funding, calculate the value of the funds using the appropriate method below
A6: Amortizing Loan | G6: Accruing Loan | J6: Accruing Loan
A9: Amount | C9: Amortization | D9: Term | E9: Note Rate | G9: Amount | J9: Amount
C11: 30 | D11: 20 | E11: 0.03 | G11: Term | H11: 30 | J11: Term | K11: 30
G13: Note Rate | H13: 0.03 | J13: Note Rate | K13: 0
C14: ="@" -> @ | D14: ="@" -> @
C15: =H15 -> 0.0454 | D15: =E11 -> 0.03 | E15: Difference | G15: Market Rate | H15: =1.54%+3% -> 0.0454 | J15: Market Rate | K15: =H15 -> 0.0454
A18: Equal Monthly
A19: Payments of | B19: 1 | C19: =PMT(C15/12,C11*12,-A11) -> 0 | D19: =PMT(E11/12,C11*12,-A11) -> 0 | E19: =C19-D19 -> 0 | G19: Accrued Value @ Mkt | H19: =H9*(1+H15)^H11 -> 0 | J19: Accrued Value @ Mkt | K19: =K9*(1+K15)^K11 -> 0
G20: Accrued Value @ Note Rate | H20: =H9*(1+H13)^H11 -> 0 | J20: Accrued Value @ Note Rate | K20: =K9*(1+K13)^K11 -> 0
A21: =IF(C11>D11,"for","") -> for
A22: =IF(A21="","",IF(D11=15,"Fourteen Yrs.",IF(D11=20,"Nineteen Yrs.",IF(D11=25,"Twenty-four Yrs.","Twenty-nine Yrs.")))) -> Nineteen Yrs. | G22: Difference | H22: =H19-H20 -> 0 | J22: Difference | K22: =K19-K20 -> 0
A23: =IF(A22="","","& Eleven Mos.") -> & Eleven Mos.
G24: PV of Subsidy | H24: =-PV(H15,H11,0,H22) -> 0 | J24: PV of Subsidy | K24: =-PV(K15,K11,0,K22) -> 0
B25: =B19+1 -> 2 | C25: =IF($B25>$C$11*12,"",C$19) -> 0 | D25: 0 | E25: 0
B26: =B25+1 -> 3 | C26: 0 | D26: 0 | E26: 0
B27: 4 | C27: 0 | D27: 0 | E27: 0
B28: 5 | C28: 0 | D28: 0 | E28: 0
B29: 6 | C29: 0 | D29: 0 | E29: 0
B30: 7 | C30: 0 | D30: 0 | E30: 0
B31: 8 | C31: 0 | D31: 0 | E31: 0
B32: 9 | C32: 0 | D32: 0 | E32: 0
B33: 10 | C33: 0 | D33: 0 | E33: 0
B34: 11 | C34: 0 | D34: 0 | E34: 0
B35: 12 | C35: 0 | D35: 0 | E35: 0
B36: 13 | C36: 0 | D36: 0 | E36: 0
B37: 14 | C37: 0 | D37: 0 | E37: 0
B38: 15 | C38: 0 | D38: 0 | E38: 0
B39: 16 | C39: 0 | D39: 0 | E39: 0
B40: 17 | C40: 0 | D40: 0 | E40: 0
B41: 18 | C41: 0 | D41: 0 | E41: 0
B42: 19 | C42: 0 | D42: 0 | E42: 0
B43: 20 | C43: 0 | D43: 0 | E43: 0
B44: 21 | C44: 0 | D44: 0 | E44: 0
B45: 22 | C45: =IF($B45>$C$11*12,"",C$19) -> 0 | D45: 0 | E45: 0
B46: 23 | C46: 0 | D46: 0 | E46: 0
B47: 24 | C47: 0 | D47: 0 | E47: 0
B48: 25 | C48: 0 | D48: 0 | E48: 0
B49: 26 | C49: 0 | D49: 0 | E49: 0
B50: 27 | C50: 0 | D50: 0 | E50: 0
B51: 28 | C51: 0 | D51: 0 | E51: 0
B52: 29 | C52: 0 | D52: 0 | E52: 0
B53: 30 | C53: 0 | D53: 0 | E53: 0
B54: 31 | C54: 0 | D54: 0 | E54: 0
B55: 32 | C55: 0 | D55: 0 | E55: 0
B56: 33 | C56: 0 | D56: 0 | E56: 0
B57: 34 | C57: 0 | D57: 0 | E57: 0
B58: 35 | C58: 0 | D58: 0 | E58: 0
B59: 36 | C59: 0 | D59: 0 | E59: 0
B60: 37 | C60: 0 | D60: 0 | E60: 0
B61: 38 | C61: 0 | D61: 0 | E61: 0
B62: 39 | C62: 0 | D62: 0 | E62: 0
B63: 40 | C63: 0 | D63: 0 | E63: 0
B64: 41 | C64: 0 | D64: 0 | E64: 0
B65: 42 | C65: =IF($B65>$C$11*12,"",C$19) -> 0 | D65: 0 | E65: 0
B66: 43 | C66: 0 | D66: 0 | E66: 0
B67: 44 | C67: 0 | D67: 0 | E67: 0
B68: 45 | C68: 0 | D68: 0 | E68: 0
B69: 46 | C69: 0 | D69: 0 | E69: 0
B70: 47 | C70: 0 | D70: 0 | E70: 0
B71: 48 | C71: 0 | D71: 0 | E71: 0
B72: 49 | C72: 0 | D72: 0 | E72: 0
B73: 50 | C73: 0 | D73: 0 | E73: 0
B74: 51 | C74: 0 | D74: 0 | E74: 0
B75: 52 | C75: 0 | D75: 0 | E75: 0
B76: 53 | C76: 0 | D76: 0 | E76: 0
B77: 54 | C77: 0 | D77: 0 | E77: 0
B78: 55 | C78: 0 | D78: 0 | E78: 0
B79: 56 | C79: 0 | D79: 0 | E79: 0
B80: 57 | C80: 0 | D80: 0 | E80: 0
B81: 58 | C81: 0 | D81: 0 | E81: 0
B82: 59 | C82: 0 | D82: 0 | E82: 0
B83: 60 | C83: 0 | D83: 0 | E83: 0
B84: 61 | C84: 0 | D84: 0 | E84: 0
B85: 62 | C85: =IF($B85>$C$11*12,"",C$19) -> 0 | D85: 0 | E85: 0
B86: 63 | C86: 0 | D86: 0 | E86: 0
B87: 64 | C87: 0 | D87: 0 | E87: 0
B88: 65 | C88: 0 | D88: 0 | E88: 0
B89: 66 | C89: 0 | D89: 0 | E89: 0
B90: =B89+1 -> 67 | C90: 0 | D90: 0 | E90: 0
B91: 68 | C91: 0 | D91: 0 | E91: 0
B92: 69 | C92: 0 | D92: 0 | E92: 0
B93: 70 | C93: 0 | D93: 0 | E93: 0
B94: 71 | C94: 0 | D94: 0 | E94: 0
B95: 72 | C95: 0 | D95: 0 | E95: 0
B96: 73 | C96: 0 | D96: 0 | E96: 0
B97: 74 | C97: 0 | D97: 0 | E97: 0
B98: 75 | C98: 0 | D98: 0 | E98: 0
B99: 76 | C99: 0 | D99: 0 | E99: 0
B100: 77 | C100: 0 | D100: 0 | E100: 0
B101: 78 | C101: 0 | D101: 0 | E101: 0
B102: 79 | C102: 0 | D102: 0 | E102: 0
B103: 80 | C103: 0 | D103: 0 | E103: 0
B104: 81 | C104: 0 | D104: 0 | E104: 0
B105: 82 | C105: =IF($B105>$C$11*12,"",C$19) -> 0 | D105: 0 | E105: 0
B106: 83 | C106: 0 | D106: 0 | E106: 0
B107: 84 | C107: 0 | D107: 0 | E107: 0
B108: 85 | C108: 0 | D108: 0 | E108: 0
B109: 86 | C109: 0 | D109: 0 | E109: 0
B110: 87 | C110: 0 | D110: 0 | E110: 0
B111: 88 | C111: 0 | D111: 0 | E111: 0
B112: 89 | C112: 0 | D112: 0 | E112: 0
B113: 90 | C113: 0 | D113: 0 | E113: 0
B114: 91 | C114: 0 | D114: 0 | E114: 0
B115: 92 | C115: 0 | D115: 0 | E115: 0
B116: 93 | C116: 0 | D116: 0 | E116: 0
B117: 94 | C117: 0 | D117: 0 | E117: 0
B118: 95 | C118: 0 | D118: 0 | E118: 0
B119: 96 | C119: 0 | D119: 0 | E119: 0
B120: 97 | C120: 0 | D120: 0 | E120: 0
B121: 98 | C121: 0 | D121: 0 | E121: 0
B122: 99 | C122: 0 | D122: 0 | E122: 0
B123: 100 | C123: 0 | D123: 0 | E123: 0
B124: 101 | C124: 0 | D124: 0 | E124: 0
B125: 102 | C125: =IF($B125>$C$11*12,"",C$19) -> 0 | D125: 0 | E125: 0
B126: 103 | C126: 0 | D126: 0 | E126: 0
B127: 104 | C127: 0 | D127: 0 | E127: 0
B128: 105 | C128: 0 | D128: 0 | E128: 0
B129: 106 | C129: 0 | D129: 0 | E129: 0
B130: 107 | C130: 0 | D130: 0 | E130: 0
B131: 108 | C131: 0 | D131: 0 | E131: 0
B132: 109 | C132: 0 | D132: 0 | E132: 0
B133: 110 | C133: 0 | D133: 0 | E133: 0
B134: 111 | C134: 0 | D134: 0 | E134: 0
B135: 112 | C135: 0 | D135: 0 | E135: 0
B136: 113 | C136: 0 | D136: 0 | E136: 0
B137: 114 | C137: 0 | D137: 0 | E137: 0
B138: 115 | C138: 0 | D138: 0 | E138: 0
B139: 116 | C139: 0 | D139: 0 | E139: 0
B140: 117 | C140: 0 | D140: 0 | E140: 0
B141: 118 | C141: 0 | D141: 0 | E141: 0
B142: 119 | C142: 0 | D142: 0 | E142: 0
B143: 120 | C143: 0 | D143: 0 | E143: 0
B144: 121 | C144: 0 | D144: 0 | E144: 0
B145: 122 | C145: =IF($B145>$C$11*12,"",C$19) -> 0 | D145: 0 | E145: 0
B146: 123 | C146: 0 | D146: 0 | E146: 0
B147: 124 | C147: 0 | D147: 0 | E147: 0
B148: 125 | C148: 0 | D148: 0 | E148: 0
B149: 126 | C149: 0 | D149: 0 | E149: 0
B150: 127 | C150: 0 | D150: 0 | E150: 0
B151: 128 | C151: 0 | D151: 0 | E151: 0
B152: 129 | C152: 0 | D152: 0 | E152: 0
B153: 130 | C153: 0 | D153: 0 | E153: 0
B154: =B153+1 -> 131 | C154: 0 | D154: 0 | E154: 0
B155: 132 | C155: 0 | D155: 0 | E155: 0
B156: 133 | C156: 0 | D156: 0 | E156: 0
B157: 134 | C157: 0 | D157: 0 | E157: 0
B158: 135 | C158: 0 | D158: 0 | E158: 0
B159: 136 | C159: 0 | D159: 0 | E159: 0
B160: 137 | C160: 0 | D160: 0 | E160: 0
B161: 138 | C161: 0 | D161: 0 | E161: 0
B162: 139 | C162: 0 | D162: 0 | E162: 0
B163: 140 | C163: 0 | D163: 0 | E163: 0
B164: 141 | C164: 0 | D164: 0 | E164: 0
B165: 142 | C165: =IF($B165>$C$11*12,"",C$19) -> 0 | D165: 0 | E165: 0
B166: 143 | C166: 0 | D166: 0 | E166: 0
B167: 144 | C167: 0 | D167: 0 | E167: 0
B168: 145 | C168: 0 | D168: 0 | E168: 0
B169: 146 | C169: 0 | D169: 0 | E169: 0
B170: 147 | C170: 0 | D170: 0 | E170: 0
B171: 148 | C171: 0 | D171: 0 | E171: 0
B172: 149 | C172: 0 | D172: 0 | E172: 0
B173: 150 | C173: 0 | D173: 0 | E173: 0
B174: 151 | C174: 0 | D174: 0 | E174: 0
B175: 152 | C175: 0 | D175: 0 | E175: 0
B176: 153 | C176: 0 | D176: 0 | E176: 0
B177: 154 | C177: 0 | D177: 0 | E177: 0
B178: 155 | C178: 0 | D178: 0 | E178: 0
B179: 156 | C179: 0 | D179: 0 | E179: 0
B180: 157 | C180: 0 | D180: 0 | E180: 0
B181: 158 | C181: 0 | D181: 0 | E181: 0
B182: 159 | C182: 0 | D182: 0 | E182: 0
B183: 160 | C183: 0 | D183: 0 | E183: 0
B184: 161 | C184: 0 | D184: 0 | E184: 0
B185: 162 | C185: =IF($B185>$C$11*12,"",C$19) -> 0 | D185: 0 | E185: 0
B186: 163 | C186: 0 | D186: 0 | E186: 0
B187: 164 | C187: 0 | D187: 0 | E187: 0
B188: 165 | C188: 0 | D188: 0 | E188: 0
B189: 166 | C189: 0 | D189: 0 | E189: 0
B190: 167 | C190: 0 | D190: 0 | E190: 0
B191: 168 | C191: 0 | D191: 0 | E191: 0
B192: 169 | C192: 0 | D192: 0 | E192: 0
B193: 170 | C193: 0 | D193: 0 | E193: 0
B194: 171 | C194: 0 | D194: 0 | E194: 0
B195: 172 | C195: 0 | D195: 0 | E195: 0
B196: 173 | C196: 0 | D196: 0 | E196: 0
B197: 174 | C197: 0 | D197: 0 | E197: 0
B198: 175 | C198: 0 | D198: 0 | E198: 0
B199: 176 | C199: 0 | D199: 0 | E199: 0
B200: 177 | C200: 0 | D200: 0 | E200: 0
B201: 178 | C201: 0 | D201: 0 | E201: 0
B202: 179 | C202: 0 | D202: 0 | E202: 0
B203: =B202+1 -> 180 | C203: =IF($B203>$C$11*12,"",IF(AND($C$11>$D$11,B203>=$D$11*12),"",C$19)) -> 0 | D203: =IF($B203>$C$11*12,"",IF(AND($C$11>$D$11,B203>=$D$11*12),"",D$19)) -> 0 | E203: =IF($B203>$C$11*12,"",IF(AND($C$11>$D$11,B203>=$D$11*12),"",E$19)) -> 0
B204: 181 | C204: =IF($B204>$C$11*12,"",IF(AND($C$11>$D$11,B204>=$D$11*12),"",C$19)) -> 0 | D204: =IF($B204>$C$11*12,"",IF(AND($C$11>$D$11,B204>=$D$11*12),"",D$19)) -> 0 | E204: =IF($B204>$C$11*12,"",IF(AND($C$11>$D$11,B204>=$D$11*12),"",E$19)) -> 0
B205: 182 | C205: 0 | D205: 0 | E205: 0
B206: 183 | C206: 0 | D206: 0 | E206: 0
B207: 184 | C207: 0 | D207: 0 | E207: 0
B208: 185 | C208: 0 | D208: 0 | E208: 0
... 423 more rows

Sheet Project Completion Sch (hidden)
A1: MaineHousing | K1: ='Project Information'!D4 -> Project Name
E3: Project Completion Schedule
C7: Activity | G7: Actual/Scheduled Date
G8: Month/Year
C10: A. SITE
D12: Option/Contract
D14: Site Acquisition
D16: Zoning Approval
D18: Site Analysis
C20: B. FINANCING
D22: Construction Loan Commitment
D24: Permanent Loan Commitment
D26: Other Sources Committed
C28: C. PLANS AND SPECIFICATIONS
D30: 0.5
D32: 0.9
D34: 1
C36: D. CONSTRUCTION LOAN CLOSING
C38: E. CONSTRUCTION START
C40: F. COMPLETION OF CONSTRUCTION
C42: G. LEASE-UP
D44: Initial Lease-up
D46: Sustained (95%) Occupancy
C49: Please account for application processing - approximately 60 days from the application due date.

Sheet MH Underwriting
B1: PROJECT NAME: | D1: ='Project Information'!D4 -> Project Name | G1: Date:
B2: LOCATION: | D2: ='Project Information'!D8 -> Town
R3: Max LIHTC Available | T3: ='Tax Credit Calc'!I23 -> 0
B4: DEVELOPMENT ASSUMPTIONS | R4: LIHTC Alloc. | T4: ='Tax Credit Calc'!I25 -> 0
B5: Total Units | F5: =E173 -> 0 | G5: Inflation Adjustments | I5: Yr 1-5 | J5: Yr. 6-15 | K5: Yr. 16-30 | R5: Equity yield | T5: ='Tax Credit Calculations'!S45 -> 0.87
B6: # @ 50% AMI (low HOME) | E6: =IF($F$5=0,0,F6/$F$5) -> 0 | F6: =E146+E151+E156+E161+E166 -> 0 | G6: Rent | I6: 0.02 | J6: 0.025 | K6: 0.03 | R6: Synd. % | T6: ='Tax Credit Calculations'!Y48 -> 0.9999
B7: # @ 50% AMI (High HOME) | E7: =IF($F$5=0,0,F7/$F$5) -> 0 | F7: =E147+E152+E157+E162+E167 -> 0 | G7: Operating Expense | I7: 0.03 | J7: =I7 -> 0.03 | K7: =J7 -> 0.03 | R7: Equity Raise | T7: =T4*T5*10*T6 -> 0
B8: # @ 50% AMI (LIHTC) | E8: =IF($F$5=0,0,F8/$F$5) -> 0 | F8: =E148+E153+E158+E163+E168 -> 0 | G8: Other Income | I8: =I6 -> 0.02 | J8: =J6 -> 0.025 | K8: =K6 -> 0.03
B9: # @ 60% AMI (LIHTC) | E9: =IF($F$5=0,0,F9/$F$5) -> 0 | F9: =E149+E154+E159+E164+E169 -> 0 | G9: Debt Coverage Ratio | I9: =F190 -> 1.15 | R9: Historic Credit FED | T9: =IF('Tax Credit Calc'!E8="No",0,IF('Tax Credit Calculations'!S19="",(F21-F15+F32+F34+F35+F41+F42+F43+F55+F62+F63+F64)*0.2,'Tax Credit Calculations'!S19)) -> 0
B10: # @ Market | E10: =IF($F$5=0,0,F10/$F$5) -> 0 | F10: =E150+E155+E160+E165+E170 -> 0 | G10: Vacancy | I10: =I178 -> 0.05 | R10: Equity yield | T10: ='Tax Credit Calculations'!D32 -> 0.87
B11: Appraised Market Value | F11: =(H189+(M173-K173))/0.08 -> 0 | G11: Market Value/Unit | I11: =IF($F$5=0,0,$F$11/$F$5) -> 0 | R11: Synd. % | T11: =T6 -> 0.9999
R12: Equity Raise | T12: =T9*T10*T11 -> 0
B13: PRO FORMA DEVELOPMENT BUDGET
F14: Residential | H14: Per Unit | J14: Commercial | N14: TDC | R14: Historic Credit STATE | T14: =T9/0.2*'Tax Credit Calculations'!D39 -> 0
B15: ='Tax Credit Calc'!A54 -> Site Improvements | F15: =N15-J15 -> 0 | H15: =IF($F$5=0,0,F15/$F$5) -> 0 | N15: ='Construction Costs'!E19 -> 0 | R15: Equity yield Equivilent | T15: ='Tax Credit Calculations'!D44 -> 0.88
B16: ='Tax Credit Calc'!A55 -> Construction | F16: 0 | H16: 0 | J16: ='Project Costs & Basis'!J9*(100/105) -> 0 | N16: ='Construction Costs'!E27 -> 0 | R16: Synd. % | T16: 1
B17: ='Tax Credit Calc'!A56 -> General Requirements | F17: 0 | H17: 0 | N17: ='Construction Costs'!E45 -> 0 | R17: Equity Raise | T17: =T14*T15*T16 -> 0
B18: ='Tax Credit Calc'!A57 -> Builder Profit | F18: 0 | H18: =IF($F$5=0,0,F18/$F$5) -> 0 | N18: ='Construction Costs'!E48 -> 0
B19: ='Tax Credit Calc'!A58 -> Bond Premium | F19: 0 | H19: =IF($F$5=0,0,F19/$F$5) -> 0 | N19: ='Construction Costs'!E50 -> 0 | R19: GP Contribution | T19: =IF(T7=0,0,100) -> 0
B20: ='Tax Credit Calc'!A59 -> Construction Contingency | E20: ='Tax Credit Calc'!C59 -> 0 | F20: 0 | H20: =IF($F$5=0,0,F20/$F$5) -> 0 | J20: ='Project Costs & Basis'!J9-J16 -> 0 | N20: ='Construction Costs'!E52 -> 0
B21: ='Tax Credit Calc'!A60 -> Subtotal Construction Costs | F21: =SUM(F15:F20) -> 0 | H21: =IF($F$5=0,0,F21/$F$5) -> 0 | J21: =SUM(J15:J20) -> 0 | N21: =F21+J21 -> 0 | R21: Total Equity: | T21: =T7+T12+T17+T19 -> 0
B23: ='Tax Credit Calc'!A62 -> Building Permits and Fees | F23: =N23-J23 -> 0 | H23: =IF($F$5=0,0,F23/$F$5) -> 0 | J23: ='Project Costs & Basis'!J13 -> 0 | N23: ='Project Costs & Basis'!E13 -> 0 | R23: Gross Square Footage | T23: ='Building Summary'!F36 -> 0
B24: ='Tax Credit Calc'!A63 -> Survey & Engineering | F24: =N24-J24 -> 0 | H24: 0 | J24: ='Project Costs & Basis'!J15 -> 0 | N24: ='Project Costs & Basis'!E15 -> 0 | R24: Construction Cost/Sq ft. | T24: =IF(T23=0,0,(F21-F20)/T23) -> 0
B25: ='Tax Credit Calc'!A64 -> Architectural & Design | F25: 0 | H25: 0 | J25: ='Project Costs & Basis'!J17 -> 0 | N25: ='Project Costs & Basis'!E17 -> 0 | R25: Total Project Cost/Sq ft. | T25: =IF(T23=0,0,N68/T23) -> 0
B26: ='Tax Credit Calc'!A65 -> Legal | F26: 0 | H26: 0 | J26: ='Project Costs & Basis'!J19 -> 0 | N26: ='Project Costs & Basis'!E19 -> 0
B27: ='Tax Credit Calc'!A66 -> Title & Recording | F27: 0 | H27: 0 | J27: ='Project Costs & Basis'!J21 -> 0 | N27: ='Project Costs & Basis'!E21 -> 0 | P27: Notes:
B28: ='Tax Credit Calc'!A67 -> Accounting | F28: 0 | H28: 0 | J28: ='Project Costs & Basis'!J23 -> 0 | N28: ='Project Costs & Basis'!E23 -> 0
B29: ='Tax Credit Calc'!A68 -> Construction Period Tax | F29: 0 | H29: 0 | J29: ='Project Costs & Basis'!J25 -> 0 | N29: ='Project Costs & Basis'!E25 -> 0
B30: ='Tax Credit Calc'!A69 -> Construction Period Insurance | F30: 0 | H30: 0 | J30: ='Project Costs & Basis'!J27 -> 0 | N30: ='Project Costs & Basis'!E27 -> 0
B31: ='Tax Credit Calc'!A70 -> Other | F31: 0 | H31: 0 | J31: ='Project Costs & Basis'!J29 -> 0 | N31: ='Project Costs & Basis'!E29 -> 0
B32: ='Tax Credit Calc'!A71 -> Subtotal Soft Costs | F32: =SUM(F23:F31) -> 0 | H32: 0 | J32: =SUM(J23:J31) -> 0 | N32: =F32+J32 -> 0
B34: ='Tax Credit Calc'!A73 -> Construction Loan Origination Fees | F34: =N34-J34 -> 0 | H34: =IF($F$5=0,0,F34/$F$5) -> 0 | J34: ='Project Costs & Basis'!J38 -> 0 | N34: ='Project Costs & Basis'!E38 -> 0
B35: ='Tax Credit Calc'!A74 -> Construction Loan Interest | F35: =N35-J35 -> 0 | H35: 0 | J35: ='Project Costs & Basis'!J40 -> 0 | N35: ='Project Costs & Basis'!E40 -> 0
B36: ='Tax Credit Calc'!A75 -> MaineHousing Permanent Loan Fees | F36: =N36-J36 -> 0 | H36: 0 | J36: ='Project Costs & Basis'!J42 -> 0 | N36: ='Project Costs & Basis'!E42 -> 0
B37: ='Tax Credit Calc'!A76 -> Other Permanent Loan Fees | F37: =N37-J37 -> 0 | H37: 0 | J37: ='Project Costs & Basis'!J44 -> 0 | N37: ='Project Costs & Basis'!E44 -> 0
B38: ='Tax Credit Calc'!A77 -> Other | F38: =N38-J38 -> 0 | H38: 0 | J38: ='Project Costs & Basis'!J46 -> 0 | N38: ='Project Costs & Basis'!E46 -> 0
B39: ='Tax Credit Calc'!A78 -> Subtotal Finance Costs | F39: =SUM(F34:F38) -> 0 | H39: 0 | J39: =SUM(J34:J38) -> 0 | N39: =F39+J39 -> 0
B41: ='Tax Credit Calc'!A80 -> Market Survey | F41: =N41-J41 -> 0 | H41: =IF($F$5=0,0,F41/$F$5) -> 0 | J41: ='Project Costs & Basis'!J53 -> 0 | N41: ='Project Costs & Basis'!E53 -> 0
B42: ='Tax Credit Calc'!A81 -> Appraisal | F42: 0 | H42: 0 | J42: ='Project Costs & Basis'!J55 -> 0 | N42: ='Project Costs & Basis'!E55 -> 0
B43: ='Tax Credit Calc'!A82 -> Environmental Study | F43: 0 | H43: 0 | J43: ='Project Costs & Basis'!J57 -> 0 | N43: ='Project Costs & Basis'!E57 -> 0
B44: ='Tax Credit Calc'!A83 -> LIHTC Fees & Prepaid Monitoring | F44: 0 | H44: 0 | J44: ='Project Costs & Basis'!J59 -> 0 | N44: ='Project Costs & Basis'!E59 -> 0
B45: ='Tax Credit Calc'!A84 -> Relocation Costs | F45: 0 | H45: 0 | J45: ='Project Costs & Basis'!J61 -> 0 | N45: ='Project Costs & Basis'!E61 -> 0
B46: ='Tax Credit Calc'!A85 -> FF&E | F46: 0 | H46: 0 | J46: ='Project Costs & Basis'!J63 -> 0 | N46: ='Project Costs & Basis'!E63 -> 0
B47: ='Tax Credit Calc'!A86 -> Other | F47: 0 | H47: 0 | J47: ='Project Costs & Basis'!J65 -> 0 | N47: ='Project Costs & Basis'!E65 -> 0
B48: ='Tax Credit Calc'!A87 -> Subtotal Miscellaneous | F48: =SUM(F41:F47) -> 0 | H48: 0 | J48: =SUM(J41:J47) -> 0 | N48: =F48+J48 -> 0
B50: ='Tax Credit Calc'!A89 -> Acquisition: Buildings | F50: =N50-J50 -> 0 | H50: =IF($F$5=0,0,F50/$F$5) -> 0 | J50: ='Project Costs & Basis'!J73 -> 0 | N50: ='Project Costs & Basis'!E73 -> 0
B51: ='Tax Credit Calc'!A90 -> Acquisition: Land | F51: 0 | H51: 0 | J51: ='Project Costs & Basis'!J75 -> 0 | N51: ='Project Costs & Basis'!E75 -> 0
B52: ='Tax Credit Calc'!A91 -> Acquisition: Existing Reserves | F52: 0 | H52: 0 | J52: ='Project Costs & Basis'!J77 -> 0 | N52: ='Project Costs & Basis'!E77 -> 0
B53: ='Tax Credit Calc'!A92 -> Acquisition: Legal | F53: 0 | H53: 0 | J53: ='Project Costs & Basis'!J79 -> 0 | N53: ='Project Costs & Basis'!E79 -> 0
B54: ='Tax Credit Calc'!A93 -> Acquisition: other | F54: 0 | H54: 0 | J54: ='Project Costs & Basis'!J81 -> 0 | N54: ='Project Costs & Basis'!E81 -> 0
B55: ='Tax Credit Calc'!A94 -> Subtotal Acquisition | F55: =SUM(F50:F54) -> 0 | H55: 0 | J55: =SUM(J50:J54) -> 0 | N55: =F55+J55 -> 0
B57: ='Tax Credit Calc'!A96 -> Operating Deficit Escrow | F57: =N57-J57 -> 0 | H57: =IF($F$5=0,0,F57/$F$5) -> 0 | J57: ='Project Costs & Basis'!J88 -> 0 | N57: ='Project Costs & Basis'!E88 -> 0
B58: ='Tax Credit Calc'!A97 -> Pre-funded Replacements | F58: 0 | H58: 0 | J58: ='Project Costs & Basis'!J90 -> 0 | N58: ='Project Costs & Basis'!E90 -> 0
B59: ='Tax Credit Calc'!A98 -> Tax & Insurance Escrow | F59: 0 | H59: 0 | J59: ='Project Costs & Basis'!J92 -> 0 | N59: ='Project Costs & Basis'!E92 -> 0
B60: ='Tax Credit Calc'!A99 -> Working Capital | F60: 0 | H60: =IF($F$5=0,0,F60/$F$5) -> 0 | J60: ='Project Costs & Basis'!J94 -> 0 | N60: ='Project Costs & Basis'!E94 -> 0
B61: ='Tax Credit Calc'!A100 -> Total Syndication Expenses | F61: 0 | H61: 0 | J61: ='Project Costs & Basis'!J112 -> 0 | N61: ='Project Costs & Basis'!E112 -> 0 | R61: =IF(F5<20,F5*17500,20*17500+(F5-20)*15000) -> 0 | S61: =IF(F5<20,F5*10000,20*10000+(F5-20)*5000) -> 0 | T61: =IF('Project Information'!D28+'Project Information'!I28 =0,0,IF(OR('Project Information'!D26="Acquisition/Rehab",'Project Information'!D26="Acquisition/Rehab With New Construction"),S61*('Project Information'!D28/('Project Information'!D28+'Project Information'!I28))+R61*(1-('Project Information'!D28/('Project Information'!D28+'Project Information'!I28))),R61)) -> 0
B62: ='Tax Credit Calc'!A101 -> Consultant Fee | F62: 0 | H62: 0 | J62: ='Project Costs & Basis'!J116 -> 0 | N62: ='Project Costs & Basis'!E116 -> 0 | P62: Maximum Gross Developer Fee (10%/15%) | T62: =(F68-F55-F62-F63-F64)*15%+(F55*10%) -> 0 | U62: =IF(T64>T62,"Gross Fee is Too High","") -> 
B63: ='Tax Credit Calc'!A102 -> Developer Overhead | F63: 0 | H63: 0 | J63: ='Project Costs & Basis'!J118 -> 0 | N63: ='Project Costs & Basis'!E118 -> 0 | P63: Maximum Net Developer Fee (per unit max) | T63: =IF(T62<750000,T62,750000) -> 0
B64: ='Tax Credit Calc'!A103 -> Developer Profit | F64: 0 | H64: 0 | J64: ='Project Costs & Basis'!J120 -> 0 | N64: ='Project Costs & Basis'!E120 -> 0 | P64: Actual Proposed Gross Fee | T64: =F62+F63+F64 -> 0 | U64: =IF(U62="","",IF(T66>T63,"and","")) -> 
B65: ='Tax Credit Calc'!A104 -> Other | F65: 0 | H65: 0 | J65: ='Project Costs & Basis'!J96 -> 0 | N65: ='Project Costs & Basis'!E96 -> 0 | P65: % of maximum Gross Fee | T65: =IF(T62=0,0,T64/T62) -> 0
B66: ='Tax Credit Calc'!A105 -> Subtotal Fee and Reserves | F66: =SUM(F57:F65) -> 0 | H66: 0 | J66: =SUM(J57:J65) -> 0 | N66: =F66+J66 -> 0 | P66: Proposed Net Fee Collected | T66: =T64-R95 -> 0 | U66: =IF(T66>T63,"Net Fee is Too High","") -> 
P67: % of Maximum Net Fee | T67: =IF(T62=0,0,T66/T63) -> 0
B68: ='Tax Credit Calc'!A107 -> Total Project Costs | F68: =F21+F32+F39+F48+F55+F66 -> 0 | H68: =IF($F$5=0,0,F68/$F$5) -> 0 | J68: =J21+J32+J39+J48+J55+J66 -> 0 | N68: =F68+J68 -> 0 | S68: =IF(T68="","","Net Fee Collected should not exceed") ->  | T68: =IF(U66="","",T63) -> 
P69: =IF(U64="","",U64) ->  | S69: =IF(T69="","","Gross Fee should not exceed") ->  | T69: =IF(U62="","",T62) -> 
U70: ='Project Information'!D4 -> Project Name
B71: FLOW OF FUNDS
P72: 1st Equity | Q72: Final
E73: 2022-03-31 | G73: During Construction | P73: Occupancy | Q73: Capital
B74: Sources | E74: CLC | G74: 0.25 | H74: 0.5 | I74: 0.75 | J74: 1 | N74: PLC | P74: Milestone | Q74: Payment | R74: Total
B76: Beginning Cash | E76: 0 | G76: =E116 -> 0 | H76: =G116 -> 0 | I76: =H116 -> 0 | J76: =I116 -> 0 | N76: =J116 -> 0 | P76: =N116 -> 0 | Q76: =P116 -> 0 | R76: =E76 -> 0
T77: 50% Test
B78: Capital Contribution | E78: =IF(Sources!C13=0,0,100+Sources!C13-SUM(G78:J78)) -> 0 | H78: =Sources!C13/2 -> 0 | N78: =T21-E78-SUM(G78:J78)-P78-Q78 -> 0 | P78: =T21*0.05 -> 0 | Q78: =T21*0.0125 -> 0 | R78: =SUM(E78:Q78) -> 0 | T78: Agg. Basis | U78: =IF(T80="Not Applicable","",'Tax Credit Calc'!F107+'MH Underwriting'!J68+'MH Underwriting'!N51) -> 
B79: Construction Loan | E79: =IF(E114-E78-E80-SUM(E82:E95)-E76>0,E114-E78-E80-SUM(E82:E95)-E76,0) -> 0 | G79: =IF(G114-G78-G80-SUM(G82:G95)-G76>0,G114-G78-G80-SUM(G82:G95)-G76,0) -> 0 | H79: 0 | I79: 0 | J79: 0 | R79: =ROUNDUP(SUM(E79:Q79),-5) -> 0 | T79: Perm. TE | U79: =IF(U78="","",G124+G123+T17) -> 
B80: GP Bridge Loan | R80: =SUM(E80:Q80) -> 0 | T80: =IF('Tax Credit Calc'!E10="No","Not Applicable","") -> Not Applicable
U81: =IF(U78="","",IF(U78=0,0,U79/U78)) -> 
B82: MH: | C82: 0% Deferred Loan-FedHOME | E82: =IF('Project Information'!L4="Yes",0,Sources!C11-SUM(G82:J82)) -> 0 | N82: =IF('Project Information'!L4="Yes",Sources!C32-SUM(G82:J82),Sources!C32-N83) -> 0 | R82: =SUM(E82:Q82) -> 0 | T82: Min TE Amt | U82: =IF(U78="","",ROUNDUP(U78*0.55,-4)) -> 
C83: 0% Deferred Loan-Other | N83: =E82*0.5 -> 0 | R83: =SUM(E83:Q83) -> 0 | T83: % of CL | U83: =IF(U82="","",IF(R79=0,0,U82/R79)) -> 
C84: =Sources!B39 -> Interest Bearing Loan | N84: =Sources!C39 -> 0 | R84: 0 | T84: Bal. of CL | U84: =IF(U78="","",R79-U82) -> 
C85: =IF(Sources!G39="Drop Down Menu","",Sources!G39) -> Interest Only for 30 Years
B86: Conventional First Mortgage | W86: Construction Loan Interest Estimate
C87: =IF(Sources!B41="","",Sources!B41) -> AHP Subsidized Advance | N87: =Sources!C41 -> 0 | R87: =SUM(E87:Q87) -> 0 | W87: Construction Period | X87: Mon. Per Quarter | Y87: Interest Rate | AA87: Mon. to Close | AB87: Utilization Rate
C88: =IF(Sources!B17="",IF(Sources!B43="","",Sources!B43),Sources!B17) -> City FEDHOME* | E88: =Sources!C17 -> 0 | N88: =Sources!C43 -> 0 | R88: =SUM(E88:Q88) -> 0 | W88: =IF(INDIRECT("'Project Completion Sch'!G39",TRUE)="",12,ROUND(((INDIRECT("'Project Completion Sch'!G39",TRUE)-INDIRECT("'Project Completion Sch'!G35",TRUE)))/30,)) -> 12 | X88: =W88/4 -> 3 | Y88: 0.035 | AA88: 3 | AB88: 0.6
C89: =IF(Sources!B18="",IF(Sources!B44="","",Sources!B44),Sources!B18) -> AHP Capital Advance* | G89: =Sources!C18 -> 0 | N89: =Sources!C44 -> 0 | R89: =SUM(F89:Q89) -> 0
C90: =IF(Sources!B19="",IF(Sources!B45="","",Sources!B45),Sources!B19) -> TIF Loan* | E90: =Sources!C19 -> 0 | N90: =Sources!C45 -> 0 | R90: 0 | W90: Drawn | X90: Cummulative
B91: =Sources!B46 ->  | E91: 0 | N91: =Sources!C46 -> 0 | R91: 0 | V91: CLC | W91: =$E$79 -> 0 | X91: =W91 -> 0
B92: =Sources!B47 ->  | E92: 0 | N92: =Sources!C47 -> 0 | R92: 0 | V92: 1 | W92: =IF(OR(V92<$X$88,V92=$X$88),$G$79/$X$88,IF(OR(V92<$X$88*2,V92=$X$88*2),$H$79/$X$88,IF(OR(V92<$X$88*3,V92=$X$88*3),$I$79/$X$88,IF(OR(V92<$X$88*4,V92=$X$88*4),$J$79/$X$88,IF(V92=$W$88+1,$R$79-SUM(W91:$W$91),0))))) -> 0 | X92: =X91+W92 -> 0 | Y92: =X91*$Y$88/12 -> 0 | Z92: =Z91+Y92 -> 0 | AA92: =IF(V92=ROUND($X$88,),ROUND(Z92-$Z$91,),IF(V92=ROUND($X$88*2,),ROUND(Z92-VLOOKUP(ROUND($X$88,),$V$91:$Z$120,5,FALSE),),IF(V92=ROUND($X$88*3,),ROUND(Z92-VLOOKUP(ROUND($X$88*2,),$V$91:$Z$120,5,FALSE),),IF(V92=ROUND($X$88*4,),ROUND(Z92-VLOOKUP(ROUND($X$88*3,),$V$91:$Z$120,5,FALSE),),IF(V92=ROUND($X$88*4,)+$AA$88,ROUND(Z92-VLOOKUP(ROUND($X$88*4,),$V$91:$Z$120,5,FALSE),),)))))/(VLOOKUP($W$88+1,$V$91:$Z$120,5,FALSE)+((VLOOKUP($W$88+1,$V$91:$Z$120,4,FALSE))*($AA$88-1))) ->  | AB92: =IF(V92=$W$88+$AA$88,$R$79*$AB$88*($Y$88/12)*($W$88+$AA$88),"") -> 
C93: =IF(Sources!B15="",IF(Sources!B49="","",Sources!B49),Sources!B15) -> Grant* | E93: =Sources!C15 -> 0 | N93: =Sources!C49 -> 0 | R93: =SUM(E93:Q93) -> 0 | V93: 2 | W93: =IF(OR(V93<$X$88,V93=$X$88),$G$79/$X$88,IF(OR(V93<$X$88*2,V93=$X$88*2),$H$79/$X$88,IF(OR(V93<$X$88*3,V93=$X$88*3),$I$79/$X$88,IF(OR(V93<$X$88*4,V93=$X$88*4),$J$79/$X$88,IF(V93=$W$88+1,$R$79-SUM(W$91:$W92),0))))) -> 0 | X93: 0 | Y93: 0 | Z93: =Z92+Y93 -> 0 | AA93: =IF(V93=ROUND($X$88,),ROUND(Z93-$Z$91,),IF(V93=ROUND($X$88*2,),ROUND(Z93-VLOOKUP(ROUND($X$88,),$V$91:$Z$120,5,FALSE),),IF(V93=ROUND($X$88*3,),ROUND(Z93-VLOOKUP(ROUND($X$88*2,),$V$91:$Z$120,5,FALSE),),IF(V93=ROUND($X$88*4,),ROUND(Z93-VLOOKUP(ROUND($X$88*3,),$V$91:$Z$120,5,FALSE),),IF(V93=ROUND($X$88*4,)+$AA$88,ROUND(Z93-VLOOKUP(ROUND($X$88*4,),$V$91:$Z$120,5,FALSE),),)))))/(VLOOKUP($W$88+1,$V$91:$Z$120,5,FALSE)+((VLOOKUP($W$88+1,$V$91:$Z$120,4,FALSE))*($AA$88-1))) ->  | AB93: =IF(V93=$W$88+$AA$88,$R$79*$AB$88*($Y$88/12)*($W$88+$AA$88),"") -> 
C94: =Sources!B51 -> General Partner (or Affiliate) Loan | E94: =Sources!C23-E80 -> 0 | N94: =Sources!C51 -> 0 | R94: =SUM(E94:Q94) -> 0 | V94: 3 | W94: =IF(OR(V94<$X$88,V94=$X$88),$G$79/$X$88,IF(OR(V94<$X$88*2,V94=$X$88*2),$H$79/$X$88,IF(OR(V94<$X$88*3,V94=$X$88*3),$I$79/$X$88,IF(OR(V94<$X$88*4,V94=$X$88*4),$J$79/$X$88,IF(V94=$W$88+1,$R$79-SUM(W$91:$W93),0))))) -> 0 | X94: 0 | Y94: 0 | Z94: 0
C95: =Sources!B52 -> Deferred Developer Fee | N95: =Sources!C52 -> 0 | R95: =SUM(E95:Q95) -> 0 | V95: 4 | W95: =IF(OR(V95<$X$88,V95=$X$88),$G$79/$X$88,IF(OR(V95<$X$88*2,V95=$X$88*2),$H$79/$X$88,IF(OR(V95<$X$88*3,V95=$X$88*3),$I$79/$X$88,IF(OR(V95<$X$88*4,V95=$X$88*4),$J$79/$X$88,IF(V95=$W$88+1,$R$79-SUM(W$91:$W94),0))))) -> 0 | X95: 0 | Y95: 0 | Z95: 0
B96: TOTAL SOURCES | E96: =SUM(E76:E95) -> 0 | G96: =SUM(G76:G95) -> 0 | H96: =SUM(H76:H95) -> 0 | I96: =SUM(I76:I95) -> 0 | J96: =SUM(J76:J95) -> 0 | N96: =SUM(N76:N95) -> 0 | P96: =SUM(P76:P95) -> 0 | Q96: =SUM(Q76:Q95) -> 0 | R96: =SUM(R78:R95) -> 0 | V96: 5 | W96: =IF(OR(V96<$X$88,V96=$X$88),$G$79/$X$88,IF(OR(V96<$X$88*2,V96=$X$88*2),$H$79/$X$88,IF(OR(V96<$X$88*3,V96=$X$88*3),$I$79/$X$88,IF(OR(V96<$X$88*4,V96=$X$88*4),$J$79/$X$88,IF(V96=$W$88+1,$R$79-SUM(W$91:$W95),0))))) -> 0 | X96: 0 | Y96: 0 | Z96: 0
V97: 6 | W97: =IF(OR(V97<$X$88,V97=$X$88),$G$79/$X$88,IF(OR(V97<$X$88*2,V97=$X$88*2),$H$79/$X$88,IF(OR(V97<$X$88*3,V97=$X$88*3),$I$79/$X$88,IF(OR(V97<$X$88*4,V97=$X$88*4),$J$79/$X$88,IF(V97=$W$88+1,$R$79-SUM(W$91:$W96),0))))) -> 0 | X97: 0 | Y97: 0 | Z97: 0
B98: Uses | V98: 7 | W98: =IF(OR(V98<$X$88,V98=$X$88),$G$79/$X$88,IF(OR(V98<$X$88*2,V98=$X$88*2),$H$79/$X$88,IF(OR(V98<$X$88*3,V98=$X$88*3),$I$79/$X$88,IF(OR(V98<$X$88*4,V98=$X$88*4),$J$79/$X$88,IF(V98=$W$88+1,$R$79-SUM(W$91:$W97),0))))) -> 0 | X98: 0 | Y98: 0 | Z98: 0
V99: 8 | W99: =IF(OR(V99<$X$88,V99=$X$88),$G$79/$X$88,IF(OR(V99<$X$88*2,V99=$X$88*2),$H$79/$X$88,IF(OR(V99<$X$88*3,V99=$X$88*3),$I$79/$X$88,IF(OR(V99<$X$88*4,V99=$X$88*4),$J$79/$X$88,IF(V99=$W$88+1,$R$79-SUM(W$91:$W98),0))))) -> 0 | X99: 0 | Y99: 0 | Z99: 0
B100: Acquisition | E100: =F55 -> 0 | R100: =SUM(E100:Q100) -> 0 | V100: 9 | W100: =IF(OR(V100<$X$88,V100=$X$88),$G$79/$X$88,IF(OR(V100<$X$88*2,V100=$X$88*2),$H$79/$X$88,IF(OR(V100<$X$88*3,V100=$X$88*3),$I$79/$X$88,IF(OR(V100<$X$88*4,V100=$X$88*4),$J$79/$X$88,IF(V100=$W$88+1,$R$79-SUM(W$91:$W99),0))))) -> 0 | X100: 0 | Y100: 0 | Z100: 0
B101: Construction | G101: =$F$21/4 -> 0 | H101: =$F$21/4 -> 0 | I101: =$F$21/4 -> 0 | J101: =$F$21/4 -> 0 | R101: 0 | V101: 10 | W101: =IF(OR(V101<$X$88,V101=$X$88),$G$79/$X$88,IF(OR(V101<$X$88*2,V101=$X$88*2),$H$79/$X$88,IF(OR(V101<$X$88*3,V101=$X$88*3),$I$79/$X$88,IF(OR(V101<$X$88*4,V101=$X$88*4),$J$79/$X$88,IF(V101=$W$88+1,$R$79-SUM(W$91:$W100),0))))) -> 0 | X101: 0 | Y101: 0 | Z101: 0
B102: Soft Costs | E102: =F32-SUM(G102:Q102) -> 0 | G102: =IF($N32=0,0,10000) -> 0 | H102: =IF($N32=0,0,10000) -> 0 | I102: 0 | J102: 0 | N102: =IF(N$32=0,0,F28+10000) -> 0 | R102: 0 | V102: 11 | W102: =IF(OR(V102<$X$88,V102=$X$88),$G$79/$X$88,IF(OR(V102<$X$88*2,V102=$X$88*2),$H$79/$X$88,IF(OR(V102<$X$88*3,V102=$X$88*3),$I$79/$X$88,IF(OR(V102<$X$88*4,V102=$X$88*4),$J$79/$X$88,IF(V102=$W$88+1,$R$79-SUM(W$91:$W101),0))))) -> 0 | X102: 0 | Y102: 0 | Z102: 0
B103: Financing Costs | E103: =F39-SUM(G103:Q103) -> 0 | G103: =$N$35*0.04 -> 0 | H103: =$N$35*0.12 -> 0 | I103: =$N$35*0.22 -> 0 | J103: =$N$35*0.34 -> 0 | N103: =$N$35*0.28 -> 0 | R103: 0 | V103: 12 | W103: =IF(OR(V103<$X$88,V103=$X$88),$G$79/$X$88,IF(OR(V103<$X$88*2,V103=$X$88*2),$H$79/$X$88,IF(OR(V103<$X$88*3,V103=$X$88*3),$I$79/$X$88,IF(OR(V103<$X$88*4,V103=$X$88*4),$J$79/$X$88,IF(V103=$W$88+1,$R$79-SUM(W$91:$W102),0))))) -> 0 | X103: 0 | Y103: 0 | Z103: 0
B104: Miscellaneous | E104: =F48+F65-SUM(G104:Q104) -> 0 | N104: =+'Tax Credit Calculations'!W31*1000 -> 0 | R104: 0 | V104: 13 | W104: =IF(OR(V104<$X$88,V104=$X$88),$G$79/$X$88,IF(OR(V104<$X$88*2,V104=$X$88*2),$H$79/$X$88,IF(OR(V104<$X$88*3,V104=$X$88*3),$I$79/$X$88,IF(OR(V104<$X$88*4,V104=$X$88*4),$J$79/$X$88,IF(V104=$W$88+1,$R$79-SUM(W$91:$W103),0))))) -> 0 | X104: 0 | Y104: 0 | Z104: 0
B105: Dev Fee | E105: =F62 -> 0 | N105: =($F$63+$F$64)-SUM(G105:J105)-P105-Q105 -> 0 | P105: =P78-SUM(P100:P104)-P106-P113 -> 0 | Q105: =Q78-SUM(Q100:Q104)-Q106-Q113 -> 0 | R105: 0 | V105: 14 | W105: =IF(OR(V105<$X$88,V105=$X$88),$G$79/$X$88,IF(OR(V105<$X$88*2,V105=$X$88*2),$H$79/$X$88,IF(OR(V105<$X$88*3,V105=$X$88*3),$I$79/$X$88,IF(OR(V105<$X$88*4,V105=$X$88*4),$J$79/$X$88,IF(V105=$W$88+1,$R$79-SUM(W$91:$W104),0))))) -> 0 | X105: 0 | Y105: 0 | Z105: =Z104+Y105 -> 0
B106: Reserves | J106: =F60 -> 0 | N106: =F57+F58+F59 -> 0 | R106: 0 | V106: 15 | W106: =IF(OR(V106<$X$88,V106=$X$88),$G$79/$X$88,IF(OR(V106<$X$88*2,V106=$X$88*2),$H$79/$X$88,IF(OR(V106<$X$88*3,V106=$X$88*3),$I$79/$X$88,IF(OR(V106<$X$88*4,V106=$X$88*4),$J$79/$X$88,IF(V106=$W$88+1,$R$79-SUM(W$91:$W105),0))))) -> 0 | X106: 0 | Y106: 0 | Z106: =Z105+Y106 -> 0 | AB106: 0
B107: TOTAL DEV. COSTS | E107: =SUM(E100:E106) -> 0 | G107: =SUM(G100:G106) -> 0 | H107: =SUM(H100:H106) -> 0 | I107: =SUM(I100:I106) -> 0 | J107: =SUM(J100:J106) -> 0 | N107: =SUM(N100:N106) -> 0 | P107: =SUM(P100:P106) -> 0 | Q107: =SUM(Q100:Q106) -> 0 | R107: =SUM(R100:R106) -> 0 | V107: 16 | W107: =IF(OR(V107<$X$88,V107=$X$88),$G$79/$X$88,IF(OR(V107<$X$88*2,V107=$X$88*2),$H$79/$X$88,IF(OR(V107<$X$88*3,V107=$X$88*3),$I$79/$X$88,IF(OR(V107<$X$88*4,V107=$X$88*4),$J$79/$X$88,IF(V107=$W$88+1,$R$79-SUM(W$91:$W106),0))))) -> 0 | X107: 0 | Y107: 0 | Z107: =Z106+Y107 -> 0
V108: 17 | W108: =IF(OR(V108<$X$88,V108=$X$88),$G$79/$X$88,IF(OR(V108<$X$88*2,V108=$X$88*2),$H$79/$X$88,IF(OR(V108<$X$88*3,V108=$X$88*3),$I$79/$X$88,IF(OR(V108<$X$88*4,V108=$X$88*4),$J$79/$X$88,IF(V108=$W$88+1,$R$79-SUM(W$91:$W107),0))))) -> 0 | X108: 0 | Y108: 0 | Z108: 0
B109: Repay GP Bridge Loan | N109: =R80-P109-Q109 -> 0 | R109: =SUM(E109:Q109) -> 0 | V109: 18 | W109: =IF(OR(V109<$X$88,V109=$X$88),$G$79/$X$88,IF(OR(V109<$X$88*2,V109=$X$88*2),$H$79/$X$88,IF(OR(V109<$X$88*3,V109=$X$88*3),$I$79/$X$88,IF(OR(V109<$X$88*4,V109=$X$88*4),$J$79/$X$88,IF(V109=$W$88+1,$R$79-SUM(W$91:$W108),0))))) -> 0 | X109: 0 | Y109: 0 | Z109: 0
B110: Repay Construction Loan | N110: =SUM(E79:J79)-P110-Q110 -> 0 | R110: =R79 -> 0 | V110: 19 | W110: =IF(OR(V110<$X$88,V110=$X$88),$G$79/$X$88,IF(OR(V110<$X$88*2,V110=$X$88*2),$H$79/$X$88,IF(OR(V110<$X$88*3,V110=$X$88*3),$I$79/$X$88,IF(OR(V110<$X$88*4,V110=$X$88*4),$J$79/$X$88,IF(V110=$W$88+1,$R$79-SUM(W$91:$W109),0))))) -> 0 | X110: 0 | Y110: 0 | Z110: 0
B111: Other Syndication Costs | E111: =F61-SUM(G111:N111) -> 0 | R111: =SUM(E111:Q111) -> 0 | V111: 20 | W111: =IF(OR(V111<$X$88,V111=$X$88),$G$79/$X$88,IF(OR(V111<$X$88*2,V111=$X$88*2),$H$79/$X$88,IF(OR(V111<$X$88*3,V111=$X$88*3),$I$79/$X$88,IF(OR(V111<$X$88*4,V111=$X$88*4),$J$79/$X$88,IF(V111=$W$88+1,$R$79-SUM(W$91:$W110),0))))) -> 0 | X111: 0 | Y111: 0 | Z111: 0
B112: Total Commercial Costs | G112: =J68/4 -> 0 | H112: =G112 -> 0 | I112: =H112 -> 0 | J112: =I112 -> 0 | R112: =SUM(E112:Q112) -> 0 | V112: 21 | W112: =IF(OR(V112<$X$88,V112=$X$88),$G$79/$X$88,IF(OR(V112<$X$88*2,V112=$X$88*2),$H$79/$X$88,IF(OR(V112<$X$88*3,V112=$X$88*3),$I$79/$X$88,IF(OR(V112<$X$88*4,V112=$X$88*4),$J$79/$X$88,IF(V112=$W$88+1,$R$79-SUM(W$91:$W111),0))))) -> 0 | X112: 0 | Y112: 0 | Z112: 0
B113: SUBTOTAL OTHER ITEMS | E113: =SUM(E109:E112) -> 0 | G113: =SUM(G109:G112) -> 0 | H113: 0 | I113: 0 | J113: 0 | N113: =SUM(N109:N112) -> 0 | P113: =SUM(P109:P111) -> 0 | Q113: =SUM(Q109:Q111) -> 0 | R113: =SUM(R109:R112) -> 0 | V113: 22 | W113: =IF(OR(V113<$X$88,V113=$X$88),$G$79/$X$88,IF(OR(V113<$X$88*2,V113=$X$88*2),$H$79/$X$88,IF(OR(V113<$X$88*3,V113=$X$88*3),$I$79/$X$88,IF(OR(V113<$X$88*4,V113=$X$88*4),$J$79/$X$88,IF(V113=$W$88+1,$R$79-SUM(W$91:$W112),0))))) -> 0 | X113: 0 | Y113: 0 | Z113: 0
B114: TOTAL USES OF FUNDS | E114: =E107+E113 -> 0 | G114: =G107+G113 -> 0 | H114: =H107+H113 -> 0 | I114: =I107+I113 -> 0 | J114: =J107+J113 -> 0 | N114: =N107+N113 -> 0 | P114: =P107+P113 -> 0 | Q114: =Q107+Q113 -> 0 | R114: =R107+R113 -> 0 | V114: 23 | W114: =IF(OR(V114<$X$88,V114=$X$88),$G$79/$X$88,IF(OR(V114<$X$88*2,V114=$X$88*2),$H$79/$X$88,IF(OR(V114<$X$88*3,V114=$X$88*3),$I$79/$X$88,IF(OR(V114<$X$88*4,V114=$X$88*4),$J$79/$X$88,IF(V114=$W$88+1,$R$79-SUM(W$91:$W113),0))))) -> 0 | X114: 0 | Y114: 0 | Z114: 0
T115: Sub. Per Unit | U115: =IF(F5=0,0,(G122+G123)/F5) -> 0 | V115: 24 | W115: =IF(OR(V115<$X$88,V115=$X$88),$G$79/$X$88,IF(OR(V115<$X$88*2,V115=$X$88*2),$H$79/$X$88,IF(OR(V115<$X$88*3,V115=$X$88*3),$I$79/$X$88,IF(OR(V115<$X$88*4,V115=$X$88*4),$J$79/$X$88,IF(V115=$W$88+1,$R$79-SUM(W$91:$W114),0))))) -> 0 | X115: 0 | Y115: 0 | Z115: 0
B116: Ending Cash | E116: =E96-E114 -> 0 | G116: =G96-G114 -> 0 | H116: =H96-H114 -> 0 | I116: =I96-I114 -> 0 | J116: =J96-J114 -> 0 | N116: =N96-N114 -> 0 | P116: =P96-P114 -> 0 | Q116: =Q96-Q114 -> 0 | R116: =R96-R114 -> 0 | T116: Sub. Per L.I Unit | U116: =IF(F5=0,0,(G122+G123)/SUM(F6:F9)) -> 0 | V116: 25 | W116: =IF(OR(V116<$X$88,V116=$X$88),$G$79/$X$88,IF(OR(V116<$X$88*2,V116=$X$88*2),$H$79/$X$88,IF(OR(V116<$X$88*3,V116=$X$88*3),$I$79/$X$88,IF(OR(V116<$X$88*4,V116=$X$88*4),$J$79/$X$88,IF(V116=$W$88+1,$R$79-SUM(W$91:$W115),0))))) -> 0 | X116: 0 | Y116: 0 | Z116: 0
T117: Mkt. Diff. Per Unit | U117: =IF(E173=0,0,(M173-K173)/E173/12) -> 0 | V117: 26 | W117: =IF(OR(V117<$X$88,V117=$X$88),$G$79/$X$88,IF(OR(V117<$X$88*2,V117=$X$88*2),$H$79/$X$88,IF(OR(V117<$X$88*3,V117=$X$88*3),$I$79/$X$88,IF(OR(V117<$X$88*4,V117=$X$88*4),$J$79/$X$88,IF(V117=$W$88+1,$R$79-SUM(W$91:$W116),0))))) -> 0 | X117: 0 | Y117: 0 | Z117: 0
V118: 27 | W118: =IF(OR(V118<$X$88,V118=$X$88),$G$79/$X$88,IF(OR(V118<$X$88*2,V118=$X$88*2),$H$79/$X$88,IF(OR(V118<$X$88*3,V118=$X$88*3),$I$79/$X$88,IF(OR(V118<$X$88*4,V118=$X$88*4),$J$79/$X$88,IF(V118=$W$88+1,$R$79-SUM(W$91:$W117),0))))) -> 0 | X118: 0 | Y118: 0 | Z118: 0
B119: PROJECT FINANCING | Q119: COLLATERAL COVERAGE (Permanent) | V119: 28 | W119: =IF(OR(V119<$X$88,V119=$X$88),$G$79/$X$88,IF(OR(V119<$X$88*2,V119=$X$88*2),$H$79/$X$88,IF(OR(V119<$X$88*3,V119=$X$88*3),$I$79/$X$88,IF(OR(V119<$X$88*4,V119=$X$88*4),$J$79/$X$88,IF(V119=$W$88+1,$R$79-SUM(W$91:$W118),0))))) -> 0 | X119: 0 | Y119: 0 | Z119: 0
B120: Source | G120: Amount | H120: Rate | I120: Term | J120: Lien | K120: Annual D/S | T120: Total | U120: Per Unit
K121: Yr. 1-5 | N121: Yr. 6-15 | O121: Yr. 16-30 | Q121: First Lien Financing | T121: =SUMIFS(G122:G134,J122:J134,"First") -> 0 | U121: =IF($F$5=0,0,T121/$F$5) -> 0
B122: Source 1: | D122: =C82 -> 0% Deferred Loan-FedHOME | G122: =R82 -> 0 | H122: =Sources!D32 -> 0 | I122: =Sources!E32 -> 30 | J122: First | K122: 0 | N122: =K122 -> 0 | O122: =N122 -> 0 | Q122: Appraised Market Value | T122: =F11 -> 0 | U122: =IF($F$5=0,0,T122/$F$5) -> 0 | W122: =_xlfn.IFNA(SUM(VLOOKUP(D122,$C$82:$J$95,3,FALSE),VLOOKUP(D122,$C$82:$J$95,5,FALSE),VLOOKUP(D122,$C$82:$J$95,6,FALSE),VLOOKUP(D122,$C$82:$J$95,7,FALSE),VLOOKUP(D122,$C$82:$J$95,8,FALSE)),) -> 0
B123: Source 2: | D123: =C83 -> 0% Deferred Loan-Other | G123: =R83 -> 0 | H123: =H122 -> 0 | I123: =I122 -> 30 | J123: First | K123: 0 | N123: =K123 -> 0 | O123: =N123 -> 0 | Q123: Loan to Value Ratio | T123: =IF(T122=0,0,T121/T122) -> 0 | W123: =_xlfn.IFNA(SUM(VLOOKUP(D123,$C$82:$J$95,3,FALSE),VLOOKUP(D123,$C$82:$J$95,5,FALSE),VLOOKUP(D123,$C$82:$J$95,6,FALSE),VLOOKUP(D123,$C$82:$J$95,7,FALSE),VLOOKUP(D123,$C$82:$J$95,8,FALSE)),) -> 0
B124: Source 3 | D124: =C84 -> Interest Bearing Loan | G124: =R84 -> 0 | H124: =Sources!D39 -> 0.06 | I124: =Sources!E39 -> 30 | J124: =J122 -> First | K124: =IF(OR(Sources!$G$39="Straight 30 year Amortization",Sources!$G$39="40 year Amortization with Ballon at end of 30 years"),PMT(H124/12,I124*12,G124)*-12,G124*H124) -> 0 | N124: =IF(OR(Sources!$G$39="Straight 30 year Amortization",Sources!$G$39="40 year Amortization with Ballon at end of 30 years"),PMT(H124/12,I124*12,G124)*-12,G124*H124) -> 0 | O124: =IF(Sources!$G$39="Interest Only for 30 Years",G124*H124,PMT(H124/12,I124*12,G124)*-12) -> 0 | Q124: Second Lien Financing | T124: =T121+SUMIFS(G122:G134,J122:J134,"Second") -> 0 | U124: =IF($F$5=0,0,T124/$F$5) -> 0 | W124: 0
B125: Source 4 | D125: =C87 -> AHP Subsidized Advance | G125: =R87 -> 0 | H125: =Sources!D41 -> 0 | I125: =Sources!E41 -> 30 | J125: =J124 -> First | K125: =IF(G125<1,0,PMT($H125/12,$I125*12,$G125)*12*-1) -> 0 | N125: =K125 -> 0 | O125: =N125 -> 0 | Q125: Loan to Value Ratio | T125: =IF(T122=0,0,T124/T122) -> 0 | W125: 0
B126: Source 5 | D126: =C88 -> City FEDHOME* | G126: 0 | H126: =Sources!D43 -> 0 | I126: =Sources!E43 -> 30 | J126: Second | K126: =IF(G126=0,0,Sources!F43*12) -> 0 | N126: =IF(I126<=5,0,K126) -> 0 | O126: =IF(I126<=15,0,N126) -> 0 | Q126: Third Lien Financing | T126: =T124+SUMIFS(G122:G134,J122:J134,"Third") -> 0 | U126: =IF($F$5=0,0,T126/$F$5) -> 0 | W126: 0
B127: Source 6 | D127: =C89 -> AHP Capital Advance* | G127: 0 | H127: =Sources!D44 -> 0 | I127: =IF(G127=0,30,Sources!E44) -> 30 | J127: Second | K127: =IF(G127=0,0,(Sources!F44+Sources!F18)*12) -> 0 | N127: =IF(I127<=5,0,K127) -> 0 | O127: =IF(I127<=15,0,N127) -> 0 | Q127: Loan to Value Ratio | T127: =IF(T122=0,0,T126/T122) -> 0 | W127: 0
B128: Source 7 | D128: =C90 -> TIF Loan* | G128: 0 | H128: =Sources!D45 -> 0 | I128: =IF(G128=0,30,Sources!E45) -> 30 | J128: Second | K128: =IF(G128=0,0,Sources!F45*12) -> 0 | N128: =IF(I128<=5,0,K128) -> 0 | O128: =IF(I128<=15,0,N128) -> 0 | W128: 0
B129: Source 8 | D129: =B91 ->  | G129: 0 | H129: =Sources!D46 -> 0 | I129: =IF(G129=0,30,Sources!E46) -> 30 | J129: Third | K129: =IF(G129=0,0,Sources!F46*12) -> 0 | N129: =IF(I129<=5,0,K129) -> 0 | O129: =IF(I129<=15,0,N129) -> 0 | Q129: COLLATERAL COVERAGE (Construction) | W129: 0
B130: Source 9 | G130: 0 | H130: =Sources!D47 -> 0 | I130: =IF(G130=0,30,Sources!E47) -> 30 | J130: Third | K130: =IF(G130=0,0,Sources!F47*12) -> 0 | N130: =IF(I130<=5,0,K130) -> 0 | O130: =IF(I130<=15,0,N130) -> 0 | T130: Total | U130: Per Unit | W130: 0
B131: Source 10 | D131: =C93 -> Grant* | G131: 0 | J131: Third | K131: Grant | Q131: First Lien Financing | T131: =R79+SUMIFS($W$122:$W$133,$J$122:$J$133,"First") -> 0 | U131: =IF($F$5=0,0,T131/$F$5) -> 0 | W131: 0
B132: Source 11 | D132: =C94 -> General Partner (or Affiliate) Loan | G132: 0 | J132: Unsecured | K132: Cash Flow | Q132: Appraised Market Value | T132: =T122+G134 -> 0 | U132: =IF($F$5=0,0,T132/$F$5) -> 0 | W132: 0
B133: Source 12 | D133: =C95 -> Deferred Developer Fee | G133: 0 | J133: Unsecured | K133: Cash Flow | Q133: Loan to Value Ratio | T133: =IF(T132=0,0,T131/T132) -> 0 | W133: 0
B134: Source 13 | D134: Net Syndication | G134: =R78 -> 0 | H134: =IF(G134=0,0,G134/(T4*10)) -> 0 | Q134: Second Lien Financing | T134: =T131+SUMIFS(W122:W133,J122:J133,"Second") -> 0 | U134: =IF($F$5=0,0,T134/$F$5) -> 0
Q135: Loan to Value Ratio | T135: =IF(T132=0,0,T134/T132) -> 0
D136: Capitalization Gap | G136: =G138-SUM(G122:G134) -> 0 | Q136: Third Lien Financing | T136: =T134+SUMIFS(W122:W133,J122:J133,"Third") -> 0 | U136: =IF($F$5=0,0,T136/$F$5) -> 0
Q137: Loan to Value Ratio | T137: =IF(T132=0,0,T136/T132) -> 0
D138: Total | G138: =N68 -> 0
U140: ='Project Information'!D4 -> Project Name
B142: PROPOSED RENT SCHEDULE | F142: Maximum | H142: Maximum | O142: OPERATING EXPENSES
F143: Gross | G143: Less | H143: Net
F144: LIHTC/HOME | G144: Utility | H144: Tenant | I144: Rents from | J144: Market | K144: Total | T144: Annual | U144: Monthly
B145: Type | D145: AMI | E145: # Units | F145: Rents | G145: Allow. | H145: Rent | I145: Applicant | J145: Rent | K145: Rent | O145: Expense | S145: Annual | T145: Per Unit | U145: Per Unit
B146: Efficiency | D146: 50% LHOME | J146: =IF(E146="","",J150) ->  | K146: =IF(E146="","",IF(F146<J146,IF(I146<H146,I146*E146*12,H146*E146*12),(J146-G146)*E146*12)) ->  | L146: =IF(E146="","",H149*E146*12) ->  | M146: =IF(E146="","",J146*E146*12) ->  | O146: Administrative Expenses:
D147: 50% HHOME | J147: =IF(E147="","",J149) ->  | K147: =IF(E147="","",IF(F147<J147,IF(I147<H147,I147*E147*12,H147*E147*12),(J147-G147)*E147*12)) ->  | L147: =IF(E147="","",H148*E147*12) ->  | M147: =IF(E147="","",J147*E147*12) ->  | O147: Management Fees | S147: ='Operating Budget'!E9 -> 0 | T147: =IF($F$5=0,0,S147/$F$5) -> 0 | U147: =T147/12 -> 0 | W147: LIHTC Scoring Criteria A.3. Calculations
D148: 50% LIHTC | E148: ='Project Income'!E8 -> 0 | F148: ='Project Income'!G8 -> 0 | G148: ='Project Income'!H8 -> 0 | H148: ='Project Income'!I8 -> 0 | I148: ='Project Income'!K8 -> 0 | J148: =IF(E148="","",J150) -> 0 | K148: =IF(E148="","",IF(F148<J148,IF(I148<H148,I148*E148*12,H148*E148*12),(J148-G148)*E148*12)) -> 0 | L148: =IF(E148="","",H149*E148*12) -> 0 | M148: =IF(E148="","",J148*E148*12) -> 0 | O148: Management Charges | S148: ='Operating Budget'!E11 -> 0 | T148: 0 | U148: 0
D149: 60% LIHTC | E149: ='Project Income'!E9 -> 0 | F149: ='Project Income'!G9 -> 0 | G149: ='Project Income'!H9 -> 0 | H149: ='Project Income'!I9 -> 0 | I149: ='Project Income'!K9 -> 0 | J149: =IF(E149="","",J150) -> 0 | K149: =IF(E149="","",IF(F149<J149,IF(I149<H149,I149*E149*12,H149*E149*12),(J149-G149)*E149*12)) -> 0 | L149: =IF(E149="","",H149*E149*12) -> 0 | M149: 0 | O149: Marketing Expenses | S149: ='Operating Budget'!E13 -> 0 | T149: 0 | U149: 0 | W149: Total 2+ BR LI | Y149: =Y150+B160-E160 -> 0 | Z149: =IF(Y149=0,0,(Y149/Y153)) -> 0
B150: =SUM(E146:E150) -> 0 | D150: Market | E150: ='Project Income'!E10 -> 0 | I150: ='Project Income'!K10 -> 0 | J150: ='Project Income'!I10 -> 0 | K150: =IF(E150="","",IF(I150<J150,I150*E150*12,J150*E150*12)) -> 0 | L150: =IF(E150="","",J150*E150*12) -> 0 | M150: 0 | O150: Legal Expenses | S150: ='Operating Budget'!E15 -> 0 | T150: 0 | U150: 0 | W150: Total 3+ BR LI | Y150: =B165-E165+B170-E170 -> 0 | Z150: =IF(Y150=0,0,(Y150/Y153)) -> 0 | AA150: =IF(Z150<0.2,IF(Z149>=0.7,3,0),IF(Z149>=0.5,6,0)) -> 0 | AB150: Points
B151: 1BR | D151: 50% LHOME | J151: =IF(E151="","",J155) ->  | K151: =IF(E151="","",IF(F151<J151,IF(I151<H151,I151*E151*12,H151*E151*12),(J151-G151)*E151*12)) ->  | L151: =IF(E151="","",H154*E151*12) ->  | M151: =IF(E151="","",J151*E151*12) ->  | O151: Auditing Expenses | S151: ='Operating Budget'!E17 -> 0 | T151: 0 | U151: 0
D152: 50% HHOME | J152: =IF(E152="","",J154) ->  | K152: =IF(E152="","",IF(F152<J152,IF(I152<H152,I152*E152*12,H152*E152*12),(J152-G152)*E152*12)) ->  | L152: =IF(E152="","",H153*E152*12) ->  | O152: Other Administrative Expenses | S152: ='Operating Budget'!E19 -> 0 | T152: 0 | U152: 0
D153: 50% LIHTC | E153: ='Project Income'!E12 -> 0 | F153: ='Project Income'!G12 -> 0 | G153: ='Project Income'!H12 -> 0 | H153: ='Project Income'!I12 -> 0 | I153: ='Project Income'!K12 -> 0 | J153: =IF(E153="","",J155) -> 0 | K153: =IF(E153="","",IF(F153<J153,IF(I153<H153,I153*E153*12,H153*E153*12),(J153-G153)*E153*12)) -> 0 | L153: =IF(E153="","",H154*E153*12) -> 0 | M153: =IF(E153="","",J153*E153*12) -> 0 | O153: Administrative Expenses | S153: =SUM(S147:S152) -> 0 | T153: 0 | U153: 0 | W153: Total Low Income Units | Y153: =E173-F10 -> 0
D154: 60% LIHTC | E154: ='Project Income'!E13 -> 0 | F154: ='Project Income'!G13 -> 0 | G154: ='Project Income'!H13 -> 0 | H154: ='Project Income'!I13 -> 0 | I154: ='Project Income'!K13 -> 0 | J154: =IF(E154="","",J155) -> 0 | K154: =IF(E154="","",IF(F154<J154,IF(I154<H154,I154*E154*12,H154*E154*12),(J154-G154)*E154*12)) -> 0 | L154: =IF(E154="","",H154*E154*12) -> 0 | M154: 0 | O154: Operating Expenses:
B155: =SUM(E151:E155) -> 0 | D155: Market | E155: ='Project Income'!E14 -> 0 | I155: ='Project Income'!K14 -> 0 | J155: ='Project Income'!I14 -> 0 | K155: =IF(E155="","",IF(I155<J155,I155*E155*12,J155*E155*12)) -> 0 | L155: =IF(E155="","",J155*E155*12) -> 0 | M155: 0 | O155: Janitorial Payroll | S155: ='Operating Budget'!E24 -> 0 | T155: =IF($F$5=0,0,S155/$F$5) -> 0 | U155: =T155/12 -> 0
B156: 2BR | D156: 50% LHOME | J156: =IF(E156="","",J160) ->  | K156: =IF(E156="","",IF(F156<J156,IF(I156<H156,I156*E156*12,H156*E156*12),(J156-G156)*E156*12)) ->  | L156: =IF(E156="","",H159*E156*12) ->  | M156: =IF(E156="","",J156*E156*12) ->  | O156: Janitorial Supplies and Equipment | S156: ='Operating Budget'!E26 -> 0 | T156: 0 | U156: 0
D157: 50% HHOME | J157: =IF(E157="","",J159) ->  | K157: =IF(E157="","",IF(F157<J157,IF(I157<H157,I157*E157*12,H157*E157*12),(J157-G157)*E157*12)) ->  | L157: =IF(E157="","",H158*E157*12) ->  | O157: Janitorial Contractual Services | S157: ='Operating Budget'!E28 -> 0 | T157: 0 | U157: 0
D158: 50% LIHTC | E158: ='Project Income'!E16 -> 0 | F158: ='Project Income'!G16 -> 0 | G158: ='Project Income'!H16 -> 0 | H158: ='Project Income'!I16 -> 0 | I158: ='Project Income'!K16 -> 0 | J158: =IF(E158="","",J160) -> 0 | K158: =IF(E158="","",IF(F158<J158,IF(I158<H158,I158*E158*12,H158*E158*12),(J158-G158)*E158*12)) -> 0 | L158: =IF(E158="","",H159*E158*12) -> 0 | M158: =IF(E158="","",J158*E158*12) -> 0 | O158: Fuel and Gas | S158: ='Operating Budget'!E30 -> 0 | T158: 0 | U158: 0
D159: 60% LIHTC | E159: ='Project Income'!E17 -> 0 | F159: ='Project Income'!G17 -> 0 | G159: ='Project Income'!H17 -> 0 | H159: ='Project Income'!I17 -> 0 | I159: ='Project Income'!K17 -> 0 | J159: =IF(E159="","",J160) -> 0 | K159: =IF(E159="","",IF(F159<J159,IF(I159<H159,I159*E159*12,H159*E159*12),(J159-G159)*E159*12)) -> 0 | L159: =IF(E159="","",H159*E159*12) -> 0 | M159: 0 | O159: Electricity | S159: ='Operating Budget'!E32 -> 0 | T159: 0 | U159: 0
B160: =SUM(E156:E160) -> 0 | D160: Market | E160: ='Project Income'!E18 -> 0 | I160: ='Project Income'!K18 -> 0 | J160: ='Project Income'!I18 -> 0 | K160: =IF(E160="","",IF(I160<J160,I160*E160*12,J160*E160*12)) -> 0 | L160: =IF(E160="","",J160*E160*12) -> 0 | M160: 0 | O160: Water and Sewer | S160: ='Operating Budget'!E34 -> 0 | T160: 0 | U160: 0
B161: 3BR | D161: 50% LHOME | J161: =IF(E161="","",J165) ->  | K161: =IF(E161="","",IF(F161<J161,IF(I161<H161,I161*E161*12,H161*E161*12),(J161-G161)*E161*12)) ->  | L161: =IF(E161="","",H164*E161*12) ->  | M161: =IF(E161="","",J161*E161*12) ->  | O161: Garbage and Trash Removal | S161: ='Operating Budget'!E36 -> 0 | T161: 0 | U161: 0
D162: 50% HHOME | J162: =IF(E162="","",J164) ->  | K162: =IF(E162="","",IF(F162<J162,IF(I162<H162,I162*E162*12,H162*E162*12),(J162-G162)*E162*12)) ->  | L162: =IF(E162="","",H163*E162*12) ->  | O162: Vehicle and Equipment Expenses | S162: ='Operating Budget'!E38 -> 0 | T162: 0 | U162: 0
D163: 50% LIHTC | E163: ='Project Income'!E20 -> 0 | F163: ='Project Income'!G20 -> 0 | G163: ='Project Income'!H20 -> 0 | H163: ='Project Income'!I20 -> 0 | I163: ='Project Income'!K20 -> 0 | J163: =IF(E163="","",J165) -> 0 | K163: =IF(E163="","",IF(F163<J163,IF(I163<H163,I163*E163*12,H163*E163*12),(J163-G163)*E163*12)) -> 0 | L163: =IF(E163="","",H164*E163*12) -> 0 | M163: =IF(E163="","",J163*E163*12) -> 0 | O163: Other Operating Expenses | S163: ='Operating Budget'!E40 -> 0 | T163: 0 | U163: 0
D164: 60% LIHTC | E164: ='Project Income'!E21 -> 0 | F164: ='Project Income'!G21 -> 0 | G164: ='Project Income'!H21 -> 0 | H164: ='Project Income'!I21 -> 0 | I164: ='Project Income'!K21 -> 0 | J164: =IF(E164="","",J165) -> 0 | K164: =IF(E164="","",IF(F164<J164,IF(I164<H164,I164*E164*12,H164*E164*12),(J164-G164)*E164*12)) -> 0 | L164: =IF(E164="","",H164*E164*12) -> 0 | M164: 0 | O164: Operating Expenses | S164: =SUM(S155:S163) -> 0 | T164: 0 | U164: 0
B165: =SUM(E161:E165) -> 0 | D165: Market | E165: ='Project Income'!E22 -> 0 | I165: ='Project Income'!K22 -> 0 | J165: ='Project Income'!I22 -> 0 | K165: =IF(E165="","",IF(I165<J165,I165*E165*12,J165*E165*12)) -> 0 | L165: =IF(E165="","",J165*E165*12) -> 0 | M165: 0 | O165: Maintenance Expenses:
B166: 4BR | D166: 50% LHOME | J166: =IF(E166="","",J170) ->  | K166: =IF(E166="","",IF(F166<J166,IF(I166<H166,I166*E166*12,H166*E166*12),(J166-G166)*E166*12)) ->  | L166: =IF(E166="","",H169*E166*12) ->  | M166: =IF(E166="","",J166*E166*12) ->  | O166: Grounds Maintenance Payroll | S166: ='Operating Budget'!E45 -> 0 | T166: =IF($F$5=0,0,S166/$F$5) -> 0 | U166: =T166/12 -> 0
D167: 50% HHOME | J167: =IF(E167="","",J169) ->  | K167: =IF(E167="","",IF(F167<J167,IF(I167<H167,I167*E167*12,H167*E167*12),(J167-G167)*E167*12)) ->  | L167: =IF(E167="","",H168*E167*12) ->  | O167: Grounds Tools and Supplies | S167: ='Operating Budget'!E47 -> 0 | T167: 0 | U167: 0
D168: 50% LIHTC | E168: ='Project Income'!E24 -> 0 | F168: ='Project Income'!G24 -> 0 | G168: ='Project Income'!H24 -> 0 | H168: ='Project Income'!I24 -> 0 | I168: ='Project Income'!K24 -> 0 | J168: =IF(E168="","",J170) -> 0 | K168: =IF(E168="","",IF(F168<J168,IF(I168<H168,I168*E168*12,H168*E168*12),(J168-G168)*E168*12)) -> 0 | L168: =IF(E168="","",H169*E168*12) -> 0 | M168: =IF(E168="","",J168*E168*12) -> 0 | O168: Grounds Contractual Services | S168: ='Operating Budget'!E49 -> 0 | T168: 0 | U168: 0
D169: 60% LIHTC | E169: ='Project Income'!E25 -> 0 | F169: ='Project Income'!G25 -> 0 | G169: ='Project Income'!H25 -> 0 | H169: ='Project Income'!I25 -> 0 | I169: ='Project Income'!K25 -> 0 | J169: =IF(E169="","",J170) -> 0 | K169: =IF(E169="","",IF(F169<J169,IF(I169<H169,I169*E169*12,H169*E169*12),(J169-G169)*E169*12)) -> 0 | L169: =IF(E169="","",H169*E169*12) -> 0 | M169: =IF(E169="","",J169*E169*12) -> 0 | O169: Miscellaneous Ground Maintenance | S169: ='Operating Budget'!E51 -> 0 | T169: 0 | U169: 0
B170: =SUM(E166:E170) -> 0 | D170: Market | E170: ='Project Income'!E26 -> 0 | I170: ='Project Income'!K26 -> 0 | J170: ='Project Income'!I26 -> 0 | K170: =IF(E170="","",IF(I170<J170,I170*E170*12,J170*E170*12)) -> 0 | L170: =IF(E170="","",J170*E170*12) -> 0 | M170: 0 | T170: 0 | U170: 0
B171: Other: | K171: =IF(H171<I171,(H171-J171)*E171*12,(I171-J171)*E171*12) -> 0 | M171: =IF(E171="","",J171*E171*12) ->  | O171: Building Maintenance Payroll | S171: ='Operating Budget'!E55 -> 0 | T171: 0 | U171: 0
K172: 0 | O172: Building Tools and Supplies | S172: ='Operating Budget'!E57 -> 0 | T172: 0 | U172: 0
B173: Subtotals | E173: =SUM(E146:E172) -> 0 | K173: =SUM(K146:K172) -> 0 | L173: =SUM(L146:L172) -> 0 | M173: =SUM(M146:M172) -> 0 | O173: Building Contractual Services | S173: ='Operating Budget'!E59 -> 0 | T173: 0 | U173: 0
O174: Building Systems Maintenance | S174: ='Operating Budget'!E61 -> 0 | T174: 0 | U174: 0
G175: Income from Laundry: | J175: ='Project Income'!M30 -> 0 | K175: =J175*12 -> 0 | O175: Miscellaneous Building Maintenance | S175: ='Operating Budget'!E63 -> 0 | T175: 0 | U175: 0
G176: Other Income: | H176: =IF('Project Income'!E31="If monthly amount is affected by Vacancy Loss","",'Project Income'!E31) ->  | J176: ='Project Income'!M31+'Project Income'!M32 -> 0 | K176: =J176*12 -> 0 | T176: 0 | U176: 0
G177: =IF(H177="","","&") ->  | H177: =IF('Project Income'!E32="","",'Project Income'!E32) ->  | O177: Maintenance Expenses | S177: =SUM(S166:S176) -> 0 | T177: 0 | U177: 0
G178: Vacancy Rate | I178: ='Project Income'!G35 -> 0.05 | K178: =SUM(K173:K176)*I178*-1 -> 0 | L178: =L173*-I178 -> 0 | M178: =M173*-I178 -> 0 | O178: General Expenses:
O179: Property Taxes | S179: ='Operating Budget'!E70 -> 0 | T179: =IF($F$5=0,0,S179/$F$5) -> 0 | U179: =T179/12 -> 0
G180: Other Income: | H180: =IF('Project Income'!E37="Only if not affected by Vacancy Loss such as TIF income","",'Project Income'!E37) ->  | J180: ='Project Income'!M37 -> 0 | K180: ='Project Income'!O37 -> 0 | O180: Property and Liability Insurance | S180: ='Operating Budget'!E72 -> 0 | T180: =IF($F$5=0,0,S180/$F$5) -> 0 | U180: =T180/12 -> 0
O181: Tenant Service Expenses | S181: ='Operating Budget'!E74 -> 0 | T181: =IF($F$5=0,0,S181/$F$5) -> 0 | U181: =T181/12 -> 0
G182: Effective Gross Income | K182: =SUM(K173:K180) -> 0 | L182: =L173+L178 -> 0 | M182: =M173+M178 -> 0 | O182: Other General Expenses | S182: ='Operating Budget'!E76 -> 0 | T182: =IF($F$5=0,0,S182/$F$5) -> 0 | U182: =T182/12 -> 0
O183: General Expenses | S183: =SUM(S179:S182) -> 0 | T183: =IF($F$5=0,0,S183/$F$5) -> 0 | U183: =T183/12 -> 0
D184: AFFORDABLE AMORTIZING MORTGAGE CALCULATION
O185: Replacement Reserve Funding | S185: ='Operating Budget'!E80 -> 0 | T185: =IF($F$5=0,0,S185/$F$5) -> 0 | U185: =T185/12 -> 0
D186: Effective Gross Income | H186: =K182 -> 0 | W186: NC = $450 / unit
D187: Annual Operating Expense | H187: =S189 -> 0 | O187: Commercial Expenses (if applicable) | S187: ='Operating Budget'!E82 -> 0 | T187: =IF($F$5=0,0,S187/$F$5) -> 0 | U187: =T187/12 -> 0 | W187: rehab = $450 / unit
D189: Stabilized NOI | H189: =H186-H187 -> 0 | O189: Total | S189: =S153+S164+S177+S183+S185+S187 -> 0 | T189: =T153+T164+T177+T183+T185+T187 -> 0 | U189: =U153+U164+U177+U183+U185+U187 -> 0
D190: DSC | F190: 1.15 | H190: =H189-H191 -> 0
D191: $ Avail for D/S | H191: =H189/F190 -> 0
D192: Other DS | H192: =SUM(K125:K133) -> 0 | O192: Management Costs Analysis
D193: Balance | H193: =H191-H192 -> 0 | O193: =O147 -> Management Fees | S193: =S147 -> 0
O194: =O148 -> Management Charges | S194: =S148 -> 0
D195: Affordable Fully Amortizing Mortgage | G195: =H124 -> 0.06 | H195: =IF(H193<0,0,H193/(PMT(H124/12,I124*12,1)*-12)) -> 0 | O195: =O152 -> Other Administrative Expenses | S195: =S152 -> 0 | T195: =SUM(S193:S195) -> 0
D196: Affordable Interest Only Mortgage | G196: =G195 -> 0.06 | H196: =IF(H193<0,0,H193/G195) -> 0
D197: Supportable Mort.: Unrestricted | H197: =T121+((U117*E173*12)/(PMT(H124/12,I124*12,1)*-12)) -> 0 | O197: Effective Gross Rental Income | T197: =K173+K178 -> 0
D198: BREAKEVEN ANALYSIS: | F198: RENT SENSITIVITY | I198: OCCUPANCY | O198: Cost Percentage for use in Management Agreement | U198: =IF(E173=0,"",T195/T197) -> 
G200: Total | K200: Annual | O200: =IF(O203="","","Maximum 60% AMI (Non-HERA) Rent Potential") ->  | T200: =IF(O203="","",L173) -> 
D201: Operating Expense | G201: =S189 -> 0 | I201: Gross Revenues | K201: =K173+K175+K176 -> 0 | O201: =IF(O203="","","Management Cost Percentage") ->  | S201: =IF(O203="","",T195/T200) -> 
D202: Debt Service | G202: =G221+G222 -> 0
O203: =IF(K173=0,"",IF((S193+S194+S195)/L173<=0.12,"","Management Costs are too high")) -> 
D204: Breakeven Rent | G204: =IF($F$5=0,0,SUM(G201:G202)/$F$5/12) -> 0 | I204: Breakeven Occupancy | K204: =IF(K201=0,0,(G201+G202)/K201) -> 0
U206: ='Project Information'!D4 -> Project Name
B207: PROFORMA OPERATING INCOME AND EXPENSE STATEMENT
E208: =ROUNDDOWN((F210-E210)/30.4,0) -> 9 | F208: Months
F209: =E208 -> 9 | G209: =F209+12 -> 21 | H209: =G209+12 -> 33 | I209: =H209+12 -> 45 | J209: =I209+12 -> 57 | K209: =J209+12 -> 69 | N209: =K209+12 -> 81 | O209: =N209+12 -> 93 | P209: =O209+12 -> 105 | Q209: =P209+12 -> 117 | R209: =Q209+12 -> 129
E210: =E73+366 -> 2023-04-01 | F210: =DATE(YEAR(E210),12,31) -> 2023-12-31 | G210: =DATE(YEAR(F210)+1,12,31) -> 2024-12-31 | H210: =DATE(YEAR(G210)+1,12,31) -> 2025-12-31 | I210: =DATE(YEAR(H210)+1,12,31) -> 2026-12-31 | J210: =DATE(YEAR(I210)+1,12,31) -> 2027-12-31 | K210: =DATE(YEAR(J210)+1,12,31) -> 2028-12-31 | N210: =DATE(YEAR(K210)+1,12,31) -> 2029-12-31 | O210: =DATE(YEAR(N210)+1,12,31) -> 2030-12-31 | P210: =DATE(YEAR(O210)+1,12,31) -> 2031-12-31 | Q210: =DATE(YEAR(P210)+1,12,31) -> 2032-12-31 | R210: =DATE(YEAR(Q210)+1,12,31) -> 2033-12-31
B211: Effective Gross Income | F211: =(K182)*E208/12 -> 0 | G211: =(K182)*(1+$I$6) -> 0 | H211: =G211*(1+$I$6) -> 0 | I211: =H211*(1+$I$6) -> 0 | J211: =I211*(1+$I$6) -> 0 | K211: =IF(F209<6,J211*(1+I6),J211*(1+J6)) -> 0 | N211: =K211*(1+$J$6) -> 0 | O211: =N211*(1+$J$6) -> 0 | P211: =O211*(1+$J$6) -> 0 | Q211: =P211*(1+$J$6) -> 0 | R211: =Q211*(1+$J$6) -> 0
... 78 more rows

Sheet TxCr (hidden)
A1: Project: | B1: ='MH Underwriting'!D1 -> Project Name | H1: Tot # Units: | J1: ='MH Underwriting'!F5 -> 0 | V1: Eligible Basis | AR1: Max Annual Credit Dollar Amount | BF1: GAP Calculation | BI1: ='MH Underwriting'!T19 -> 0
A2: Date: | R2: 130% Basis Adjustment | T2: =IF('Tax Credit Calculations'!S27=130%,"y","") -> y | V2: <<<<<insert y if 130% adj | AY2: Eligible | BA2: Credit | BF2: Historic Equity | BI2: ='Tax Credit Calculations'!D34+'Tax Credit Calculations'!D41 -> 0 | BK2: Ltd Int.
D3: Total | F3: Calc max | H3: Recognized | N3: ACQ(1) | P3: 30% PV(2) | R3: 70% PV(3) | AY3: Basis | BA3: Percentage | BF3: Deferred Source | BI3: ='MH Underwriting'!R82+'MH Underwriting'!R83 -> 0 | BK3: ='MH Underwriting'!T6 -> 0.9999
A4: 1,2,or 3 >> | B4: 1 | D4: Cost | F4: Dev Fee | H4: Cost | J4: Basis | L4: Dep Basis | N4: ='Tax Credit Calculations'!Q37 -> 0.04 | P4: =IF('Project Information'!L4="Yes",4%,0) -> 0 | R4: =IF(P4=0,9%,0) -> 0.09 | T4: ACQ | V4: 30% PV | X4: 70% PV | AC4: Tot Project Sqft | AG4: ='Tax Credit Calculations'!X31 -> 0 | AR4: Total 30% Acquisition Basis | AY4: =T53 -> 0 | BA4: =N4 -> 0.04 | BC4: =T55 -> 0 | BF4: Debt Sources | BI4: ='MH Underwriting'!R84 -> 0
A5: Acquisition: | AR5: =IF(V53=0,"Total 70% Rehabilitation Basis","Total 30% Rehabilitation Basis") -> Total 70% Rehabilitation Basis | AY5: =IF(V53=0,X53,V53) -> 0 | BA5: =IF(V53=0,R4,P4) -> 0.09 | BC5: =V55+X55 -> 0 | BI5: ='MH Underwriting'!R87+'MH Underwriting'!R88+'MH Underwriting'!R89+'MH Underwriting'!R90+'MH Underwriting'!R91+'MH Underwriting'!R92+'MH Underwriting'!R93 -> 0 | BK5: Equity Raise
A6: Land | D6: ='MH Underwriting'!N51 -> 0 | H6: =D6 -> 0 | J6: n | L6: =IF(J6="y",H6,0) -> 0 | N6: 0 | T6: =N6 -> 0 | AY6: =SUM(AY4:AY5) -> 0 | BC6: =SUM(BC4:BC5) -> 0 | BF6: Deferred Dev Fee | BI6: ='MH Underwriting'!R95 -> 0 | BK6: ='MH Underwriting'!T5*100 -> 87
A7: Buildings | D7: ='MH Underwriting'!N50 -> 0 | H7: =D7 -> 0 | J7: y | L7: =IF(J7="y",H7,0) -> 0 | N7: =L7 -> 0 | T7: =N7 -> 0 | BF7: Other | BI7: ='MH Underwriting'!R94 -> 0
A8: Reserves | D8: ='MH Underwriting'!N52 -> 0 | H8: =D8 -> 0 | J8: n | L8: =IF(J8="y",H8,0) -> 0 | N8: =L8 -> 0 | T8: =N8 -> 0 | BF8: Total Cost | BI8: =D51 -> 0 | BK8: Credit Needed
A9: Legal | D9: ='MH Underwriting'!N53 -> 0 | H9: =D9 -> 0 | J9: y | L9: =IF(J9="y",H9,0) -> 0 | N9: =L9 -> 0 | T9: =N9 -> 0
A10: Other | D10: ='MH Underwriting'!N54 -> 0 | H10: =D10 -> 0 | J10: y | L10: =IF(J10="y",H10,0) -> 0 | N10: =L10 -> 0 | T10: =N10 -> 0 | AC10: Sqft of LI | AE10: Ea Bldg | AG10: Sq.Ft. | AI10: Tot | AK10: LI | AM10: Unit | AO10: Applic | BF10: GAP | BI10: =(BI2+BI3+BI4+BI5+BI6+BI7+BI1)-BI8 -> 0 | BK10: =(((BI10/(BK6/100))/10)/BK3)*-1 -> 0 | BN10: Minimum Rehab Test | BZ10: Actual
A11: Construction Costs: | Z11: Bldg | AA11: Gross Sqft | AC11: Units | AE11: As % total | AG11: Fraction | AI11: Units | AK11: Units | AM11: Fraction | AO11: Fraction | BN11: Bldg | BO11: Acq Cost | BP11: *.10 | BQ11: Acq Bas | BR11: *.10 | BS11: # units | BT11: *7.5K | BV11: Greater of 10% or 7.5K | BZ11: Rehab
A12: Site | B12: ='MH Underwriting'!N15 -> 0 | AS12: Max Eligible Basis | AW12: Max Qualified Basis
A13: Structure | B13: ='MH Underwriting'!N16 -> 0 | AR13: Bldg | AS13: Rehab | AU13: Acq | AW13: Rehab | AY13: Acq | BA13: =IF(V53=0,"70% Rehab","30% Rehab") -> 70% Rehab | BC13: 30% Acq | BG13: Bldg | BI13: =IF(V53=0,"70% Rehab","30% Rehab") -> 70% Rehab | BK13: 30% Acq | CD13: MSHA PROCESSING
A14: General Conditions | B14: ='MH Underwriting'!N17 -> 0 | D14: =IF(B14>0,B14/D19,0) -> 0 | F14: =IF(D14>6%,"ALERT","") ->  | H14: =IF(F14="","",IF(SUM(D14:D16)<=14%,"Aggregate total is OK","")) ->  | Z14: 1 | AA14: =IF(OR('Building Summary'!D11=1,'Building Summary'!D11=0),'Building Summary'!F14,"Manual") -> 0 | AC14: =IF(AA14="","",IF(AA14="Manual", "Imput",AA14*'Tax Credit Calculations'!X32)) -> 0 | AE14: =IF(AA14="Manual",0,IF(AA14>0,ROUND(AA14/AG$4,4),0)) -> 0 | AG14: =IF(AA14="Manual","",IF(AA14>0,AC14/AA14,"")) ->  | AI14: =IF(AA14="Manual","",'Tax Credit Calculations'!W31) -> 0 | AK14: =IF(AI14="",0,AI14*'Tax Credit Calculations'!V32) -> 0 | AM14: =IF(AI14>0,AK14/AI14,"") ->  | AO14: =IF(AND(AM14>0,AM14<AG14),AM14,AG14) ->  | AR14: =Z14 -> 1 | AS14: =IF(AND(AY$5>0,AE14>0),AY$5*AE14,0) -> 0 | AU14: =IF(AND(AY$4>0,AE14>0),AY$4*AE14,0) -> 0 | AW14: =IF(AND(BC$5>0,AE14>0),AS14*AO14,0) -> 0 | AY14: =IF(AND(BC$4>0,AI14>0),AU14*AO14,0) -> 0 | BA14: =ROUND(IF(AY$5>0,AW14*BA$5,0),0) -> 0 | BC14: =ROUND(IF(AY$4>0,AY14*BA$4,0),0) -> 0 | BG14: =AR14 -> 1 | BI14: =ROUND(IF($BK$10<$BA$50,IF($BK$52<$BK$10,(BA14/$BA$50)*$BK$52,(BA14/$BA$50)*$BK$10),IF($BK$52<$BA$50,(BA14/$BA$50)*$BK$52,BA14)),0) -> 0 | BK14: =ROUND(IF($BK$10<$BA$50,IF($BK$52<$BK$10,(BC14/$BA$50)*$BK$52,(BC14/$BA$50)*$BK$10),IF($BK$52<$BA$50,(BC14/$BA$50)*$BK$52,BC14)),0) -> 0 | BN14: =Z14 -> 1 | BO14: =IF(AND(B$4>1,$AE14>0),($H$6+$H$7+$H$8+$H$9+$H$10)*AE14,0) -> 0 | BP14: =ROUNDDOWN(BO14*0.1,0) -> 0 | BQ14: =IF(AND(B$4>1,$AE14>0),(L$7+$L$9+L$10)*AE14,0) -> 0 | BR14: =ROUNDDOWN(BQ14*0.1,0) -> 0 | BS14: =IF(AND(B$4>1,$AI14>0),AI14*AM14,0) -> 0 | BT14: =(BS14*7500) -> 0 | BV14: =IF(AND(BP14>BT14,BP14>BR14),BP14,"*") -> * | BW14: =IF(AND(BV14="*",BR14>BT14),BR14,"*") -> * | BX14: =IF(AND(BV14="*",BW14="*"),BT14,"*") -> 0 | BZ14: =IF(AND($B$4<>1,AE14>0),($B$12+$B$13)*AE14,0) -> 0 | CA14: =IF(BZ14<SUM(BV14:BX14),"Minimum Rehab Alert","") -> 
A15: Overhead | D15: =IF(B15>0,B15/D19,0) -> 0 | F15: =IF(D15>2%,"ALERT","") ->  | H15: =IF(F15="","",IF(SUM(D14:D16)<=14%,"Aggregate total is OK","ALERT")) ->  | Z15: =Z14+1 -> 2 | AC15: =IF(AA15="","",AA15*'Tax Credit Calculations'!$X$32) ->  | AE15: =IF(AA15>0,ROUND(AA15/AG$4,4),0) -> 0 | AG15: =IF(AA15>0,AC15/AA15,"") ->  | AK15: =IF(AI15="","",AI15*'Tax Credit Calculations'!$V$32) ->  | AM15: =IF(AI15>0,AK15/AI15,"") ->  | AO15: =IF(AND(AM15>0,AM15<AG15),AM15,AG15) ->  | AR15: =Z15 -> 2 | AS15: =IF(AND(AY$5>0,AE15>0),AY$5*AE15,0) -> 0 | AU15: =IF(AND(AY$4>0,AE15>0),AY$4*AE15,0) -> 0 | AW15: =IF(AND(BC$5>0,AE15>0),AS15*AO15,0) -> 0 | AY15: =IF(AND(BC$4>0,AI15>0),AU15*AO15,0) -> 0 | BA15: =ROUND(IF(AY$5>0,AW15*BA$5,0),0) -> 0 | BC15: =ROUND(IF(AY$4>0,AY15*BA$4,0),0) -> 0 | BG15: =AR15 -> 2 | BI15: =ROUND(IF($BK$10<$BA$50,IF($BK$52<$BK$10,(BA15/$BA$50)*$BK$52,(BA15/$BA$50)*$BK$10),IF($BK$52<$BA$50,(BA15/$BA$50)*$BK$52,BA15)),0) -> 0 | BK15: =ROUND(IF($BK$10<$BA$50,IF($BK$52<$BK$10,(BC15/$BA$50)*$BK$52,(BC15/$BA$50)*$BK$10),IF($BK$52<$BA$50,(BC15/$BA$50)*$BK$52,BC15)),0) -> 0 | BN15: =Z15 -> 2 | BO15: =IF(AND(B$4>1,$AE15>0),($H$6+$H$7+$H$8+$H$10)*AE15,0) -> 0 | BP15: 0 | BQ15: =IF(AND(B$4>1,$AE15>0),(L$7+L$10)*AE15,0) -> 0 | BR15: =ROUNDDOWN(BQ15*0.1,0) -> 0 | BS15: 0 | BT15: =(BS15*7500) -> 0 | BV15: =IF(AND(BP15>BT15,BP15>BR15),BP15,"*") -> * | BW15: =IF(AND(BV15="*",BR15>BT15),BR15,"*") -> * | BX15: =IF(AND(BV15="*",BW15="*"),BT15,"*") -> 0 | BZ15: 0 | CA15: =IF(BZ15<SUM(BV15:BX15),"Minimum Rehab Alert","") -> 
A16: Profit | B16: ='MH Underwriting'!N18-B15+B15 -> 0 | D16: =IF(B16>0,B16/D19,0) -> 0 | F16: =IF(D15=0,IF(D16>8%,"ALERT",""),IF(D16>6%,"ALERT","")) ->  | H16: =IF(F16="","",IF(SUM(D14:D16)<=14%,"Aggregate total is OK","")) ->  | Z16: =Z15+1 -> 3 | AC16: =IF(AA16="","",AA16*'Tax Credit Calculations'!$X$32) ->  | AE16: =IF(AA16>0,ROUND(AA16/AG$4,4),0) -> 0 | AG16: =IF(AA16>0,AC16/AA16," ") ->  | AK16: =IF(AI16="","",AI16*'Tax Credit Calculations'!$V$32) ->  | AM16: =IF(AI16>0,AK16/AI16," ") ->  | AO16: =IF(AND(AM16>0,AM16<AG16),AM16,AG16) ->  | AR16: =Z16 -> 3 | AS16: 0 | AU16: 0 | AW16: 0 | AY16: 0 | BA16: 0 | BC16: 0 | BG16: =AR16 -> 3 | BI16: 0 | BK16: 0 | BN16: =Z16 -> 3 | BO16: 0 | BP16: 0 | BQ16: 0 | BR16: 0 | BS16: 0 | BT16: 0 | BV16: =IF(AND(BP16>BT16,BP16>BR16),BP16,"*") -> * | BW16: =IF(AND(BV16="*",BR16>BT16),BR16,"*") -> * | BX16: =IF(AND(BV16="*",BW16="*"),BT16,"*") -> 0 | BZ16: 0
A17: Bond Premium | B17: ='MH Underwriting'!N19 -> 0 | Z17: =Z16+1 -> 4 | AC17: =IF(AA17="","",AA17*'Tax Credit Calculations'!$X$32) ->  | AE17: 0 | AK17: =IF(AI17="","",AI17*'Tax Credit Calculations'!$V$32) ->  | AR17: 4 | AS17: 0 | AU17: 0 | AW17: 0 | AY17: 0 | BA17: 0 | BC17: 0 | BG17: =AR17 -> 4 | BI17: 0 | BK17: 0 | BN17: 4 | BO17: 0 | BP17: 0 | BQ17: 0 | BR17: 0 | BS17: 0 | BT17: 0 | BV17: * | BW17: * | BX17: 0 | BZ17: 0 | CE17: Application
A18: Contingency | B18: ='MH Underwriting'!N20 -> 0 | Z18: 5 | AC18: =IF(AA18="","",AA18*'Tax Credit Calculations'!$X$32) ->  | AE18: 0 | AK18: =IF(AI18="","",AI18*'Tax Credit Calculations'!$V$32) ->  | AR18: 5 | AS18: 0 | AU18: 0 | AW18: 0 | AY18: 0 | BA18: 0 | BC18: 0 | BG18: 5 | BI18: 0 | BK18: 0 | BN18: 5 | BO18: 0 | BP18: 0 | BQ18: 0 | BR18: 0 | BS18: 0 | BT18: 0 | BV18: * | BW18: * | BX18: 0 | BZ18: 0
A19: Total Construction | D19: =SUM(B12:B18) -> 0 | H19: =D19 -> 0 | J19: y | L19: ='Project Costs & Basis'!S9 -> 0 | P19: =IF('Project Information'!$L$4="Yes",L19,0) -> 0 | R19: =IF(P19=0,L19,0) -> 0 | V19: =IF($T$2="y",P19*1.3,P19) -> 0 | X19: =IF($T$2="y",R19*1.3,R19) -> 0 | Z19: 6 | AC19: =IF(AA19="","",AA19*'Tax Credit Calculations'!$X$32) ->  | AE19: 0 | AK19: =IF(AI19="","",AI19*'Tax Credit Calculations'!$V$32) ->  | AR19: 6 | AS19: 0 | AU19: 0 | AW19: 0 | AY19: 0 | BA19: 0 | BC19: 0 | BG19: 6 | BI19: 0 | BK19: 0 | BN19: 6 | BO19: 0 | BP19: 0 | BQ19: 0 | BR19: 0 | BS19: 0 | BT19: 0 | BV19: * | BW19: * | BX19: 0 | BZ19: 0
A20: Building Permits and Fees | D20: ='MH Underwriting'!N23 -> 0 | H20: =D20 -> 0 | J20: y | L20: ='Project Costs & Basis'!S13+'Project Costs & Basis'!Q13 -> 0 | N20: ='Project Costs & Basis'!Q13 -> 0 | P20: =IF('Project Information'!$L$4="Yes",L20-N20,0) -> 0 | R20: =IF(P20=0,L20-N20,0) -> 0 | T20: =N20 -> 0 | V20: =IF($T$2="y",P20*1.3,P20) -> 0 | X20: =IF($T$2="y",R20*1.3,R20) -> 0 | Z20: 7 | AC20: =IF(AA20="","",AA20*'Tax Credit Calculations'!$X$32) ->  | AE20: 0 | AK20: =IF(AI20="","",AI20*'Tax Credit Calculations'!$V$32) ->  | AR20: 7 | AS20: 0 | AU20: 0 | AW20: 0 | AY20: 0 | BA20: 0 | BC20: 0 | BG20: 7 | BI20: 0 | BK20: 0 | BN20: 7 | BO20: 0 | BP20: 0 | BQ20: 0 | BR20: 0 | BS20: 0 | BT20: 0 | BV20: * | BW20: * | BX20: 0 | BZ20: 0
A21: Survey & Engineering | D21: ='MH Underwriting'!N24 -> 0 | H21: 0 | J21: y | L21: ='Project Costs & Basis'!S15+'Project Costs & Basis'!Q15 -> 0 | N21: ='Project Costs & Basis'!Q15 -> 0 | P21: =IF('Project Information'!$L$4="Yes",L21-N21,0) -> 0 | R21: 0 | T21: =N21 -> 0 | V21: 0 | X21: =IF($T$2="y",R21*1.3,R21) -> 0 | Z21: 8 | AC21: =IF(AA21="","",AA21*'Tax Credit Calculations'!$X$32) ->  | AE21: 0 | AK21: =IF(AI21="","",AI21*'Tax Credit Calculations'!$V$32) ->  | AR21: 8 | AS21: 0 | AU21: 0 | AW21: 0 | AY21: 0 | BA21: 0 | BC21: 0 | BG21: 8 | BI21: 0 | BK21: 0 | BN21: 8 | BO21: 0 | BP21: 0 | BQ21: 0 | BR21: 0 | BS21: 0 | BT21: 0 | BV21: * | BW21: * | BX21: 0 | BZ21: 0 | CE21: Carryover Allocation
A22: Architectural & Design | D22: ='MH Underwriting'!N25 -> 0 | F22: 1 or 3 | H22: 0 | J22: y | L22: ='Project Costs & Basis'!S17+'Project Costs & Basis'!Q17 -> 0 | N22: ='Project Costs & Basis'!Q17 -> 0 | P22: =IF('Project Information'!$L$4="Yes",L22-N22,0) -> 0 | R22: 0 | T22: 0 | V22: 0 | X22: 0 | Z22: 9 | AC22: =IF(AA22="","",AA22*'Tax Credit Calculations'!$X$32) ->  | AE22: 0 | AK22: =IF(AI22="","",AI22*'Tax Credit Calculations'!$V$32) ->  | AR22: 9 | AS22: 0 | AU22: 0 | AW22: 0 | AY22: 0 | BA22: 0 | BC22: 0 | BG22: 9 | BI22: 0 | BK22: 0 | BN22: 9 | BO22: 0 | BP22: 0 | BQ22: 0 | BR22: 0 | BS22: 0 | BT22: 0 | BV22: * | BW22: * | BX22: 0 | BZ22: 0
A23: Legal | D23: ='MH Underwriting'!N26 -> 0 | F23: NC or REH | H23: 0 | J23: y | L23: ='Project Costs & Basis'!S19+'Project Costs & Basis'!Q19 -> 0 | N23: ='Project Costs & Basis'!Q19 -> 0 | P23: =IF('Project Information'!$L$4="Yes",L23-N23,0) -> 0 | R23: 0 | T23: 0 | V23: 0 | X23: 0 | Z23: 10 | AC23: =IF(AA23="","",AA23*'Tax Credit Calculations'!$X$32) ->  | AE23: 0 | AK23: =IF(AI23="","",AI23*'Tax Credit Calculations'!$V$32) ->  | AR23: 10 | AS23: 0 | AU23: 0 | AW23: 0 | AY23: 0 | BA23: 0 | BC23: 0 | BG23: 10 | BI23: 0 | BK23: 0 | BN23: 10 | BO23: 0 | BP23: 0 | BQ23: 0 | BR23: 0 | BS23: 0 | BT23: 0 | BV23: * | BW23: * | BX23: 0 | BZ23: 0
A24: Title & Recording | D24: ='MH Underwriting'!N27 -> 0 | F24: MAX FEE | H24: 0 | J24: y | L24: ='Project Costs & Basis'!S21+'Project Costs & Basis'!Q21 -> 0 | N24: ='Project Costs & Basis'!Q21 -> 0 | P24: =IF('Project Information'!$L$4="Yes",L24-N24,0) -> 0 | R24: 0 | T24: 0 | V24: 0 | X24: 0 | Z24: 11 | AC24: =IF(AA24="","",AA24*'Tax Credit Calculations'!$X$32) ->  | AE24: 0 | AK24: =IF(AI24="","",AI24*'Tax Credit Calculations'!$V$32) ->  | AR24: 11 | AS24: 0 | AU24: 0 | AW24: 0 | AY24: 0 | BA24: 0 | BC24: 0 | BG24: 11 | BI24: 0 | BK24: 0 | BN24: 11 | BO24: 0 | BP24: 0 | BQ24: 0 | BR24: 0 | BS24: 0 | BT24: 0 | BV24: * | BW24: * | BX24: 0 | BZ24: 0
A25: Accounting | D25: ='MH Underwriting'!N28 -> 0 | F25: =IF($B$4<>2,($D$51-($D$48+$D$49)),0) -> 0 | H25: 0 | J25: y | L25: ='Project Costs & Basis'!S23+'Project Costs & Basis'!Q23 -> 0 | N25: ='Project Costs & Basis'!Q23 -> 0 | P25: =IF('Project Information'!$L$4="Yes",L25-N25,0) -> 0 | R25: 0 | T25: 0 | V25: 0 | X25: 0 | Z25: 12 | AC25: =IF(AA25="","",AA25*'Tax Credit Calculations'!$X$32) ->  | AE25: 0 | AK25: =IF(AI25="","",AI25*'Tax Credit Calculations'!$V$32) ->  | AR25: 12 | AS25: 0 | AU25: 0 | AW25: 0 | AY25: 0 | BA25: 0 | BC25: 0 | BG25: 12 | BI25: 0 | BK25: 0 | BN25: 12 | BO25: 0 | BP25: 0 | BQ25: 0 | BR25: 0 | BS25: 0 | BT25: 0 | BV25: * | BW25: * | BX25: 0 | BZ25: 0 | CE25: Placed in Service
A26: Construction Period Tax | D26: ='MH Underwriting'!N29 -> 0 | F26: =IF(B4<>2,0.15,0) -> 0.15 | H26: 0 | J26: y | L26: ='Project Costs & Basis'!S25+'Project Costs & Basis'!Q25 -> 0 | N26: ='Project Costs & Basis'!Q25 -> 0 | P26: =IF('Project Information'!$L$4="Yes",L26-N26,0) -> 0 | R26: 0 | T26: 0 | V26: 0 | X26: 0 | Z26: 13 | AC26: =IF(AA26="","",AA26*'Tax Credit Calculations'!$X$32) ->  | AE26: 0 | AK26: =IF(AI26="","",AI26*'Tax Credit Calculations'!$V$32) ->  | AR26: 13 | AS26: 0 | AU26: 0 | AW26: 0 | AY26: 0 | BA26: 0 | BC26: 0 | BG26: 13 | BI26: 0 | BK26: 0 | BN26: 13 | BO26: 0 | BP26: 0 | BQ26: 0 | BR26: 0 | BS26: 0 | BT26: 0 | BV26: * | BW26: * | BX26: 0 | BZ26: 0
A27: Construction Period Insurance | D27: ='MH Underwriting'!N30 -> 0 | F27: =IF(F25>0,F25*F26,0) -> 0 | H27: 0 | J27: y | L27: ='Project Costs & Basis'!S27+'Project Costs & Basis'!Q27 -> 0 | N27: ='Project Costs & Basis'!Q27 -> 0 | P27: =IF('Project Information'!$L$4="Yes",L27-N27,0) -> 0 | R27: 0 | T27: 0 | V27: 0 | X27: 0 | Z27: 14 | AC27: =IF(AA27="","",AA27*'Tax Credit Calculations'!$X$32) ->  | AE27: 0 | AK27: =IF(AI27="","",AI27*'Tax Credit Calculations'!$V$32) ->  | AR27: 14 | AS27: 0 | AU27: 0 | AW27: 0 | AY27: 0 | BA27: 0 | BC27: 0 | BG27: 14 | BI27: 0 | BK27: 0 | BN27: 14 | BO27: 0 | BP27: 0 | BQ27: 0 | BR27: 0 | BS27: 0 | BT27: 0 | BV27: * | BW27: * | BX27: 0 | BZ27: 0
A28: Other | D28: ='MH Underwriting'!N31 -> 0 | F28: 2 | H28: 0 | J28: n | L28: ='Project Costs & Basis'!S29+'Project Costs & Basis'!Q29 -> 0 | N28: ='Project Costs & Basis'!Q29 -> 0 | P28: =IF('Project Information'!$L$4="Yes",L28-N28,0) -> 0 | R28: 0 | T28: 0 | V28: 0 | X28: 0 | Z28: 15 | AC28: =IF(AA28="","",AA28*'Tax Credit Calculations'!$X$32) ->  | AE28: 0 | AK28: =IF(AI28="","",AI28*'Tax Credit Calculations'!$V$32) ->  | AR28: 15 | AS28: 0 | AU28: 0 | AW28: 0 | AY28: 0 | BA28: 0 | BC28: 0 | BG28: 15 | BI28: 0 | BK28: 0 | BN28: 15 | BO28: 0 | BP28: 0 | BQ28: 0 | BR28: 0 | BS28: 0 | BT28: 0 | BV28: * | BW28: * | BX28: 0 | BZ28: 0
A29: Construction Loan Origination Fees | D29: ='MH Underwriting'!N34 -> 0 | F29: ACQ/REH | H29: 0 | J29: y | L29: ='Project Costs & Basis'!S38+'Project Costs & Basis'!Q38 -> 0 | N29: ='Project Costs & Basis'!Q38 -> 0 | P29: =IF('Project Information'!$L$4="Yes",L29-N29,0) -> 0 | R29: 0 | T29: 0 | V29: 0 | X29: 0 | Z29: 16 | AC29: =IF(AA29="","",AA29*'Tax Credit Calculations'!$X$32) ->  | AE29: 0 | AK29: =IF(AI29="","",AI29*'Tax Credit Calculations'!$V$32) ->  | AR29: 16 | AS29: 0 | AU29: 0 | AW29: 0 | AY29: 0 | BA29: 0 | BC29: 0 | BG29: 16 | BI29: 0 | BK29: 0 | BN29: 16 | BO29: 0 | BP29: 0 | BQ29: 0 | BR29: 0 | BS29: 0 | BT29: 0 | BV29: * | BW29: * | BX29: 0 | BZ29: 0 | CE29: IRS Form 8609
A30: Construction Loan Interest | D30: ='MH Underwriting'!N35 -> 0 | F30: MAX FEE | H30: 0 | J30: y | L30: ='Project Costs & Basis'!S40+'Project Costs & Basis'!Q40 -> 0 | N30: ='Project Costs & Basis'!Q40 -> 0 | P30: =IF('Project Information'!$L$4="Yes",L30-N30,0) -> 0 | R30: 0 | T30: 0 | V30: 0 | X30: 0 | Z30: 17 | AC30: =IF(AA30="","",AA30*'Tax Credit Calculations'!$X$32) ->  | AE30: 0 | AK30: =IF(AI30="","",AI30*'Tax Credit Calculations'!$V$32) ->  | AR30: 17 | AS30: 0 | AU30: 0 | AW30: 0 | AY30: 0 | BA30: 0 | BC30: 0 | BG30: 17 | BI30: 0 | BK30: 0 | BN30: 17 | BO30: 0 | BP30: 0 | BQ30: 0 | BR30: 0 | BS30: 0 | BT30: 0 | BV30: * | BW30: * | BX30: 0 | BZ30: 0
A31: MH Permanent Loan Fees | D31: ='MH Underwriting'!N36 -> 0 | F31: =IF(B4=2,((D6+D7+D10)*0.1)+((D51-(D6+D7+D8+D10+D48+D49))*0.15),0) -> 0 | H31: 0 | J31: y | L31: ='Project Costs & Basis'!S42+'Project Costs & Basis'!Q42 -> 0 | N31: ='Project Costs & Basis'!Q42 -> 0 | P31: =IF('Project Information'!$L$4="Yes",L31-N31,0) -> 0 | R31: 0 | T31: 0 | V31: 0 | X31: 0 | Z31: 18 | AC31: =IF(AA31="","",AA31*'Tax Credit Calculations'!$X$32) ->  | AE31: 0 | AK31: =IF(AI31="","",AI31*'Tax Credit Calculations'!$V$32) ->  | AR31: 18 | AS31: 0 | AU31: 0 | AW31: 0 | AY31: 0 | BA31: 0 | BC31: 0 | BG31: 18 | BI31: 0 | BK31: 0 | BN31: 18 | BO31: 0 | BP31: 0 | BQ31: 0 | BR31: 0 | BS31: 0 | BT31: 0 | BV31: * | BW31: * | BX31: 0 | BZ31: 0
A32: Other Permanent Loan Fees | D32: ='MH Underwriting'!N37 -> 0 | H32: 0 | J32: n | L32: ='Project Costs & Basis'!S44+'Project Costs & Basis'!Q44 -> 0 | N32: ='Project Costs & Basis'!Q44 -> 0 | P32: =IF('Project Information'!$L$4="Yes",L32-N32,0) -> 0 | R32: 0 | T32: 0 | V32: 0 | X32: 0 | Z32: 19 | AC32: =IF(AA32="","",AA32*'Tax Credit Calculations'!$X$32) ->  | AE32: 0 | AK32: =IF(AI32="","",AI32*'Tax Credit Calculations'!$V$32) ->  | AR32: 19 | AS32: 0 | AU32: 0 | AW32: 0 | AY32: 0 | BA32: 0 | BC32: 0 | BG32: 19 | BI32: 0 | BK32: 0 | BN32: 19 | BO32: 0 | BP32: 0 | BQ32: 0 | BR32: 0 | BS32: 0 | BT32: 0 | BV32: * | BW32: * | BX32: 0 | BZ32: 0
A33: Other | D33: ='MH Underwriting'!N38 -> 0 | H33: 0 | J33: y | L33: ='Project Costs & Basis'!S46+'Project Costs & Basis'!Q46 -> 0 | N33: ='Project Costs & Basis'!Q46 -> 0 | P33: =IF('Project Information'!$L$4="Yes",L33-N33,0) -> 0 | R33: 0 | T33: 0 | V33: 0 | X33: 0 | Z33: 20 | AC33: =IF(AA33="","",AA33*'Tax Credit Calculations'!$X$32) ->  | AE33: 0 | AK33: =IF(AI33="","",AI33*'Tax Credit Calculations'!$V$32) ->  | AR33: 20 | AS33: 0 | AU33: 0 | AW33: 0 | AY33: 0 | BA33: 0 | BC33: 0 | BG33: 20 | BI33: 0 | BK33: 0 | BN33: 20 | BO33: 0 | BP33: 0 | BQ33: 0 | BR33: 0 | BS33: 0 | BT33: 0 | BV33: * | BW33: * | BX33: 0 | BZ33: 0
A34: Market Survey | D34: ='MH Underwriting'!N41 -> 0 | F34: MAX FEE | H34: 0 | J34: y | L34: ='Project Costs & Basis'!S53+'Project Costs & Basis'!Q53 -> 0 | N34: ='Project Costs & Basis'!Q53 -> 0 | P34: =IF('Project Information'!$L$4="Yes",L34-N34,0) -> 0 | R34: 0 | T34: 0 | V34: 0 | X34: 0 | Z34: 21 | AC34: =IF(AA34="","",AA34*'Tax Credit Calculations'!$X$32) ->  | AE34: 0 | AK34: =IF(AI34="","",AI34*'Tax Credit Calculations'!$V$32) ->  | AR34: 21 | AS34: 0 | AU34: 0 | AW34: 0 | AY34: 0 | BA34: 0 | BC34: 0 | BG34: 21 | BI34: 0 | BK34: 0 | BN34: 21 | BO34: 0 | BP34: 0 | BQ34: 0 | BR34: 0 | BS34: 0 | BT34: 0 | BV34: * | BW34: * | BX34: 0 | BZ34: 0
A35: Appraisal | D35: ='MH Underwriting'!N42 -> 0 | F35: =IF(B4=2,F31,F27) -> 0 | H35: 0 | J35: y | L35: ='Project Costs & Basis'!S55+'Project Costs & Basis'!Q55 -> 0 | N35: ='Project Costs & Basis'!Q55 -> 0 | P35: =IF('Project Information'!$L$4="Yes",L35-N35,0) -> 0 | R35: 0 | T35: 0 | V35: 0 | X35: 0 | Z35: 22 | AC35: =IF(AA35="","",AA35*'Tax Credit Calculations'!$X$32) ->  | AE35: 0 | AK35: =IF(AI35="","",AI35*'Tax Credit Calculations'!$V$32) ->  | AR35: 22 | AS35: 0 | AU35: 0 | AW35: 0 | AY35: 0 | BA35: 0 | BC35: 0 | BG35: 22 | BI35: 0 | BK35: 0 | BN35: 22 | BO35: 0 | BP35: 0 | BQ35: 0 | BR35: 0 | BS35: 0 | BT35: 0 | BV35: * | BW35: * | BX35: 0 | BZ35: 0
A36: Environmental Study | D36: ='MH Underwriting'!N43 -> 0 | F36: THIS PROJ | H36: 0 | J36: y | L36: ='Project Costs & Basis'!S57+'Project Costs & Basis'!Q57 -> 0 | N36: ='Project Costs & Basis'!Q57 -> 0 | P36: =IF('Project Information'!$L$4="Yes",L36-N36,0) -> 0 | R36: 0 | T36: 0 | V36: 0 | X36: 0 | Z36: 23 | AC36: =IF(AA36="","",AA36*'Tax Credit Calculations'!$X$32) ->  | AE36: 0 | AK36: =IF(AI36="","",AI36*'Tax Credit Calculations'!$V$32) ->  | AR36: 23 | AS36: 0 | AU36: 0 | AW36: 0 | AY36: 0 | BA36: 0 | BC36: 0 | BG36: 23 | BI36: 0 | BK36: 0 | BN36: 23 | BO36: 0 | BP36: 0 | BQ36: 0 | BR36: 0 | BS36: 0 | BT36: 0 | BV36: * | BW36: * | BX36: 0 | BZ36: 0
A37: LIHTC Fees & Prepaid Monitoring | D37: ='MH Underwriting'!N44 -> 0 | H37: 0 | J37: n | L37: ='Project Costs & Basis'!S59+'Project Costs & Basis'!Q59 -> 0 | N37: ='Project Costs & Basis'!Q59 -> 0 | P37: =IF('Project Information'!$L$4="Yes",L37-N37,0) -> 0 | R37: 0 | T37: 0 | V37: 0 | X37: 0 | Z37: 24 | AC37: =IF(AA37="","",AA37*'Tax Credit Calculations'!$X$32) ->  | AE37: 0 | AK37: =IF(AI37="","",AI37*'Tax Credit Calculations'!$V$32) ->  | AR37: 24 | AS37: 0 | AU37: 0 | AW37: 0 | AY37: 0 | BA37: 0 | BC37: 0 | BG37: 24 | BI37: 0 | BK37: 0 | BN37: 24 | BO37: 0 | BP37: 0 | BQ37: 0 | BR37: 0 | BS37: 0 | BT37: 0 | BV37: * | BW37: * | BX37: 0 | BZ37: 0
A38: Relocation Costs | D38: ='MH Underwriting'!N45 -> 0 | F38: =D48 -> 0 | H38: 0 | J38: y | L38: ='Project Costs & Basis'!S61+'Project Costs & Basis'!Q61 -> 0 | N38: ='Project Costs & Basis'!Q61 -> 0 | P38: =IF('Project Information'!$L$4="Yes",L38-N38,0) -> 0 | R38: 0 | T38: 0 | V38: 0 | X38: 0 | Z38: 25 | AC38: =IF(AA38="","",AA38*'Tax Credit Calculations'!$X$32) ->  | AE38: 0 | AK38: =IF(AI38="","",AI38*'Tax Credit Calculations'!$V$32) ->  | AR38: 25 | AS38: 0 | AU38: 0 | AW38: 0 | AY38: 0 | BA38: 0 | BC38: 0 | BG38: 25 | BI38: 0 | BK38: 0 | BN38: 25 | BO38: 0 | BP38: 0 | BQ38: 0 | BR38: 0 | BS38: 0 | BT38: 0 | BV38: * | BW38: * | BX38: 0 | BZ38: 0
A39: FF&E | D39: ='MH Underwriting'!N46 -> 0 | F39: =D47 -> 0 | H39: 0 | J39: y | L39: ='Project Costs & Basis'!S63+'Project Costs & Basis'!Q63 -> 0 | N39: ='Project Costs & Basis'!Q63 -> 0 | P39: =IF('Project Information'!$L$4="Yes",L39-N39,0) -> 0 | R39: 0 | T39: 0 | V39: 0 | X39: 0 | Z39: 26 | AC39: =IF(AA39="","",AA39*'Tax Credit Calculations'!$X$32) ->  | AE39: 0 | AK39: =IF(AI39="","",AI39*'Tax Credit Calculations'!$V$32) ->  | AR39: 26 | AS39: 0 | AU39: 0 | AW39: 0 | AY39: 0 | BA39: 0 | BC39: 0 | BG39: 26 | BI39: 0 | BK39: 0 | BN39: 26 | BO39: 0 | BP39: 0 | BQ39: 0 | BR39: 0 | BS39: 0 | BT39: 0 | BV39: * | BW39: * | BX39: 0 | BZ39: 0
A40: Other | D40: ='MH Underwriting'!N47 -> 0 | F40: =D49 -> 0 | H40: 0 | J40: y | L40: ='Project Costs & Basis'!S65+'Project Costs & Basis'!Q65 -> 0 | N40: ='Project Costs & Basis'!Q65 -> 0 | P40: =IF('Project Information'!$L$4="Yes",L40-N40,0) -> 0 | R40: 0 | T40: 0 | V40: 0 | X40: 0 | Z40: 27 | AC40: =IF(AA40="","",AA40*'Tax Credit Calculations'!$X$32) ->  | AE40: 0 | AK40: =IF(AI40="","",AI40*'Tax Credit Calculations'!$V$32) ->  | AR40: 27 | AS40: 0 | AU40: 0 | AW40: 0 | AY40: 0 | BA40: 0 | BC40: 0 | BG40: 27 | BI40: 0 | BK40: 0 | BN40: 27 | BO40: 0 | BP40: 0 | BQ40: 0 | BR40: 0 | BS40: 0 | BT40: 0 | BV40: * | BW40: * | BX40: 0 | BZ40: 0
A41: Operating Deficit Escrow | D41: ='MH Underwriting'!N57 -> 0 | F41: =SUM(F38:F40) -> 0 | H41: 0 | J41: n | L41: ='Project Costs & Basis'!S88+'Project Costs & Basis'!Q88 -> 0 | N41: ='Project Costs & Basis'!Q88 -> 0 | P41: =IF('Project Information'!$L$4="Yes",L41-N41,0) -> 0 | R41: 0 | T41: 0 | V41: 0 | X41: 0 | Z41: 28 | AC41: =IF(AA41="","",AA41*'Tax Credit Calculations'!$X$32) ->  | AE41: 0 | AK41: =IF(AI41="","",AI41*'Tax Credit Calculations'!$V$32) ->  | AR41: 28 | AS41: 0 | AU41: 0 | AW41: 0 | AY41: 0 | BA41: 0 | BC41: 0 | BG41: 28 | BI41: 0 | BK41: 0 | BN41: 28 | BO41: 0 | BP41: 0 | BQ41: 0 | BR41: 0 | BS41: 0 | BT41: 0 | BV41: * | BW41: * | BX41: 0 | BZ41: 0
A42: Pre-funded Replacements | D42: ='MH Underwriting'!N58 -> 0 | H42: 0 | J42: n | L42: ='Project Costs & Basis'!S90+'Project Costs & Basis'!Q90 -> 0 | N42: ='Project Costs & Basis'!Q90 -> 0 | P42: =IF('Project Information'!$L$4="Yes",L42-N42,0) -> 0 | R42: 0 | T42: 0 | V42: 0 | X42: 0 | Z42: 29 | AC42: =IF(AA42="","",AA42*'Tax Credit Calculations'!$X$32) ->  | AE42: 0 | AK42: =IF(AI42="","",AI42*'Tax Credit Calculations'!$V$32) ->  | AR42: 29 | AS42: 0 | AU42: 0 | AW42: 0 | AY42: 0 | BA42: 0 | BC42: 0 | BG42: 29 | BI42: 0 | BK42: 0 | BN42: 29 | BO42: 0 | BP42: 0 | BQ42: 0 | BR42: 0 | BS42: 0 | BT42: 0 | BV42: * | BW42: * | BX42: 0 | BZ42: 0
A43: Tax & Insurance Escrow | D43: ='MH Underwriting'!N59 -> 0 | H43: 0 | J43: n | L43: ='Project Costs & Basis'!S92+'Project Costs & Basis'!Q92 -> 0 | N43: ='Project Costs & Basis'!Q92 -> 0 | P43: =IF('Project Information'!$L$4="Yes",L43-N43,0) -> 0 | R43: 0 | T43: 0 | V43: 0 | X43: 0 | Z43: 30 | AC43: =IF(AA43="","",AA43*'Tax Credit Calculations'!$X$32) ->  | AE43: 0 | AK43: =IF(AI43="","",AI43*'Tax Credit Calculations'!$V$32) ->  | AR43: 30 | AS43: 0 | AU43: 0 | AW43: 0 | AY43: 0 | BA43: 0 | BC43: 0 | BG43: 30 | BI43: 0 | BK43: 0 | BN43: 30 | BO43: 0 | BP43: 0 | BQ43: 0 | BR43: 0 | BS43: 0 | BT43: 0 | BV43: * | BW43: * | BX43: 0 | BZ43: 0
A44: Working Capital | D44: ='MH Underwriting'!N60 -> 0 | H44: =D44 -> 0 | J44: n | L44: ='Project Costs & Basis'!S94+'Project Costs & Basis'!Q94 -> 0 | N44: ='Project Costs & Basis'!Q94 -> 0 | P44: =IF('Project Information'!$L$4="Yes",L44-N44,0) -> 0 | R44: 0 | T44: 0 | V44: 0 | X44: 0 | Z44: 31 | AC44: =IF(AA44="","",AA44*'Tax Credit Calculations'!$X$32) ->  | AE44: 0 | AK44: =IF(AI44="","",AI44*'Tax Credit Calculations'!$V$32) ->  | AR44: 31 | AS44: 0 | AU44: 0 | AW44: 0 | AY44: 0 | BA44: 0 | BC44: 0 | BG44: 31 | BI44: 0 | BK44: 0 | BN44: 31 | BO44: 0 | BP44: 0 | BQ44: 0 | BR44: 0 | BS44: 0 | BT44: 0 | BV44: * | BW44: * | BX44: 0 | BZ44: 0
A45: Other | D45: ='MH Underwriting'!N65 -> 0 | H45: =D45 -> 0 | J45: n | L45: ='Project Costs & Basis'!S96+'Project Costs & Basis'!Q96 -> 0 | N45: ='Project Costs & Basis'!Q96 -> 0 | P45: =IF('Project Information'!$L$4="Yes",L45-N45,0) -> 0 | R45: 0 | T45: 0 | V45: 0 | X45: 0 | Z45: 32 | AC45: =IF(AA45="","",AA45*'Tax Credit Calculations'!$X$32) ->  | AE45: 0 | AK45: =IF(AI45="","",AI45*'Tax Credit Calculations'!$V$32) ->  | AR45: 32 | AS45: 0 | AU45: 0 | AW45: 0 | AY45: 0 | BA45: 0 | BC45: 0 | BG45: 32 | BI45: 0 | BK45: 0 | BN45: 32 | BO45: 0 | BP45: 0 | BQ45: 0 | BR45: 0 | BS45: 0 | BT45: 0 | BV45: * | BW45: * | BX45: 0 | BZ45: 0
A46: Total Syndication Expenses | D46: ='MH Underwriting'!N61 -> 0 | H46: =D46 -> 0 | J46: n | L46: ='Project Costs & Basis'!S110+'Project Costs & Basis'!Q110 -> 0 | N46: ='Project Costs & Basis'!Q110 -> 0 | P46: =IF('Project Information'!$L$4="Yes",L46-N46,0) -> 0 | R46: 0 | T46: 0 | V46: 0 | X46: 0 | Z46: 33 | AC46: =IF(AA46="","",AA46*'Tax Credit Calculations'!$X$32) ->  | AE46: 0 | AK46: =IF(AI46="","",AI46*'Tax Credit Calculations'!$V$32) ->  | AR46: 33 | AS46: 0 | AU46: 0 | AW46: 0 | AY46: 0 | BA46: 0 | BC46: 0 | BG46: 33 | BI46: 0 | BK46: 0 | BN46: 33 | BO46: 0 | BP46: 0 | BQ46: 0 | BR46: 0 | BS46: 0 | BT46: 0 | BV46: * | BW46: * | BX46: 0 | BZ46: 0
A47: Consultant Fee | D47: ='MH Underwriting'!N62 -> 0 | H47: 0 | J47: y | L47: ='Project Costs & Basis'!S116+'Project Costs & Basis'!Q116 -> 0 | N47: ='Project Costs & Basis'!Q116 -> 0 | P47: =IF('Project Information'!$L$4="Yes",L47-N47,0) -> 0 | R47: 0 | T47: 0 | V47: 0 | X47: 0 | Z47: 34 | AC47: =IF(AA47="","",AA47*'Tax Credit Calculations'!$X$32) ->  | AE47: 0 | AK47: =IF(AI47="","",AI47*'Tax Credit Calculations'!$V$32) ->  | AR47: 34 | AS47: 0 | AU47: 0 | AW47: 0 | AY47: 0 | BA47: 0 | BC47: 0 | BG47: 34 | BI47: 0 | BK47: 0 | BN47: 34 | BO47: 0 | BP47: 0 | BQ47: 0 | BR47: 0 | BS47: 0 | BT47: 0 | BV47: * | BW47: * | BX47: 0 | BZ47: 0
A48: Developer Overhead | D48: ='MH Underwriting'!N63 -> 0 | H48: 0 | J48: y | L48: ='Project Costs & Basis'!S118+'Project Costs & Basis'!Q118 -> 0 | N48: ='Project Costs & Basis'!Q118 -> 0 | P48: =IF('Project Information'!$L$4="Yes",L48-N48,0) -> 0 | R48: 0 | T48: 0 | V48: 0 | X48: 0 | Z48: 35 | AC48: =IF(AA48="","",AA48*'Tax Credit Calculations'!$X$32) ->  | AE48: 0 | AK48: =IF(AI48="","",AI48*'Tax Credit Calculations'!$V$32) ->  | AR48: 35 | AS48: 0 | AU48: 0 | AW48: 0 | AY48: 0 | BA48: 0 | BC48: 0 | BG48: 35 | BI48: 0 | BK48: 0 | BN48: 35 | BO48: 0 | BP48: 0 | BQ48: 0 | BR48: 0 | BS48: 0 | BT48: 0 | BV48: * | BW48: * | BX48: 0 | BZ48: 0
A49: Developer Profit | D49: ='MH Underwriting'!N64 -> 0 | H49: =D49 -> 0 | J49: y | L49: ='Project Costs & Basis'!S120+'Project Costs & Basis'!Q38120 -> 0 | N49: ='Project Costs & Basis'!Q120 -> 0 | P49: =IF('Project Information'!$L$4="Yes",L49-N49,0) -> 0 | R49: 0 | T49: 0 | V49: 0 | X49: 0 | AA49: =SUM(AA14:AA48) -> 0 | AC49: =SUM(AC14:AC48) -> 0 | AE49: =SUM(AE14:AE48) -> 0 | AI49: =SUM(AI14:AI48) -> 0 | AK49: =SUM(AK14:AK48) -> 0 | AS49: =SUM(AS14:AS48) -> 0 | AU49: =SUM(AU14:AU48) -> 0 | AW49: =SUM(AW14:AW48) -> 0 | AY49: =SUM(AY14:AY48) -> 0 | BA49: =SUM(BA14:BA48) -> 0 | BC49: =SUM(BC14:BC48) -> 0 | BI49: =SUM(BI14:BI48) -> 0 | BK49: =SUM(BK14:BK48) -> 0
D50: 0 | H50: 0 | J50: y | L50: 0 | N50: 0 | P50: =IF('Project Information'!$L$4="Yes",L50-N50,0) -> 0 | R50: 0 | T50: 0 | V50: 0 | X50: 0 | AA50: =IF(AA49<>AG4,"ALERT"," ") ->  | AH50: =IF(AI49<>J1,"ALERT"," ") ->  | BA50: =BA49+BC49 -> 0 | BI50: =BI49+BK49 -> 0
D51: =SUM(D6:D50) -> 0 | H51: =SUM(H6:H50) -> 0 | L51: =SUM(L6:L50) -> 0 | N51: =SUM(N6:N50) -> 0 | P51: =SUM(P6:P50) -> 0 | R51: =SUM(R6:R50) -> 0 | T51: =SUM(T6:T50) -> 0 | V51: =SUM(V6:V50) -> 0 | X51: =SUM(X19:X50) -> 0
J52: Adjustment | L52: ='Tax Credit Calculations'!Q21+'Tax Credit Calculations'!S21-SUM('Tax Credit Calculations'!Q12:'Tax Credit Calculations'!S19) -> 0 | N52: ='Tax Credit Calculations'!Q21-SUM('Tax Credit Calculations'!Q12:Q19) -> 0 | P52: =IF('Project Information'!$L$4="Yes",'Tax Credit Calculations'!S21-SUM('Tax Credit Calculations'!S12:S19),0) -> 0 | R52: =IF(P52=0,'Tax Credit Calculations'!S21-SUM('Tax Credit Calculations'!S12:S19),0) -> 0 | T52: =N52 -> 0 | V52: =IF($T$2="y",R52*1.3,R52) -> 0 | X52: =IF($T$2="y",R52*1.3,R52) -> 0 | BF52: Credit Amount Requested | BK52: =IF(BK10<BA50,BK10,BA50) -> 0
L53: =SUM(L51:L52) -> 0 | N53: =SUM(N51:N52) -> 0 | P53: =SUM(P51:P52) -> 0 | R53: =SUM(R51:R52) -> 0 | T53: =SUM(T51:T52) -> 0 | V53: =SUM(V51:V52) -> 0 | X53: =SUM(X51:X52) -> 0
T54: =N4 -> 0.04 | V54: =P4 -> 0 | X54: =R4 -> 0.09
T55: =ROUND(T53*T54,0) -> 0 | V55: =ROUND(V53*V54,0) -> 0 | X55: =ROUND(X53*X54,0) -> 0
T56: =T55+X55+V55 -> 0

Sheet Tax Credit Calc (hidden)
A1: Project Name: | C1: ='MH Underwriting'!D1 -> Project Name
A2: Location: | C2: ='MH Underwriting'!D2 -> Town
A6: LIHTC 30% Rate: | C6: ='MH Underwriting'!H1 -> 00:00:00 | E6: ='Tax Credit Calculations'!Q37 -> 0.04
A7: LIHTC 70% Rate: | E7: ='Tax Credit Calculations'!S37 -> 0.09
A8: Historic TxCr | E8: ='Tax Credit Calculations'!D6 -> No
A9: Partnership Tax Rate | E9: 0.22
A10: Tax Exempt Financing | E10: =IF('Project Information'!L4="Yes","Yes","No") -> No
A11: LIHTC 130% Adjustment | E11: =IF('Tax Credit Calculations'!S27=130%,"Yes","No") -> Yes | G11: Per Unit Credit Cap | I11: =IF(E10="No",IF(E12="Yes",22000,20000),"N/A") -> 20000
A12: Downtown Bonus | E12: No | G12: Total Low Income Units | I12: ='MH Underwriting'!F6+'MH Underwriting'!F7+'MH Underwriting'!F8+'MH Underwriting'!F9 -> 0
E15: LIHTC EVALUATION
A17: Eligible Expenditures | E17: Amount | F17: % Eligible | G17: Adjustment | H17: Credit % | I17: LIHTC
A18: Building Acquisition | E18: =K107 -> 0 | F18: =F23 -> 0 | G18: 1 | H18: =E6 -> 0.04 | I18: =E18*F18*G18*H18 -> 0
A19: Construction | E19: =J60-'MH Underwriting'!T9 -> 0 | F19: =F23 -> 0 | G19: =IF(OR(E11="no",E11="n"),G18,1.3) -> 1.3 | H19: =IF(OR(E10="yes",E10="y"),E6,E7) -> 0.09 | I19: =E19*F19*G19*H19 -> 0
A20: Other Elig. Cost | E20: =J71+J78+J87+J105-J101-J102-J103 -> 0 | F20: =F23 -> 0 | G20: =G19 -> 1.3 | H20: =H19 -> 0.09 | I20: =E20*F20*G20*H20 -> 0 | N20: Max Eligible Credit | P20: =I23 -> 0
A21: Dev. Fee | E21: =J101+J102+J103 -> 0 | F21: =F23 -> 0 | G21: =G20 -> 1.3 | H21: =H20 -> 0.09 | I21: =E21*F21*G21*H21 -> 0 | N21: QAP Per Unit Cap | P21: =IF(E10="Yes","",I11*I12) -> 0
N22: QAP Per Project Cap | P22: =IF(E10="Yes","",960000) -> 960000
A23: TOTAL LIHTC | E23: =SUM(E18:E21) -> 0 | F23: =IF('MH Underwriting'!F5=0,0,('MH Underwriting'!F6+'MH Underwriting'!F7+'MH Underwriting'!F8+'MH Underwriting'!F9)/'MH Underwriting'!F5) -> 0 | I23: =SUM(I18:I21) -> 0 | N23: Credit Requested | P23: ='Tax Credit Calculations'!Q40+'Tax Credit Calculations'!S40 -> 0
B25: LIHTC Cap / Carryover Allocation Amount | I25: =MIN(P20:P23) -> 0
G29: Equity Pay-in Schedule
A30: Net Syndication Yields
A31: Year | D31: Capital Contrib. | H31: Performance | L31: Estimated
G32: Pmt # | H32: Triggers | J32: Amount | L32: Date
A33: ='MH Underwriting'!E73 -> 2022-03-31 | D33: ='MH Underwriting'!E78+'MH Underwriting'!G78 -> 0
A34: =A33+365 -> 2023-03-31 | D34: =SUM('MH Underwriting'!H78:J78)+'MH Underwriting'!N78+'MH Underwriting'!P78 -> 0 | G34: 1 | H34: CLC | J34: ='MH Underwriting'!E78 -> 0 | L34: ='MH Underwriting'!E73 -> 2022-03-31
A35: 2024-03-30 | D35: ='MH Underwriting'!Q78 -> 0
A36: 2025-03-30 | D36: 0 | G36: 2 | H36: 50% Construction Completion | J36: ='MH Underwriting'!H78 -> 0 | L36: =L34+180 -> 2022-09-27
A37: 2026-03-30 | D37: 0
A38: 2027-03-30 | D38: 0 | G38: 3 | H38: PLC | J38: ='MH Underwriting'!N78 -> 0 | L38: ='MH Underwriting'!N74 -> PLC
A39: 2028-03-29 | D39: 0
A40: 2029-03-29 | D40: 0 | G40: 4 | H40: 8609 or Occupancy | J40: ='MH Underwriting'!P78 -> 0 | L40: ='MH Underwriting'!P74 -> Milestone
A41: Totals | D41: =SUM(D33:D40) -> 0
A42: NPV @ 7% | D42: =NPV(0.07,D33:D40) -> 0 | G42: 5 | H42: 1 yr. DSC / Occupancy | J42: ='MH Underwriting'!Q78 -> 0 | L42: ='MH Underwriting'!Q74 -> Payment
A43: Credit Allocation | D43: =I23*10 -> 0
A44: Yield | D44: =IF(D43=0,0,D42/D43) -> 0
J51: LIHTC Basis
A52: Uses Of Funds | D52: Residential | F52: Depreciable | G52: Amortizable | H52: Non-Amort. | J52: (non-acquis.) | K52: (acquis.)
A54: Site Improvements | D54: ='MH Underwriting'!F15 -> 0 | F54: =D54 -> 0 | J54: =F54-K54 -> 0 | K54: 0
A55: Construction | D55: ='MH Underwriting'!F16 -> 0 | F55: =D55-G55-H55 -> 0 | G55: ='Project Costs & Basis'!L9 -> 0 | H55: ='Project Costs & Basis'!N9 -> 0 | J55: 0 | K55: 0
A56: General Requirements | D56: ='MH Underwriting'!F17 -> 0 | F56: =D56 -> 0 | J56: 0 | K56: 0
A57: Builder Profit | D57: ='MH Underwriting'!F18 -> 0 | F57: =D57 -> 0 | J57: 0 | K57: 0
A58: Bond Premium | D58: ='MH Underwriting'!F19 -> 0 | F58: =D58 -> 0 | J58: 0 | K58: 0
A59: Construction Contingency | C59: =IF(D55=0,0,D59/SUM(D54:D58)) -> 0 | D59: ='MH Underwriting'!F20 -> 0 | F59: =D59 -> 0 | J59: 0 | K59: 0
A60: Subtotal Construction Costs | D60: =SUM(D54:D59) -> 0 | F60: =SUM(F54:F59) -> 0 | G60: =SUM(G54:G59) -> 0 | H60: =SUM(H54:H59) -> 0 | J60: =SUM(J54:J59) -> 0 | K60: =SUM(K54:K59) -> 0 | M60: =SUM(D54:D58)*N60 -> 0 | N60: 0.05
A62: Building Permits and Fees | D62: ='MH Underwriting'!F23 -> 0 | F62: ='Project Costs & Basis'!H13 -> 0 | G62: ='Project Costs & Basis'!L13 -> 0 | H62: ='Project Costs & Basis'!N13 -> 0 | J62: ='Project Costs & Basis'!S13 -> 0 | K62: ='Project Costs & Basis'!Q13 -> 0
A63: Survey & Engineering | D63: ='MH Underwriting'!F24 -> 0 | F63: ='Project Costs & Basis'!H15 -> 0 | G63: ='Project Costs & Basis'!L15 -> 0 | H63: ='Project Costs & Basis'!N15 -> 0 | J63: ='Project Costs & Basis'!S15 -> 0 | K63: ='Project Costs & Basis'!Q15 -> 0
A64: Architectural & Design | D64: ='MH Underwriting'!F25 -> 0 | F64: ='Project Costs & Basis'!H17 -> 0 | G64: ='Project Costs & Basis'!L17 -> 0 | H64: ='Project Costs & Basis'!N17 -> 0 | J64: ='Project Costs & Basis'!S17 -> 0 | K64: ='Project Costs & Basis'!Q17 -> 0
A65: Legal | D65: ='MH Underwriting'!F26 -> 0 | F65: ='Project Costs & Basis'!H19 -> 0 | G65: ='Project Costs & Basis'!L19 -> 0 | H65: ='Project Costs & Basis'!N19 -> 0 | J65: ='Project Costs & Basis'!S19 -> 0 | K65: ='Project Costs & Basis'!Q19 -> 0
A66: Title & Recording | D66: ='MH Underwriting'!F27 -> 0 | F66: ='Project Costs & Basis'!H21 -> 0 | G66: ='Project Costs & Basis'!L21 -> 0 | H66: ='Project Costs & Basis'!N21 -> 0 | J66: ='Project Costs & Basis'!S21 -> 0 | K66: ='Project Costs & Basis'!Q21 -> 0
A67: Accounting | D67: ='MH Underwriting'!F28 -> 0 | F67: ='Project Costs & Basis'!H23 -> 0 | G67: ='Project Costs & Basis'!L23 -> 0 | H67: ='Project Costs & Basis'!N23 -> 0 | J67: ='Project Costs & Basis'!S23 -> 0 | K67: ='Project Costs & Basis'!Q23 -> 0
A68: Construction Period Tax | D68: ='MH Underwriting'!F29 -> 0 | F68: ='Project Costs & Basis'!H25 -> 0 | G68: ='Project Costs & Basis'!L25 -> 0 | H68: ='Project Costs & Basis'!N25 -> 0 | J68: ='Project Costs & Basis'!S25 -> 0 | K68: ='Project Costs & Basis'!Q25 -> 0
A69: Construction Period Insurance | D69: ='MH Underwriting'!F30 -> 0 | F69: ='Project Costs & Basis'!H27 -> 0 | G69: ='Project Costs & Basis'!L27 -> 0 | H69: ='Project Costs & Basis'!N27 -> 0 | J69: ='Project Costs & Basis'!S27 -> 0 | K69: ='Project Costs & Basis'!Q27 -> 0
A70: Other | D70: ='MH Underwriting'!F31 -> 0 | F70: ='Project Costs & Basis'!H29 -> 0 | G70: ='Project Costs & Basis'!L29 -> 0 | H70: ='Project Costs & Basis'!N29 -> 0 | J70: ='Project Costs & Basis'!S29 -> 0 | K70: ='Project Costs & Basis'!Q29 -> 0
A71: Subtotal Soft Costs | D71: =SUM(D62:D70) -> 0 | F71: =SUM(F62:F70) -> 0 | G71: =SUM(G62:G70) -> 0 | H71: =SUM(H62:H70) -> 0 | J71: =SUM(J62:J70) -> 0 | K71: =SUM(K62:K70) -> 0
A73: Construction Loan Origination Fees | D73: ='MH Underwriting'!F34 -> 0 | F73: ='Project Costs & Basis'!H38 -> 0 | G73: ='Project Costs & Basis'!L38 -> 0 | H73: ='Project Costs & Basis'!N38 -> 0 | J73: ='Project Costs & Basis'!S38 -> 0 | K73: ='Project Costs & Basis'!Q38 -> 0
A74: Construction Loan Interest | D74: ='MH Underwriting'!F35 -> 0 | F74: ='Project Costs & Basis'!H40 -> 0 | G74: ='Project Costs & Basis'!L40 -> 0 | H74: ='Project Costs & Basis'!N40 -> 0 | J74: ='Project Costs & Basis'!S40 -> 0 | K74: ='Project Costs & Basis'!Q40 -> 0
A75: =IF('Project Information'!L4="Yes","MaineHousing Loan Fees","MaineHousing Permanent Loan Fees") -> MaineHousing Permanent Loan Fees | D75: ='MH Underwriting'!F36 -> 0 | F75: ='Project Costs & Basis'!H42 -> 0 | G75: ='Project Costs & Basis'!L42 ->  | H75: ='Project Costs & Basis'!N42 -> 0 | J75: ='Project Costs & Basis'!S42 -> 0 | K75: ='Project Costs & Basis'!Q42 -> 0 | O75: App = $1000
A76: Other Permanent Loan Fees | D76: ='MH Underwriting'!F37 -> 0 | F76: ='Project Costs & Basis'!H44 -> 0 | G76: ='Project Costs & Basis'!L44 -> 0 | H76: ='Project Costs & Basis'!N44 -> 0 | J76: ='Project Costs & Basis'!S44 -> 0 | K76: ='Project Costs & Basis'!Q44 -> 0 | M76: =IF('Project Information'!L4="Yes",3000+'MH Underwriting'!G124*0.02,"") ->  | N76: =IF(M76="","","PL") ->  | O76: Comm = $2000
A77: Other | D77: ='MH Underwriting'!F38 -> 0 | F77: ='Project Costs & Basis'!H46 -> 0 | G77: ='Project Costs & Basis'!L46 -> 0 | H77: ='Project Costs & Basis'!N46 -> 0 | J77: ='Project Costs & Basis'!S46 -> 0 | K77: ='Project Costs & Basis'!Q46 -> 0 | M77: =IF('Project Information'!L4="Yes",3000+'MH Underwriting'!U82*0.02,"") ->  | N77: =IF(M77="","","CL") ->  | O77: 2% of MH Loan
A78: Subtotal Finance Costs | D78: =SUM(D73:D77) -> 0 | F78: =SUM(F73:F77) -> 0 | G78: =SUM(G73:G77) -> 0 | H78: =SUM(H73:H77) -> 0 | J78: =SUM(J73:J77) -> 0 | K78: =SUM(K73:K77) -> 0
A80: Market Survey | D80: ='MH Underwriting'!F41 -> 0 | F80: ='Project Costs & Basis'!H53 -> 0 | G80: ='Project Costs & Basis'!L53 -> 0 | H80: ='Project Costs & Basis'!N53 -> 0 | J80: ='Project Costs & Basis'!S53 -> 0 | K80: ='Project Costs & Basis'!Q53 -> 0
A81: Appraisal | D81: ='MH Underwriting'!F42 -> 0 | F81: ='Project Costs & Basis'!H55 -> 0 | G81: ='Project Costs & Basis'!L55 -> 0 | H81: ='Project Costs & Basis'!N55 -> 0 | J81: ='Project Costs & Basis'!S55 -> 0 | K81: ='Project Costs & Basis'!Q55 -> 0
A82: Environmental Study | D82: ='MH Underwriting'!F43 -> 0 | F82: ='Project Costs & Basis'!H57 -> 0 | G82: ='Project Costs & Basis'!L57 -> 0 | H82: ='Project Costs & Basis'!N57 -> 0 | J82: ='Project Costs & Basis'!S57 -> 0 | K82: ='Project Costs & Basis'!Q57 -> 0 | O82: App =$4500
A83: LIHTC Fees & Prepaid Monitoring | D83: ='MH Underwriting'!F44 -> 0 | F83: ='Project Costs & Basis'!H59 -> 0 | G83: ='Project Costs & Basis'!L59 ->  | H83: ='Project Costs & Basis'!N59 -> 0 | J83: ='Project Costs & Basis'!S59 -> 0 | K83: ='Project Costs & Basis'!Q59 -> 0 | M83: =IF(I12=0,"",2000+2500+'Tax Credit Calc'!I25*0.075+'Tax Credit Calc'!I12*1000) ->  | O83: Allocation = 7.5% of Credit
A84: Relocation Costs | D84: ='MH Underwriting'!F45 -> 0 | F84: ='Project Costs & Basis'!H61 -> 0 | G84: ='Project Costs & Basis'!L61 -> 0 | H84: ='Project Costs & Basis'!N61 -> 0 | J84: ='Project Costs & Basis'!S61 -> 0 | K84: ='Project Costs & Basis'!Q61 -> 0 | O84: Monitoring = $1000 / LIHTC Unit
A85: FF&E | D85: ='MH Underwriting'!F46 -> 0 | F85: ='Project Costs & Basis'!H63 -> 0 | G85: ='Project Costs & Basis'!L63 -> 0 | H85: ='Project Costs & Basis'!N63 -> 0 | J85: ='Project Costs & Basis'!S63 -> 0 | K85: ='Project Costs & Basis'!Q63 -> 0
A86: Other | D86: ='MH Underwriting'!F47 -> 0 | F86: ='Project Costs & Basis'!H65 -> 0 | G86: ='Project Costs & Basis'!L65 -> 0 | H86: ='Project Costs & Basis'!N65 -> 0 | J86: ='Project Costs & Basis'!S65 -> 0 | K86: ='Project Costs & Basis'!Q65 -> 0
A87: Subtotal Miscellaneous | D87: =SUM(D80:D86) -> 0 | F87: =SUM(F80:F86) -> 0 | G87: =SUM(G80:G86) -> 0 | H87: =SUM(H80:H86) -> 0 | J87: =F87-K87 -> 0 | K87: =SUM(K80:K86) -> 0
A89: Acquisition: Buildings | D89: ='MH Underwriting'!F50 -> 0 | F89: ='Project Costs & Basis'!H73 -> 0 | G89: ='Project Costs & Basis'!L73 -> 0 | H89: ='Project Costs & Basis'!N73 -> 0 | J89: 0 | K89: ='Project Costs & Basis'!Q73 -> 0
A90: Acquisition: Land | D90: ='MH Underwriting'!F51 -> 0 | F90: 0 | G90: 0 | H90: ='Project Costs & Basis'!N75 -> 0 | J90: 0 | K90: ='Project Costs & Basis'!Q75 -> 0
A91: Acquisition: Existing Reserves | D91: ='MH Underwriting'!F52 -> 0 | F91: 0 | G91: 0 | H91: ='Project Costs & Basis'!N77 -> 0 | J91: 0 | K91: ='Project Costs & Basis'!Q77 -> 0
A92: Acquisition: Legal | D92: ='MH Underwriting'!F53 -> 0 | F92: ='Project Costs & Basis'!H79 -> 0 | G92: ='Project Costs & Basis'!L79 -> 0 | H92: ='Project Costs & Basis'!N79 -> 0 | J92: 0 | K92: ='Project Costs & Basis'!Q79 -> 0
A93: Acquisition: other | D93: ='MH Underwriting'!F54 -> 0 | F93: ='Project Costs & Basis'!H81 -> 0 | G93: ='Project Costs & Basis'!L81 -> 0 | H93: ='Project Costs & Basis'!N81 -> 0 | J93: 0 | K93: ='Project Costs & Basis'!Q81 -> 0
A94: Subtotal Acquisition | D94: =SUM(D89:D93) -> 0 | F94: =SUM(F89:F93) -> 0 | G94: =SUM(G89:G93) -> 0 | H94: =SUM(H89:H93) -> 0 | J94: =SUM(J89:J93) -> 0 | K94: =SUM(K89:K93) -> 0
A96: Operating Deficit Escrow | D96: ='MH Underwriting'!F57 -> 0 | F96: 0 | G96: 0 | H96: ='Project Costs & Basis'!N88 -> 0 | J96: 0 | K96: 0 | M96: =('MH Underwriting'!G201+'MH Underwriting'!G202)/12*6 -> 0 | O96: Six months Op Ex & DS
A97: Pre-funded Replacements | D97: ='MH Underwriting'!F58 -> 0 | F97: 0 | G97: 0 | H97: ='Project Costs & Basis'!N90 -> 0 | J97: 0 | K97: 0 | M97: =(D60-D59-D54+'MH Underwriting'!N50)*0.01 -> 0 | O97: 1% of Structures (Construction - Cont - Site + Bldg)
A98: Tax & Insurance Escrow | D98: ='MH Underwriting'!F59 -> 0 | F98: 0 | G98: 0 | H98: ='Project Costs & Basis'!N92 -> 0 | J98: 0 | K98: 0 | M98: =M101+M102 -> 0 | O98: Total T& I
A99: Working Capital | D99: ='MH Underwriting'!F60 -> 0 | F99: 0 | G99: 0 | H99: ='Project Costs & Basis'!N94 -> 0 | J99: 0 | K99: 0 | M99: =IF('MH Underwriting'!F5<=50,'MH Underwriting'!F5*1000,50000) -> 0 | O99: Working Capital = $1000 per unit, capped @ 50K
A100: Total Syndication Expenses | D100: ='MH Underwriting'!F61 -> 0 | F100: =SUM('Project Costs & Basis'!H102:H110) -> 0 | G100: =SUM('Project Costs & Basis'!L102:L110) -> 0 | H100: =SUM('Project Costs & Basis'!N102:N110) -> 0 | J100: 0 | K100: 0
A101: Consultant Fee | D101: ='MH Underwriting'!F62 -> 0 | F101: ='Project Costs & Basis'!H116 -> 0 | G101: ='Project Costs & Basis'!L116 -> 0 | H101: ='Project Costs & Basis'!N116 -> 0 | J101: ='Project Costs & Basis'!S116 -> 0 | K101: ='Project Costs & Basis'!Q116 -> 0 | M101: =('MH Underwriting'!S179/2+'MH Underwriting'!S180/6) -> 0 | O101: Six months RE Taxes + 2 months Insurance
A102: Developer Overhead | D102: ='MH Underwriting'!F63 -> 0 | F102: ='Project Costs & Basis'!H118 -> 0 | G102: ='Project Costs & Basis'!L118 -> 0 | H102: ='Project Costs & Basis'!N118 -> 0 | J102: ='Project Costs & Basis'!S118 -> 0 | K102: ='Project Costs & Basis'!Q118 -> 0 | M102: ='MH Underwriting'!S180 -> 0 | O102: First yr insurance
A103: Developer Profit | D103: ='MH Underwriting'!F64 -> 0 | F103: ='Project Costs & Basis'!H120 -> 0 | G103: ='Project Costs & Basis'!L120 -> 0 | H103: ='Project Costs & Basis'!N120 -> 0 | J103: ='Project Costs & Basis'!S120 -> 0 | K103: ='Project Costs & Basis'!Q120 -> 0
A104: Other | D104: ='MH Underwriting'!F65 -> 0 | F104: 0 | G104: 0 | H104: ='Project Costs & Basis'!N96 -> 0 | J104: ='Project Costs & Basis'!S122 -> 0 | K104: ='Project Costs & Basis'!Q122 -> 0
A105: Subtotal Fee and Reserves | D105: =SUM(D96:D104) -> 0 | F105: =SUM(F96:F104) -> 0 | G105: =SUM(G96:G104) -> 0 | H105: =SUM(H96:H104) -> 0 | J105: =SUM(J96:J104) -> 0 | K105: =SUM(K96:K104) -> 0
A107: Total Project Costs | D107: =D94+D60+D71+D78+D87+D105 -> 0 | F107: =F94+F60+F71+F78+F87+F105 -> 0 | G107: =G94+G60+G71+G78+G87+G105 -> 0 | H107: =H94+H60+H71+H78+H87+H105 -> 0 | J107: =J60+J71+J78+J87+J94+J105 -> 0 | K107: =K60+K71+K78+K87+K94+K105 -> 0
A109: After Tax Cash Flow Analysis
D110: ='MH Underwriting'!F210 -> 2023-12-31 | E110: =D110+365 -> 2024-12-30 | F110: =E110+365 -> 2025-12-30 | G110: =F110+365 -> 2026-12-30 | H110: =G110+366 -> 2027-12-31 | I110: =H110+365 -> 2028-12-30 | J110: =I110+365 -> 2029-12-30 | K110: =J110+365 -> 2030-12-30
A111: Net Operating Income | D111: ='MH Underwriting'!F219 -> 0 | E111: ='MH Underwriting'!G219 -> 0 | F111: ='MH Underwriting'!H219 -> 0 | G111: ='MH Underwriting'!I219 -> 0 | H111: ='MH Underwriting'!J219 -> 0 | I111: ='MH Underwriting'!K219 -> 0 | J111: ='MH Underwriting'!N219 -> 0 | K111: ='MH Underwriting'!O219 -> 0
A112: Less Interest Expense | D112: ='MH Underwriting'!F221+'MH Underwriting'!F222-('MH Underwriting'!E232+'MH Underwriting'!E240-'MH Underwriting'!F232-'MH Underwriting'!F240) -> 0 | E112: ='MH Underwriting'!G221+'MH Underwriting'!G222-('MH Underwriting'!F232+'MH Underwriting'!F240-'MH Underwriting'!G232-'MH Underwriting'!G240) -> 0 | F112: ='MH Underwriting'!H221+'MH Underwriting'!H222-('MH Underwriting'!G232+'MH Underwriting'!G240-'MH Underwriting'!H232-'MH Underwriting'!H240) -> 0 | G112: ='MH Underwriting'!I221+'MH Underwriting'!I222-('MH Underwriting'!H232+'MH Underwriting'!H240-'MH Underwriting'!I232-'MH Underwriting'!I240) -> 0 | H112: ='MH Underwriting'!J221+'MH Underwriting'!J222-('MH Underwriting'!I232+'MH Underwriting'!I240-'MH Underwriting'!J232-'MH Underwriting'!J240) -> 0 | I112: ='MH Underwriting'!K221+'MH Underwriting'!K222-('MH Underwriting'!J232+'MH Underwriting'!J240-'MH Underwriting'!K232-'MH Underwriting'!K240) -> 0 | J112: ='MH Underwriting'!N221+'MH Underwriting'!N222-('MH Underwriting'!K232+'MH Underwriting'!K240-'MH Underwriting'!N232-'MH Underwriting'!N240) -> 0 | K112: ='MH Underwriting'!O221+'MH Underwriting'!O222-('MH Underwriting'!N232+'MH Underwriting'!N240-'MH Underwriting'!O232-'MH Underwriting'!O240) -> 0
A113: Less Bridge Loan Interest | D113: 0 | E113: 0 | F113: 0 | G113: 0 | H113: 0 | I113: 0 | J113: 0 | K113: 0
A114: Less Depreciation: Real Prop. | D114: =$F$107/27.5*'MH Underwriting'!E208/12 -> 0 | E114: =$F$107/27.5 -> 0 | F114: =E114 -> 0 | G114: 0 | H114: 0 | I114: 0 | J114: 0 | K114: 0
A115: Less Depreciation: Persl. Prop | D115: 0 | E115: 0 | F115: 0 | G115: 0 | H115: 0 | I115: 0 | J115: 0 | K115: 0
A116: Less Amortization | D116: =((G107-G83)/5+G83/30)*'MH Underwriting'!E208/12 ->  | E116: =((G107-G83)/5+G83/30) ->  | F116: =E116 ->  | G116: =F116 ->  | H116: =G116 ->  | I116: =(G107-G83)/5*((12-'MH Underwriting'!E208)/12)+G83/30 ->  | J116: =G83/30 ->  | K116: =J116 -> 
A117: Taxable Income (Loss) | D117: =D111-SUM(D112:D116) -> 
A120: After Tax Cash Flow Analysis
D121: =K110+366 -> 2031-12-31 | E121: =D121+365 -> 2032-12-30 | F121: =E121+365 -> 2033-12-30 | G121: =F121+365 -> 2034-12-30 | H121: =G121+366 -> 2035-12-31 | I121: =H121+365 -> 2036-12-30 | J121: =I121+365 -> 2037-12-30 | K121: =J121+365 -> 2038-12-30
A122: Net Operating Income | D122: ='MH Underwriting'!P219 -> 0 | E122: ='MH Underwriting'!Q219 -> 0 | F122: ='MH Underwriting'!R219 -> 0 | G122: ='MH Underwriting'!F257 -> 0 | H122: ='MH Underwriting'!G257 -> 0 | I122: ='MH Underwriting'!H257 -> 0 | J122: ='MH Underwriting'!I257 -> 0 | K122: ='MH Underwriting'!J257*((12-'MH Underwriting'!E208)/12) -> 0
A123: Less Interest Expense | D123: ='MH Underwriting'!P221+'MH Underwriting'!P2222-('MH Underwriting'!O232+'MH Underwriting'!O240-'MH Underwriting'!P232-'MH Underwriting'!P240) -> 0 | E123: ='MH Underwriting'!Q221+'MH Underwriting'!Q2222-('MH Underwriting'!P232+'MH Underwriting'!P240-'MH Underwriting'!Q232-'MH Underwriting'!Q240) -> 0 | F123: ='MH Underwriting'!R221+'MH Underwriting'!R2222-('MH Underwriting'!Q232+'MH Underwriting'!Q240-'MH Underwriting'!R232-'MH Underwriting'!R240) -> 0 | G123: ='MH Underwriting'!F259+'MH Underwriting'!F260-('MH Underwriting'!E270+'MH Underwriting'!E278-'MH Underwriting'!F270-'MH Underwriting'!F278) -> 0 | H123: ='MH Underwriting'!G259+'MH Underwriting'!G260-('MH Underwriting'!F270+'MH Underwriting'!F278-'MH Underwriting'!G270-'MH Underwriting'!G278) -> 0 | I123: ='MH Underwriting'!H259+'MH Underwriting'!H260-('MH Underwriting'!G270+'MH Underwriting'!G278-'MH Underwriting'!H270-'MH Underwriting'!H278) -> 0 | J123: ='MH Underwriting'!I259+'MH Underwriting'!I260-('MH Underwriting'!H270+'MH Underwriting'!H278-'MH Underwriting'!I270-'MH Underwriting'!I278) -> 0 | K123: ='MH Underwriting'!J259+'MH Underwriting'!J260-('MH Underwriting'!I270+'MH Underwriting'!I278-'MH Underwriting'!J270-'MH Underwriting'!J278) -> 0
A124: Less Bridge Loan Interest | D124: 0 | E124: 0 | F124: 0 | G124: 0 | H124: 0 | I124: 0 | J124: 0 | K124: 0
A125: Less Depreciation: Real Prop. | D125: =K114 -> 0 | E125: =D125 -> 0 | F125: =$E$114 -> 0 | G125: =F125 -> 0 | H125: =G125 -> 0 | I125: =H125 -> 0 | J125: =I125 -> 0 | K125: =J125*((12-'MH Underwriting'!E208)/12) -> 0
A126: Less Depreciation: Persl. Prop | D126: 0 | E126: 0 | F126: 0 | G126: 0 | H126: 0 | I126: 0 | J126: 0 | K126: 0
A127: Less Amortization | D127: =K116 ->  | E127: =D127 ->  | K127: =J127*((12-'MH Underwriting'!E208)/12) -> 
A128: Taxable Income (Loss) | D128: =D122-SUM(D123:D127) -> 
A132: AFTER TAX BENEFIT ANALYSIS
A133: A | D133: C | E133: D | F133: E | G133: F | H133: G | I133: (C + D +G)
D134: Tax | E134: Cash | F134: Net | G134: Tax | H134: Tax | I134: Total
A135: Date | B135: Cap Contrib | D135: Credit | E135: Distribution | F135: Losses | G135: Rate | H135: Savings | I135: Benefits
B136: =NPV(0.08,B138:B145) -> 0 | I136: =NPV(0.08,I138:I154) -> 
A138: =A33 -> 2022-03-31 | B138: =D33 -> 0 | D138: 0 | E138: 0 | F138: 0 | G138: =E9 -> 0.22 | H138: =F138*G138*-1 -> 0 | I138: =D138+E138+H138-B138 -> 0
A139: =A138+365 -> 2023-03-31 | B139: 0 | D139: =I23*'MH Underwriting'!E208/12 -> 0 | E139: ='MH Underwriting'!F$224 -> 0 | F139: =D117 ->  | G139: =G138 -> 0.22
A140: 2024-03-30 | B140: 0 | D140: =I23 -> 0 | E140: ='MH Underwriting'!G$224 -> 0 | F140: =E117 ->  | G140: 0.22
A141: 2025-03-30 | B141: 0 | D141: =D140 -> 0 | E141: ='MH Underwriting'!H$224 -> 0 | F141: =F117 ->  | G141: 0.22
A142: 2026-03-30 | B142: 0 | D142: 0 | E142: ='MH Underwriting'!I$224 -> 0 | F142: =G117 ->  | G142: 0.22
A143: 2027-03-30 | B143: 0 | D143: 0 | E143: ='MH Underwriting'!J$224 -> 0 | F143: =H117 ->  | G143: 0.22
A144: 2028-03-29 | B144: 0 | D144: 0 | E144: ='MH Underwriting'!K$224 -> 0 | F144: =I117 ->  | G144: 0.22
A145: 2029-03-29 | B145: 0 | D145: 0 | E145: ='MH Underwriting'!N$224 -> 0 | F145: =J117 ->  | G145: 0.22
A146: 2030-03-29 | D146: 0 | E146: ='MH Underwriting'!O$224 -> 0 | F146: =K117 ->  | G146: 0.22
A147: 2031-03-29 | D147: 0 | E147: ='MH Underwriting'!P$224 -> 0 | F147: =D128 ->  | G147: 0.22
A148: 2032-03-28 | D148: 0 | E148: ='MH Underwriting'!Q$224 -> 0 | F148: =E128 ->  | G148: 0.22
A149: 2033-03-28 | D149: =I23*((12-'MH Underwriting'!E208)/12) -> 0 | E149: ='MH Underwriting'!R$224 -> 0 | F149: =F128 ->  | G149: 0.22
A150: 2034-03-28 | D150: 0 | E150: ='MH Underwriting'!F$262 -> 0 | F150: =G128 ->  | G150: 0.22 | I150: =D149+E150+H150-B150 -> 
A151: 2035-03-28 | D151: 0 | E151: ='MH Underwriting'!G$262 -> 0 | F151: =H128 ->  | G151: 0.22 | I151: =D150+E151+H151-B151 -> 
A152: 2036-03-27 | D152: 0 | E152: ='MH Underwriting'!H$262 -> 0 | F152: =I128 ->  | G152: 0.22 | I152: =D151+E152+H152-B152 -> 
A153: 2037-03-27 | D153: 0 | E153: ='MH Underwriting'!I$262 -> 0 | F153: =J128 ->  | G153: 0.22 | I153: =D152+E153+H153-B153 -> 
A154: 2038-03-27 | D154: 0 | E154: ='MH Underwriting'!J$262 -> 0 | F154: =K128 ->  | G154: 0.22 | I154: =D153+E154+H154-B154 -> 
A155: TOTALS | B155: =SUM(B138:B148) -> 0 | D155: =SUM(D138:D154) -> 0 | I155: =SUM(I138:I154) -> 
E158: INTERNAL RATE OF RETURN | I158: =IF(B155=0,0,IRR(I138:I154)) -> 0

Sheet Fed Home & Match (hidden)
C1: Multifamily, Deferred Payment BMIR, Principal Only Due at Term
C3: 10-Year T-Note Rate (From H.15, http://www.federalreserve.gov/releases/)
C4: 0.0168 | F4: 2016-09-12
B7: Project Name: | C7: ='MH Underwriting'!D1 -> Project Name
E10: Total HOME Units
A11: Minimum number of | E11: Low HOME | F11: =IF(C16<5,0,ROUNDUP(H31*0.2,0)) -> 0 | H11: Other Federal Subsidy
A12: FedHOME units required | C12: =IF(C15=0,0,ROUNDUP(I17/(C18*C15)*C15,0)) -> 0 | E12: High HOME | F12: =H31-F11 -> 0 | H12: MSHA FedHOME | I12: ='MH Underwriting'!G122 -> 0
E13: FedHOME Units | H13: City HOME | I13: ='MH Underwriting'!G129 -> 0
E14: Low HOME | I14: 0
A15: # of Units | C15: ='MH Underwriting'!F5 -> 0 | E15: High HOME | I15: 0
A16: # of FedHOME units | C16: =SUM(H25:H29) -> 0 | E16: Match Units
E17: Low HOME | F17: =IF(F15=0,0,F11-F14) -> 0 | H17: Total | I17: =SUM(I12:I15) -> 0
A18: Per Unit TDC | C18: ='MH Underwriting'!H68 -> 0 | E18: High HOME | F18: =IF(F15=0,0,F12-F15) -> 0
H19: Per FedHOME Unit | I19: =IF(C16=0,0,I17/C16) -> 0
C22: 2016 | E22: Minimum | F22: FedHOME | H22: Fed HOME Units
B23: Project Mix | C23: 234 Limits | E23: Required | F23: Allowed
J24: Max
A25: 0BR | B25: ='MH Underwriting'!B150 -> 0 | C25: 140107 | E25: =IF(C$15=0,0,C$12*(B25/C$15)) -> 0 | F25: =IF(E$31=0,0,IF($I$17/C$12<C25,$I$17/C$12*E25,C25*E25)) -> 0 | H25: 0 | J25: FedHOME
A26: 1BR | B26: ='MH Underwriting'!B155 -> 0 | C26: 160615 | E26: =IF(C$15=0,0,C$12*(B26/C$15)) -> 0 | F26: =IF(E$31=0,0,IF($I$17/C$12<C26,$I$17/C$12*E26,C26*E26)) -> 0 | H26: 0 | J26: Allowed
A27: 2BR | B27: ='MH Underwriting'!B160 -> 0 | C27: 195304 | E27: =IF(C$15=0,0,C$12*(B27/C$15)) -> 0 | F27: =IF(E$31=0,0,IF($I$17/C$12<C27,$I$17/C$12*E27,C27*E27)) -> 0 | H27: 0 | J27: =IF(H25*C25+H26*C26+H27*C27+H28*C28+H29*C29<I17,H25*C25+H26*C26+H27*C27+H28*C28+H29*C29,I17) -> 0
A28: 3BR | B28: ='MH Underwriting'!B165 -> 0 | C28: 252662 | E28: =IF(C$15=0,0,C$12*(B28/C$15)) -> 0 | F28: =IF(E$31=0,0,IF($I$17/C$12<C28,$I$17/C$12*E28,C28*E28)) -> 0 | H28: 0
A29: 4BR | B29: ='MH Underwriting'!B170 -> 0 | C29: 277344 | E29: =IF(C$15=0,0,C$12*(B29/C$15)) -> 0 | F29: =IF(E$31=0,0,IF($I$17/C$12<C29,$I$17/C$12*E29,C29*E29)) -> 0 | H29: 0
A31: Totals | B31: =SUM(B25:B30) -> 0 | E31: =SUM(E25:E30) -> 0 | F31: =SUM(F25:F30) -> 0 | H31: =SUM(H25:H30) -> 0 | J31: =C18*H31-J27 -> 0
J32: Max Match
J33: Available
B36: Loan | C36: Interest | E36: Period in Years | H36: Yield
B37: 100000 | C37: 0.095 | E37: 15 | H37: =FV(C37,E37,0,-B37,0) -> 390132.1918 | J37: =B37*(1+C37)^E37 -> 390132.1918
A38: Our Loan | B38: 100000 | C38: 0 | E38: 15 | H38: =FV(C38,E38,0,-B38,0) -> 100000
B39: Example | H39: =H37-H38 -> 290132.1918
B40: 74368 | C40: 0.095 | E40: 15 | H40: =FV(C40,E40,0,-B40,0) -> 290133.5084
B43: MATCH SOURCES
H44: Eligible
C45: Loan | D45: Interest | F45: Period in Years | G45: Yield | H45: Match
C46: 0 | D46: 0 | F46: 30 | G46: =FV(D46,F46,0,-C46,0) -> 0
C47: =C46 -> 0 | D47: =C4+0.03 -> 0.0468 | F47: =F46 -> 30 | G47: =FV(D47,F47,0,-C47,0) -> 0
G48: =G47-G46 -> 0 | H48: =G48/POWER((1+D47),F47) -> 0
C51: Loan | D51: Interest | F51: Period in Years | G51: Yield
D52: 0 | F52: 30 | G52: =FV(D52,F52,0,-C52,0) -> 0
C53: =C52 -> 0 | D53: =B12+0.03 -> 0.03 | F53: =F52 -> 30 | G53: =FV(D53,F53,0,-C53,0) -> 0
G54: =G53-G52 -> 0 | H54: =G54/POWER((1+D53),F53) -> 0
C57: Loan | D57: Interest | F57: Period in Years | G57: Yield
D58: 0 | F58: 30 | G58: =FV(D58,F58,0,-C58,0) -> 0
C59: =C58 -> 0 | D59: =B16+0.03 -> 0.03 | F59: =F58 -> 30 | G59: =FV(D59,F59,0,-C59,0) -> 0
G60: =G59-G58 -> 0 | H60: =G60/POWER((1+D59),F59) -> 0
C62: Grants:
D63: AHP | H63: 0
D64: Enterprise | H64: 0
D65: Other | H65: 0
B71: Total Eligible Match | H71: =SUM(H48:H68) -> 0
H74: Total Match Claimed | I74: =IF(J31>H71,H71,J31) -> 0

Sheet Amortization Schedules (hidden)
A1: Project Name: | B1: ='MH Underwriting'!D1 -> Project Name | G1: Project Name: | H1: ='MH Underwriting'!D1 -> Project Name | M1: Project Name: | N1: ='MH Underwriting'!D1 -> Project Name | S1: Project Name: | T1: ='MH Underwriting'!D1 -> Project Name
A2: Location: | B2: ='MH Underwriting'!D2 -> Town | G2: Location: | H2: ='MH Underwriting'!D2 -> Town | M2: Location: | N2: ='MH Underwriting'!D2 -> Town | S2: Location: | T2: ='MH Underwriting'!D2 -> Town
C4: ='MH Underwriting'!D124 -> Interest Bearing Loan | I4: ='MH Underwriting'!D125 -> AHP Subsidized Advance | O4: ='MH Underwriting'!D126 -> City FEDHOME* | U4: ='MH Underwriting'!D129 -> 
A6: Principal | D6: ='MH Underwriting'!G124 -> 0 | G6: Principal | J6: ='MH Underwriting'!G125 -> 0 | M6: Principal | P6: ='MH Underwriting'!G126 -> 0 | S6: Principal | V6: ='MH Underwriting'!G129 -> 0
A7: Rate | D7: ='MH Underwriting'!H124 -> 0.06 | G7: Rate | J7: ='MH Underwriting'!H125 -> 0 | M7: Rate | P7: ='MH Underwriting'!H126 -> 0 | S7: Rate | V7: ='MH Underwriting'!H129 -> 0
A8: AmortizationTerm | D8: ='MH Underwriting'!I124 -> 30 | G8: AmortizationTerm | J8: ='MH Underwriting'!I125 -> 30 | M8: AmortizationTerm | P8: ='MH Underwriting'!I126 -> 30 | S8: AmortizationTerm | V8: ='MH Underwriting'!I129 -> 30
F11: Balance | L11: Balance | R11: Balance | X11: Balance
A12: Payment No. | C12: Payment | D12: Principal | E12: Interest | F12: Outstanding | G12: Payment No. | I12: Payment | J12: Principal | K12: Interest | L12: Outstanding | M12: Payment No. | O12: Payment | P12: Principal | Q12: Interest | R12: Outstanding | S12: Payment No. | U12: Payment | V12: Principal | W12: Interest | X12: Outstanding
A14: 1 | C14: =PMT(D7/12,D8*12,-D6) -> 0 | D14: =C14-E14 -> 0 | E14: =D6*D7/12 -> 0 | F14: =IF(D6=0,0,IF(D8=0,0,D$6+CUMPRINC(D$7/12,D$8*12,D$6,1,$A14,0))) -> 0 | G14: 1 | I14: =PMT(J7/12,J8*12,-J6) -> 0 | J14: =I14-K14 -> 0 | K14: =J6*J7/12 -> 0 | L14: =IF(J6=0,0,IF(J8=0,0,J$6+CUMPRINC(J$7/12,J$8*12,J$6,1,$A14,0))) -> 0 | M14: 1 | O14: =PMT(P7/12,P8*12,-P6) -> 0 | P14: =O14-Q14 -> 0 | Q14: =P6*P7/12 -> 0 | R14: =IF(P6=0,0,IF(P8=0,0,P$6+CUMPRINC(P$7/12,P$8*12,P$6,1,$A14,0))) -> 0 | S14: 1 | U14: =PMT(V7/12,V8*12,-V6) -> 0 | V14: =U14-W14 -> 0 | W14: =V6*V7/12 -> 0 | X14: =IF(V6=0,0,IF(V8=0,0,V$6+CUMPRINC(V$7/12,V$8*12,V$6,1,$A14,0))) -> 0
A15: =IF(A14<D$8*12,A14+1,"") -> 2 | C15: =IF(F14=0,"",IF($A15<=D$8*12,C14,"")) ->  | D15: =IF(C15="","",C15-E15) ->  | E15: =IF(C15="","",F14*D$7/12) ->  | F15: =IF(D$6=0,"",IF($A15>D$8*12,"",D$6+CUMPRINC(D$7/12,D$8*12,D$6,1,$A15,0))) ->  | G15: =IF(G14<J$8*12,G14+1,"") -> 2 | I15: =IF(L14=0,"",IF($A15<=J$8*12,I14,"")) ->  | J15: =IF(I15="","",I15-K15) ->  | K15: =IF(I15="","",L14*J$7/12) ->  | L15: =IF(J$6=0,"",IF($A15>J$8*12,"",J$6+CUMPRINC(J$7/12,J$8*12,J$6,1,$A15,0))) ->  | M15: =IF(M14<P$8*12,M14+1,"") -> 2 | O15: =IF(R14=0,"",IF($A15<=P$8*12,O14,"")) ->  | P15: =IF(O15="","",O15-Q15) ->  | Q15: =IF(O15="","",R14*P$7/12) ->  | R15: =IF(P$6=0,"",IF($A15>P$8*12,"",P$6+CUMPRINC(P$7/12,P$8*12,P$6,1,$A15,0))) ->  | S15: =IF(S14<V$8*12,S14+1,"") -> 2 | U15: =IF(X14=0,"",IF($A15<=V$8*12,U14,"")) ->  | V15: =IF(U15="","",U15-W15) ->  | W15: =IF(U15="","",X14*V$7/12) ->  | X15: =IF(V$6=0,"",IF($A15>V$8*12,"",V$6+CUMPRINC(V$7/12,V$8*12,V$6,1,$A15,0))) -> 
A16: 3 | G16: 3 | M16: 3 | O16: =IF(R15=0,"",IF($A16<=P$8*12,O15,"")) ->  | S16: 3
A17: 4 | G17: 4 | M17: 4 | S17: 4
A18: 5 | G18: 5 | M18: 5 | S18: 5
A19: 6 | G19: 6 | M19: 6 | S19: 6
A20: 7 | G20: 7 | M20: 7 | S20: 7
A21: 8 | G21: 8 | M21: 8 | S21: 8
A22: 9 | G22: 9 | M22: 9 | S22: 9
A23: 10 | G23: 10 | M23: 10 | S23: 10
A24: 11 | G24: 11 | M24: 11 | S24: 11
A25: 12 | G25: 12 | M25: 12 | S25: 12
A26: 13 | G26: 13 | M26: 13 | S26: 13
A27: 14 | G27: 14 | M27: 14 | S27: 14
A28: 15 | G28: 15 | M28: 15 | S28: 15
A29: 16 | G29: 16 | M29: 16 | S29: 16
A30: 17 | G30: 17 | M30: 17 | S30: 17
A31: 18 | G31: 18 | M31: 18 | S31: 18
A32: 19 | G32: 19 | M32: 19 | S32: 19
A33: 20 | G33: 20 | M33: 20 | S33: 20
A34: 21 | G34: 21 | M34: 21 | S34: 21
A35: 22 | G35: 22 | M35: 22 | S35: 22
A36: 23 | G36: 23 | M36: 23 | S36: 23
A37: 24 | G37: 24 | M37: 24 | S37: 24
A38: 25 | G38: 25 | M38: 25 | S38: 25
A39: 26 | G39: 26 | M39: 26 | S39: 26
A40: 27 | G40: 27 | M40: 27 | S40: 27
A41: 28 | G41: 28 | M41: 28 | S41: 28
A42: 29 | G42: 29 | M42: 29 | S42: 29
A43: 30 | G43: 30 | M43: 30 | S43: 30
A44: 31 | G44: 31 | M44: 31 | S44: 31
A45: 32 | G45: 32 | M45: 32 | S45: 32
A46: 33 | G46: 33 | M46: 33 | S46: 33
A47: 34 | G47: 34 | M47: 34 | S47: 34
A48: 35 | G48: 35 | M48: 35 | S48: 35
A49: 36 | G49: 36 | M49: 36 | S49: 36
A50: 37 | G50: 37 | M50: 37 | S50: 37
A51: 38 | G51: 38 | M51: 38 | S51: 38
A52: 39 | G52: 39 | M52: 39 | S52: 39
A53: 40 | G53: 40 | M53: 40 | S53: 40
A54: 41 | G54: 41 | M54: 41 | S54: 41
A55: 42 | G55: 42 | M55: 42 | S55: 42
A56: 43 | G56: 43 | M56: 43 | S56: 43
A57: 44 | G57: 44 | M57: 44 | S57: 44
A58: 45 | G58: 45 | M58: 45 | S58: 45
A59: 46 | G59: 46 | M59: 46 | S59: 46
A60: 47 | G60: 47 | M60: 47 | S60: 47
A61: 48 | G61: 48 | M61: 48 | S61: 48
A62: 49 | G62: 49 | M62: 49 | S62: 49
A63: 50 | G63: 50 | M63: 50 | S63: 50
A64: 51 | G64: 51 | M64: 51 | S64: 51
A65: 52 | G65: 52 | M65: 52 | S65: 52
A66: 53 | G66: 53 | M66: 53 | S66: 53
A67: 54 | G67: 54 | M67: 54 | S67: 54
A68: 55 | G68: 55 | M68: 55 | S68: 55
A69: 56 | G69: 56 | M69: 56 | S69: 56
A70: 57 | G70: 57 | M70: 57 | S70: 57
A71: 58 | G71: 58 | M71: 58 | S71: 58
A72: 59 | G72: 59 | M72: 59 | S72: 59
A73: 60 | G73: 60 | M73: 60 | S73: 60
A74: 61 | G74: 61 | M74: 61 | S74: 61
A75: 62 | G75: 62 | M75: 62 | S75: 62
A76: 63 | G76: 63 | M76: 63 | S76: 63
A77: 64 | G77: 64 | M77: 64 | S77: 64
A78: 65 | G78: 65 | M78: 65 | S78: 65
A79: =IF(A78<D$8*12,A78+1,"") -> 66 | C79: =IF(F78=0,"",IF($A79<=D$8*12,C78,"")) ->  | D79: =IF(C79="","",C79-E79) ->  | E79: =IF(C79="","",F78*D$7/12) ->  | F79: =IF(D$6=0,"",IF($A79>D$8*12,"",D$6+CUMPRINC(D$7/12,D$8*12,D$6,1,$A79,0))) ->  | G79: =IF(G78<J$8*12,G78+1,"") -> 66 | I79: =IF(L78=0,"",IF($A79<=J$8*12,I78,"")) ->  | J79: =IF(I79="","",I79-K79) ->  | K79: =IF(I79="","",L78*J$7/12) ->  | L79: =IF(J$6=0,"",IF($A79>J$8*12,"",J$6+CUMPRINC(J$7/12,J$8*12,J$6,1,$A79,0))) ->  | M79: =IF(M78<P$8*12,M78+1,"") -> 66 | O79: =IF(R78=0,"",IF($A79<=P$8*12,O78,"")) ->  | P79: =IF(O79="","",O79-Q79) ->  | Q79: =IF(O79="","",R78*P$7/12) ->  | R79: =IF(P$6=0,"",IF($A79>P$8*12,"",P$6+CUMPRINC(P$7/12,P$8*12,P$6,1,$A79,0))) ->  | S79: =IF(S78<V$8*12,S78+1,"") -> 66 | U79: =IF(X78=0,"",IF($A79<=V$8*12,U78,"")) ->  | V79: =IF(U79="","",U79-W79) ->  | W79: =IF(U79="","",X78*V$7/12) ->  | X79: =IF(V$6=0,"",IF($A79>V$8*12,"",V$6+CUMPRINC(V$7/12,V$8*12,V$6,1,$A79,0))) -> 
A80: 67 | G80: 67 | M80: 67 | S80: 67
A81: 68 | G81: 68 | M81: 68 | S81: 68
A82: 69 | G82: 69 | M82: 69 | S82: 69
A83: 70 | G83: 70 | M83: 70 | S83: 70
A84: 71 | G84: 71 | M84: 71 | S84: 71
A85: 72 | G85: 72 | M85: 72 | S85: 72
A86: 73 | G86: 73 | M86: 73 | S86: 73
A87: 74 | G87: 74 | M87: 74 | S87: 74
A88: 75 | G88: 75 | M88: 75 | S88: 75
A89: 76 | G89: 76 | M89: 76 | S89: 76
A90: 77 | G90: 77 | M90: 77 | S90: 77
A91: 78 | G91: 78 | M91: 78 | S91: 78
A92: 79 | G92: 79 | M92: 79 | S92: 79
A93: 80 | G93: 80 | M93: 80 | S93: 80
A94: 81 | G94: 81 | M94: 81 | S94: 81
A95: 82 | G95: 82 | M95: 82 | S95: 82
A96: 83 | G96: 83 | M96: 83 | S96: 83
A97: 84 | G97: 84 | M97: 84 | S97: 84
A98: 85 | G98: 85 | M98: 85 | S98: 85
A99: 86 | G99: 86 | M99: 86 | S99: 86
A100: 87 | G100: 87 | M100: 87 | S100: 87
A101: 88 | G101: 88 | M101: 88 | S101: 88
A102: 89 | G102: 89 | M102: 89 | S102: 89
A103: 90 | G103: 90 | M103: 90 | S103: 90
A104: 91 | G104: 91 | M104: 91 | S104: 91
A105: 92 | G105: 92 | M105: 92 | S105: 92
A106: 93 | G106: 93 | M106: 93 | S106: 93
A107: 94 | G107: 94 | M107: 94 | S107: 94
A108: 95 | G108: 95 | M108: 95 | S108: 95
A109: 96 | G109: 96 | M109: 96 | S109: 96
A110: 97 | G110: 97 | M110: 97 | S110: 97
A111: 98 | G111: 98 | M111: 98 | S111: 98
A112: 99 | G112: 99 | M112: 99 | S112: 99
A113: 100 | G113: 100 | M113: 100 | S113: 100
A114: 101 | G114: 101 | M114: 101 | S114: 101
A115: 102 | G115: 102 | M115: 102 | S115: 102
A116: 103 | G116: 103 | M116: 103 | S116: 103
A117: 104 | G117: 104 | M117: 104 | S117: 104
A118: 105 | G118: 105 | M118: 105 | S118: 105
A119: 106 | G119: 106 | M119: 106 | S119: 106
A120: 107 | G120: 107 | M120: 107 | S120: 107
A121: 108 | G121: 108 | M121: 108 | S121: 108
A122: 109 | G122: 109 | M122: 109 | S122: 109
A123: 110 | G123: 110 | M123: 110 | S123: 110
A124: 111 | G124: 111 | M124: 111 | S124: 111
A125: 112 | G125: 112 | M125: 112 | S125: 112
A126: 113 | G126: 113 | M126: 113 | S126: 113
A127: 114 | G127: 114 | M127: 114 | S127: 114
A128: 115 | G128: 115 | M128: 115 | S128: 115
A129: 116 | G129: 116 | M129: 116 | S129: 116
A130: 117 | G130: 117 | M130: 117 | S130: 117
A131: 118 | G131: 118 | M131: 118 | S131: 118
A132: 119 | G132: 119 | M132: 119 | S132: 119
A133: 120 | G133: 120 | M133: 120 | S133: 120
A134: 121 | G134: 121 | M134: 121 | S134: 121
A135: 122 | G135: 122 | M135: 122 | S135: 122
A136: 123 | G136: 123 | M136: 123 | S136: 123
A137: 124 | G137: 124 | M137: 124 | S137: 124
A138: 125 | G138: 125 | M138: 125 | S138: 125
A139: 126 | G139: 126 | M139: 126 | S139: 126
A140: 127 | G140: 127 | M140: 127 | S140: 127
A141: 128 | G141: 128 | M141: 128 | S141: 128
A142: 129 | G142: 129 | M142: 129 | S142: 129
A143: =IF(A142<D$8*12,A142+1,"") -> 130 | C143: =IF(F142=0,"",IF($A143<=D$8*12,C142,"")) ->  | D143: =IF(C143="","",C143-E143) ->  | E143: =IF(C143="","",F142*D$7/12) ->  | F143: =IF(D$6=0,"",IF($A143>D$8*12,"",D$6+CUMPRINC(D$7/12,D$8*12,D$6,1,$A143,0))) ->  | G143: =IF(G142<J$8*12,G142+1,"") -> 130 | I143: =IF(L142=0,"",IF($A143<=J$8*12,I142,"")) ->  | J143: =IF(I143="","",I143-K143) ->  | K143: =IF(I143="","",L142*J$7/12) ->  | L143: =IF(J$6=0,"",IF($A143>J$8*12,"",J$6+CUMPRINC(J$7/12,J$8*12,J$6,1,$A143,0))) ->  | M143: =IF(M142<P$8*12,M142+1,"") -> 130 | O143: =IF(R142=0,"",IF($A143<=P$8*12,O142,"")) ->  | P143: =IF(O143="","",O143-Q143) ->  | Q143: =IF(O143="","",R142*P$7/12) ->  | R143: =IF(P$6=0,"",IF($A143>P$8*12,"",P$6+CUMPRINC(P$7/12,P$8*12,P$6,1,$A143,0))) ->  | S143: =IF(S142<V$8*12,S142+1,"") -> 130 | U143: =IF(X142=0,"",IF($A143<=V$8*12,U142,"")) ->  | V143: =IF(U143="","",U143-W143) ->  | W143: =IF(U143="","",X142*V$7/12) ->  | X143: =IF(V$6=0,"",IF($A143>V$8*12,"",V$6+CUMPRINC(V$7/12,V$8*12,V$6,1,$A143,0))) -> 
A144: 131 | G144: 131 | M144: 131 | S144: 131
A145: 132 | G145: 132 | M145: 132 | S145: 132
A146: 133 | G146: 133 | M146: 133 | S146: 133
A147: 134 | G147: 134 | M147: 134 | S147: 134
A148: 135 | G148: 135 | M148: 135 | S148: 135
A149: 136 | G149: 136 | M149: 136 | S149: 136
A150: 137 | G150: 137 | M150: 137 | S150: 137
A151: 138 | G151: 138 | M151: 138 | S151: 138
A152: 139 | G152: 139 | M152: 139 | S152: 139
A153: 140 | G153: 140 | M153: 140 | S153: 140
A154: 141 | G154: 141 | M154: 141 | S154: 141
A155: 142 | G155: 142 | M155: 142 | S155: 142
A156: 143 | G156: 143 | M156: 143 | S156: 143
A157: 144 | G157: 144 | M157: 144 | S157: 144
A158: 145 | G158: 145 | M158: 145 | S158: 145
A159: 146 | G159: 146 | M159: 146 | S159: 146
A160: 147 | G160: 147 | M160: 147 | S160: 147
A161: 148 | G161: 148 | M161: 148 | S161: 148
A162: 149 | G162: 149 | M162: 149 | S162: 149
A163: 150 | G163: 150 | M163: 150 | S163: 150
A164: 151 | G164: 151 | M164: 151 | S164: 151
A165: 152 | G165: 152 | M165: 152 | S165: 152
A166: 153 | G166: 153 | M166: 153 | S166: 153
A167: 154 | G167: 154 | M167: 154 | S167: 154
A168: 155 | G168: 155 | M168: 155 | S168: 155
A169: 156 | G169: 156 | M169: 156 | S169: 156
A170: 157 | G170: 157 | M170: 157 | S170: 157
A171: 158 | G171: 158 | M171: 158 | S171: 158
A172: 159 | G172: 159 | M172: 159 | S172: 159
A173: 160 | G173: 160 | M173: 160 | S173: 160
A174: 161 | G174: 161 | M174: 161 | S174: 161
A175: 162 | G175: 162 | M175: 162 | S175: 162
A176: 163 | G176: 163 | M176: 163 | S176: 163
A177: 164 | G177: 164 | M177: 164 | S177: 164
A178: 165 | G178: 165 | M178: 165 | S178: 165
A179: 166 | G179: 166 | M179: 166 | S179: 166
A180: 167 | G180: 167 | M180: 167 | S180: 167
A181: 168 | G181: 168 | M181: 168 | S181: 168
A182: 169 | G182: 169 | M182: 169 | S182: 169
A183: 170 | G183: 170 | M183: 170 | S183: 170
A184: 171 | G184: 171 | M184: 171 | S184: 171
A185: 172 | G185: 172 | M185: 172 | S185: 172
A186: 173 | G186: 173 | M186: 173 | S186: 173
A187: 174 | G187: 174 | M187: 174 | S187: 174
A188: 175 | G188: 175 | M188: 175 | S188: 175
A189: 176 | G189: 176 | M189: 176 | S189: 176
A190: 177 | G190: 177 | M190: 177 | S190: 177
A191: 178 | G191: 178 | M191: 178 | S191: 178
A192: 179 | G192: 179 | M192: 179 | S192: 179
A193: 180 | G193: 180 | M193: 180 | S193: 180
A194: 181 | G194: 181 | M194: 181 | S194: 181
A195: 182 | G195: 182 | M195: 182 | S195: 182
A196: 183 | G196: 183 | M196: 183 | S196: 183
A197: 184 | G197: 184 | M197: 184 | S197: 184
A198: 185 | G198: 185 | M198: 185 | S198: 185
A199: 186 | G199: 186 | M199: 186 | S199: 186
A200: 187 | G200: 187 | M200: 187 | S200: 187
A201: 188 | G201: 188 | M201: 188 | S201: 188
A202: 189 | G202: 189 | M202: 189 | S202: 189
A203: 190 | G203: 190 | M203: 190 | S203: 190
A204: 191 | G204: 191 | M204: 191 | S204: 191
A205: 192 | G205: 192 | M205: 192 | S205: 192
... 170 more rows

Sheet Sheet1
